Workbook

Sheet INTRO
B2: Joint request for selected PC medicines v.3.1
B4: As part of global efforts to accelerate expansion of preventive chemotherapy (PC) for control and elimination of lymphatic filariasis, schistosomiasis and soil-transmitted helminthiases, the World Health Organization (WHO) facilitates the supply of albendazole 400 mg tablets (GSK) to national lymphatic filariasis elimination programmes and national soil-transmitted helminth control programmes; diethylcarbamazine citrate 100 mg tablets (Eisai) to national lymphatic filariasis elimination programmes; mebendazole 500 mg tablets (J&J) for national soil-transmitted helminth control programmes; and praziquantel 600 mg tablets (Merck KGaA) for school-age children to national schistosomiasis control programmes. WHO also collaborates to supply ivermectin 3 mg tablets (Merck) for onchocerciasis and lymphatic filariasis donation programmes. This Excel-based tool is designed to assist countries in quantifying the number of tablets of relevant PC medicines required to reach the planned target population and districts for the year of request. Output of the tool is a joint request for PC medicines, which can be printed, signed and submitted to WHO to request these medicines.
B6: Structure of the application (worksheets):
B8: INTRO | C8: This worksheet includes guides on how to complete the joint request for selected PC medicines and information about the status of PC for endemic diseases in the country.
B9: COUNTRY_INFO | C9: This worksheet includes information about administrative structure of the country, population by age group, status of endemicity for each disease, population requiring PC and planned interventions.
B10: DEC, ALB_MBD, PZQ and IVM | C10: These worksheets include information about endemic districts targeted for treatment with specified PC medicines, treatment plan, and number of tablets required and requested.
B11: SUMMARY | C11: This worksheet includes summary of number of tablets requested, information about stock, and date for submission of requested medicines. Before generating the report (run macros) please select the medicine for which the report is needed. Follow the same rule to see the number of people to be treated for the specific disease. This worksheet should be printed and submitted as a joint request for selected PC medicines (see the instruction for submission in the SUMMARY worksheet).
B13: Instruction for data entry
B15: Most of the cells in the above-mentioned worksheets include formula that are calculated automatically according to the treatment policy recommended by WHO for each disease. See the link http://www.who.int/neglected_diseases/preventive_chemotherapy/pct_manual/en/index.html
B17: Please enter your data into the cells according to their colour code:
C19: White - cell is not protected. Please enter the value of the requested indicator.
C21: Yellow - cell is protected and includes name of indicator. No data entry required.
C23: Orange - cell is not protected and includes a drop-down menu. Please select the value from the drop-down list.
C26: Green - cell is not protected and includes formula. Please change the value only if your data are different from those that are calculated automatically.
C29: Blue - cell is protected and includes formula. No data entry required.
B31: Country data
B33: COUNTRY | E33: RWANDA
B35: Year for request of the medicine | E35: 2022
B37: Is country endemic for lymphatic filariasis (LF)? | E37: Non-endemic
B39: Is country endemic for onchocerciasis (ONCHO)? | E39: Non-endemic
B41: Is country endemic for soil-transmitted helminthiases (STH)? | E41: Endemic
B43: Is country endemic for schistosomiasis (SCH)? | E43: Endemic
B45: How many administrative units in the country? | E45: 30
B47: If demographical data at the second administrative level are not available by age group, please enter the proportion (%) of population by age group in the country. If data are available, please leave these cells blank.
B48: 1-4 years age | C48: Preschool-age children (PreSAC) | E48: 0.117
B49: 5-15 years age | C49: School-age children (SAC) | E49: 0.288
B50: 16 years + | C50: Adults | E50: 0.566

Sheet COUNTRY_INFO
A1: COUNTRY INFORMATION
A2: Administrative structure, population by age group, status of endemicity and planned interventions
A4: TOTAL | D4: =SUM(D$8:D$999) -> 13493965.43 | E4: =SUM(E$8:E$999) -> 1578795 | F4: =SUM(F$8:F$999) -> 3886260 | G4: =SUM(G$8:G$999) -> 7637584 | L4: =SUM(L$8:L$999) -> 0 | M4: =SUM(M$8:M$999) -> 0 | N4: =SUM(N$8:N$999) -> 5465055 | O4: =SUM(O$8:O$999) -> 6305861.5
A6: Country administrative structure | D6: Population | H6: Endemicity | L6: Population requiring PC | P6: Number of treatment rounds planned for the year | T6: Criteria to apply for IVM+DEC+ALB therapy | U6: Epidemiological surveys planned for the year
A7: Country | B7: Province/State | C7: District | D7: Total | E7: PreSAC | F7: SAC | G7: Adults | H7: LF | I7: Oncho | J7: STH | K7: SCH | L7: LF | M7: Oncho | N7: STH | O7: SCH | P7: LF | Q7: Oncho | R7: STH | S7: SCH | T7: LF | U7: LF | V7: Oncho | W7: STH | X7: SCH
A8: =IF(INTRO!$E$33<>0,INTRO!$E$33, " ") -> RWANDA | B8: Eastern | C8: Bugesera | D8: 467692.6564 | E8: =IF(INTRO!$E$48="","",ROUND($D8*INTRO!$E$48,0)) -> 54720 | F8: =IF(INTRO!$E$49="","",ROUND($D8*INTRO!$E$49,0)) -> 134695 | G8: =IF(INTRO!$E$50="","",ROUND($D8*INTRO!$E$50,0)) -> 264714 | J8: 2 | K8: 2 | L8: =IF(INTRO!$E$37="Endemic",IF($H8>0,IF($H8=4,"Unknown",IF($H8=99,"Stopped",$D8)),0),"Not required") -> Not required | M8: =IF(INTRO!$E$39="Endemic", IF($I8>0, IF($I8=4,"Unknown",IF($I8=99,"Stopped",$D8)), 0),"Not required") -> Not required | N8: =IF(INTRO!$E$41="Endemic", IF(AND($J8>1,$J8<5), IF($J8=4, "Unknown", E8+F8), 0),"Not required") -> 189415 | O8: =IF(INTRO!$E$43="Endemic", IF(AND($K8>0,$K8<5), IF($K8=4,"Unknown", IF($K8=1, $F8*0.33, IF($K8=2, $F8*0.5+$G8*0.2, SUM(F8:G8)))), 0),"Not required") -> 120290.3 | R8: 2 | S8: 1
A9: =IF(INTRO!$E$33<>0,INTRO!$E$33, " ") -> RWANDA | B9: Northern | C9: Burera | D9: 391044.6364 | E9: =IF(INTRO!$E$48="","",ROUND($D9*INTRO!$E$48,0)) -> 45752 | F9: =IF(INTRO!$E$49="","",ROUND($D9*INTRO!$E$49,0)) -> 112621 | G9: =IF(INTRO!$E$50="","",ROUND($D9*INTRO!$E$50,0)) -> 221331 | J9: 3 | K9: 2 | L9: =IF(INTRO!$E$37="Endemic",IF($H9>0,IF($H9=4,"Unknown",IF($H9=99,"Stopped",$D9)),0),"Not required") -> Not required | M9: =IF(INTRO!$E$39="Endemic", IF($I9>0, IF($I9=4,"Unknown",IF($I9=99,"Stopped",$D9)), 0),"Not required") -> Not required | N9: =IF(INTRO!$E$41="Endemic", IF(AND($J9>1,$J9<5), IF($J9=4, "Unknown", E9+F9), 0),"Not required") -> 158373 | O9: =IF(INTRO!$E$43="Endemic", IF(AND($K9>0,$K9<5), IF($K9=4,"Unknown", IF($K9=1, $F9*0.33, IF($K9=2, $F9*0.5+$G9*0.2, SUM(F9:G9)))), 0),"Not required") -> 100576.7 | R9: 2 | S9: 1
A10: =IF(INTRO!$E$33<>0,INTRO!$E$33, " ") -> RWANDA | B10: Northern | C10: Gakenke | D10: 389438.9608 | E10: =IF(INTRO!$E$48="","",ROUND($D10*INTRO!$E$48,0)) -> 45564 | F10: =IF(INTRO!$E$49="","",ROUND($D10*INTRO!$E$49,0)) -> 112158 | G10: =IF(INTRO!$E$50="","",ROUND($D10*INTRO!$E$50,0)) -> 220422 | J10: 3 | K10: 3 | L10: =IF(INTRO!$E$37="Endemic",IF($H10>0,IF($H10=4,"Unknown",IF($H10=99,"Stopped",$D10)),0),"Not required") -> Not required | M10: =IF(INTRO!$E$39="Endemic", IF($I10>0, IF($I10=4,"Unknown",IF($I10=99,"Stopped",$D10)), 0),"Not required") -> Not required | N10: =IF(INTRO!$E$41="Endemic", IF(AND($J10>1,$J10<5), IF($J10=4, "Unknown", E10+F10), 0),"Not required") -> 157722 | O10: =IF(INTRO!$E$43="Endemic", IF(AND($K10>0,$K10<5), IF($K10=4,"Unknown", IF($K10=1, $F10*0.33, IF($K10=2, $F10*0.5+$G10*0.2, SUM(F10:G10)))), 0),"Not required") -> 332580 | R10: 2 | S10: 1
A11: =IF(INTRO!$E$33<>0,INTRO!$E$33, " ") -> RWANDA | B11: Kigali | C11: Gasabo | D11: 843300 | E11: =IF(INTRO!$E$48="","",ROUND($D11*INTRO!$E$48,0)) -> 98666 | F11: =IF(INTRO!$E$49="","",ROUND($D11*INTRO!$E$49,0)) -> 242870 | G11: =IF(INTRO!$E$50="","",ROUND($D11*INTRO!$E$50,0)) -> 477308 | J11: 2 | K11: 3 | L11: =IF(INTRO!$E$37="Endemic",IF($H11>0,IF($H11=4,"Unknown",IF($H11=99,"Stopped",$D11)),0),"Not required") -> Not required | M11: =IF(INTRO!$E$39="Endemic", IF($I11>0, IF($I11=4,"Unknown",IF($I11=99,"Stopped",$D11)), 0),"Not required") -> Not required | N11: =IF(INTRO!$E$41="Endemic", IF(AND($J11>1,$J11<5), IF($J11=4, "Unknown", E11+F11), 0),"Not required") -> 341536 | O11: =IF(INTRO!$E$43="Endemic", IF(AND($K11>0,$K11<5), IF($K11=4,"Unknown", IF($K11=1, $F11*0.33, IF($K11=2, $F11*0.5+$G11*0.2, SUM(F11:G11)))), 0),"Not required") -> 720178 | R11: 2 | S11: 1
A12: =IF(INTRO!$E$33<>0,INTRO!$E$33, " ") -> RWANDA | B12: Eastern | C12: Gatsibo | D12: 590577.2654 | E12: =IF(INTRO!$E$48="","",ROUND($D12*INTRO!$E$48,0)) -> 69098 | F12: =IF(INTRO!$E$49="","",ROUND($D12*INTRO!$E$49,0)) -> 170086 | G12: =IF(INTRO!$E$50="","",ROUND($D12*INTRO!$E$50,0)) -> 334267 | J12: 3 | K12: 3 | L12: =IF(INTRO!$E$37="Endemic",IF($H12>0,IF($H12=4,"Unknown",IF($H12=99,"Stopped",$D12)),0),"Not required") -> Not required | M12: =IF(INTRO!$E$39="Endemic", IF($I12>0, IF($I12=4,"Unknown",IF($I12=99,"Stopped",$D12)), 0),"Not required") -> Not required | N12: =IF(INTRO!$E$41="Endemic", IF(AND($J12>1,$J12<5), IF($J12=4, "Unknown", E12+F12), 0),"Not required") -> 239184 | O12: =IF(INTRO!$E$43="Endemic", IF(AND($K12>0,$K12<5), IF($K12=4,"Unknown", IF($K12=1, $F12*0.33, IF($K12=2, $F12*0.5+$G12*0.2, SUM(F12:G12)))), 0),"Not required") -> 504353 | R12: 2 | S12: 1
A13: =IF(INTRO!$E$33<>0,INTRO!$E$33, " ") -> RWANDA | B13: Northern | C13: Gicumbi | D13: 475879.4969 | E13: =IF(INTRO!$E$48="","",ROUND($D13*INTRO!$E$48,0)) -> 55678 | F13: =IF(INTRO!$E$49="","",ROUND($D13*INTRO!$E$49,0)) -> 137053 | G13: =IF(INTRO!$E$50="","",ROUND($D13*INTRO!$E$50,0)) -> 269348 | J13: 3 | K13: 2 | L13: =IF(INTRO!$E$37="Endemic",IF($H13>0,IF($H13=4,"Unknown",IF($H13=99,"Stopped",$D13)),0),"Not required") -> Not required | M13: =IF(INTRO!$E$39="Endemic", IF($I13>0, IF($I13=4,"Unknown",IF($I13=99,"Stopped",$D13)), 0),"Not required") -> Not required | N13: =IF(INTRO!$E$41="Endemic", IF(AND($J13>1,$J13<5), IF($J13=4, "Unknown", E13+F13), 0),"Not required") -> 192731 | O13: =IF(INTRO!$E$43="Endemic", IF(AND($K13>0,$K13<5), IF($K13=4,"Unknown", IF($K13=1, $F13*0.33, IF($K13=2, $F13*0.5+$G13*0.2, SUM(F13:G13)))), 0),"Not required") -> 122396.1 | R13: 2 | S13: 1
A14: =IF(INTRO!$E$33<>0,INTRO!$E$33, " ") -> RWANDA | B14: Southern | C14: Gisagara | D14: 398767.1718 | E14: =IF(INTRO!$E$48="","",ROUND($D14*INTRO!$E$48,0)) -> 46656 | F14: =IF(INTRO!$E$49="","",ROUND($D14*INTRO!$E$49,0)) -> 114845 | G14: =IF(INTRO!$E$50="","",ROUND($D14*INTRO!$E$50,0)) -> 225702 | J14: 3 | K14: 2 | L14: =IF(INTRO!$E$37="Endemic",IF($H14>0,IF($H14=4,"Unknown",IF($H14=99,"Stopped",$D14)),0),"Not required") -> Not required | M14: =IF(INTRO!$E$39="Endemic", IF($I14>0, IF($I14=4,"Unknown",IF($I14=99,"Stopped",$D14)), 0),"Not required") -> Not required | N14: =IF(INTRO!$E$41="Endemic", IF(AND($J14>1,$J14<5), IF($J14=4, "Unknown", E14+F14), 0),"Not required") -> 161501 | O14: =IF(INTRO!$E$43="Endemic", IF(AND($K14>0,$K14<5), IF($K14=4,"Unknown", IF($K14=1, $F14*0.33, IF($K14=2, $F14*0.5+$G14*0.2, SUM(F14:G14)))), 0),"Not required") -> 102562.9 | R14: 2 | S14: 1
A15: =IF(INTRO!$E$33<>0,INTRO!$E$33, " ") -> RWANDA | B15: Southern | C15: Huye | D15: 407027.1487 | E15: =IF(INTRO!$E$48="","",ROUND($D15*INTRO!$E$48,0)) -> 47622 | F15: =IF(INTRO!$E$49="","",ROUND($D15*INTRO!$E$49,0)) -> 117224 | G15: =IF(INTRO!$E$50="","",ROUND($D15*INTRO!$E$50,0)) -> 230377 | J15: 3 | K15: 2 | L15: =IF(INTRO!$E$37="Endemic",IF($H15>0,IF($H15=4,"Unknown",IF($H15=99,"Stopped",$D15)),0),"Not required") -> Not required | M15: =IF(INTRO!$E$39="Endemic", IF($I15>0, IF($I15=4,"Unknown",IF($I15=99,"Stopped",$D15)), 0),"Not required") -> Not required | N15: =IF(INTRO!$E$41="Endemic", IF(AND($J15>1,$J15<5), IF($J15=4, "Unknown", E15+F15), 0),"Not required") -> 164846 | O15: =IF(INTRO!$E$43="Endemic", IF(AND($K15>0,$K15<5), IF($K15=4,"Unknown", IF($K15=1, $F15*0.33, IF($K15=2, $F15*0.5+$G15*0.2, SUM(F15:G15)))), 0),"Not required") -> 104687.4 | R15: 2 | S15: 1
A16: =IF(INTRO!$E$33<>0,INTRO!$E$33, " ") -> RWANDA | B16: Southern | C16: Kamonyi | D16: 435049.4582 | E16: =IF(INTRO!$E$48="","",ROUND($D16*INTRO!$E$48,0)) -> 50901 | F16: =IF(INTRO!$E$49="","",ROUND($D16*INTRO!$E$49,0)) -> 125294 | G16: =IF(INTRO!$E$50="","",ROUND($D16*INTRO!$E$50,0)) -> 246238 | J16: 2 | K16: 3 | L16: =IF(INTRO!$E$37="Endemic",IF($H16>0,IF($H16=4,"Unknown",IF($H16=99,"Stopped",$D16)),0),"Not required") -> Not required | M16: =IF(INTRO!$E$39="Endemic", IF($I16>0, IF($I16=4,"Unknown",IF($I16=99,"Stopped",$D16)), 0),"Not required") -> Not required | N16: =IF(INTRO!$E$41="Endemic", IF(AND($J16>1,$J16<5), IF($J16=4, "Unknown", E16+F16), 0),"Not required") -> 176195 | O16: =IF(INTRO!$E$43="Endemic", IF(AND($K16>0,$K16<5), IF($K16=4,"Unknown", IF($K16=1, $F16*0.33, IF($K16=2, $F16*0.5+$G16*0.2, SUM(F16:G16)))), 0),"Not required") -> 371532 | R16: 2 | S16: 1
A17: =IF(INTRO!$E$33<>0,INTRO!$E$33, " ") -> RWANDA | B17: Western | C17: Karongi | D17: 403432.3855 | E17: =IF(INTRO!$E$48="","",ROUND($D17*INTRO!$E$48,0)) -> 47202 | F17: =IF(INTRO!$E$49="","",ROUND($D17*INTRO!$E$49,0)) -> 116189 | G17: =IF(INTRO!$E$50="","",ROUND($D17*INTRO!$E$50,0)) -> 228343 | J17: 3 | K17: 2 | L17: =IF(INTRO!$E$37="Endemic",IF($H17>0,IF($H17=4,"Unknown",IF($H17=99,"Stopped",$D17)),0),"Not required") -> Not required | M17: =IF(INTRO!$E$39="Endemic", IF($I17>0, IF($I17=4,"Unknown",IF($I17=99,"Stopped",$D17)), 0),"Not required") -> Not required | N17: =IF(INTRO!$E$41="Endemic", IF(AND($J17>1,$J17<5), IF($J17=4, "Unknown", E17+F17), 0),"Not required") -> 163391 | O17: =IF(INTRO!$E$43="Endemic", IF(AND($K17>0,$K17<5), IF($K17=4,"Unknown", IF($K17=1, $F17*0.33, IF($K17=2, $F17*0.5+$G17*0.2, SUM(F17:G17)))), 0),"Not required") -> 103763.1 | R17: 2 | S17: 1
A18: =IF(INTRO!$E$33<>0,INTRO!$E$33, " ") -> RWANDA | B18: Eastern | C18: Kayonza | D18: 483053.5095 | E18: =IF(INTRO!$E$48="","",ROUND($D18*INTRO!$E$48,0)) -> 56517 | F18: =IF(INTRO!$E$49="","",ROUND($D18*INTRO!$E$49,0)) -> 139119 | G18: =IF(INTRO!$E$50="","",ROUND($D18*INTRO!$E$50,0)) -> 273408 | J18: 2 | K18: 3 | L18: =IF(INTRO!$E$37="Endemic",IF($H18>0,IF($H18=4,"Unknown",IF($H18=99,"Stopped",$D18)),0),"Not required") -> Not required | M18: =IF(INTRO!$E$39="Endemic", IF($I18>0, IF($I18=4,"Unknown",IF($I18=99,"Stopped",$D18)), 0),"Not required") -> Not required | N18: =IF(INTRO!$E$41="Endemic", IF(AND($J18>1,$J18<5), IF($J18=4, "Unknown", E18+F18), 0),"Not required") -> 195636 | O18: =IF(INTRO!$E$43="Endemic", IF(AND($K18>0,$K18<5), IF($K18=4,"Unknown", IF($K18=1, $F18*0.33, IF($K18=2, $F18*0.5+$G18*0.2, SUM(F18:G18)))), 0),"Not required") -> 412527 | R18: 2 | S18: 1
A19: =IF(INTRO!$E$33<>0,INTRO!$E$33, " ") -> RWANDA | B19: Kigali | C19: Kicukiro | D19: 431807.0793 | E19: =IF(INTRO!$E$48="","",ROUND($D19*INTRO!$E$48,0)) -> 50521 | F19: =IF(INTRO!$E$49="","",ROUND($D19*INTRO!$E$49,0)) -> 124360 | G19: =IF(INTRO!$E$50="","",ROUND($D19*INTRO!$E$50,0)) -> 244403 | J19: 2 | K19: 2 | L19: =IF(INTRO!$E$37="Endemic",IF($H19>0,IF($H19=4,"Unknown",IF($H19=99,"Stopped",$D19)),0),"Not required") -> Not required | M19: =IF(INTRO!$E$39="Endemic", IF($I19>0, IF($I19=4,"Unknown",IF($I19=99,"Stopped",$D19)), 0),"Not required") -> Not required | N19: =IF(INTRO!$E$41="Endemic", IF(AND($J19>1,$J19<5), IF($J19=4, "Unknown", E19+F19), 0),"Not required") -> 174881 | O19: =IF(INTRO!$E$43="Endemic", IF(AND($K19>0,$K19<5), IF($K19=4,"Unknown", IF($K19=1, $F19*0.33, IF($K19=2, $F19*0.5+$G19*0.2, SUM(F19:G19)))), 0),"Not required") -> 111060.6 | R19: 2 | S19: 1
A20: =IF(INTRO!$E$33<>0,INTRO!$E$33, " ") -> RWANDA | B20: Eastern | C20: Kirehe | D20: 453531.9045 | E20: =IF(INTRO!$E$48="","",ROUND($D20*INTRO!$E$48,0)) -> 53063 | F20: =IF(INTRO!$E$49="","",ROUND($D20*INTRO!$E$49,0)) -> 130617 | G20: =IF(INTRO!$E$50="","",ROUND($D20*INTRO!$E$50,0)) -> 256699 | J20: 2 | K20: 3 | L20: =IF(INTRO!$E$37="Endemic",IF($H20>0,IF($H20=4,"Unknown",IF($H20=99,"Stopped",$D20)),0),"Not required") -> Not required | M20: =IF(INTRO!$E$39="Endemic", IF($I20>0, IF($I20=4,"Unknown",IF($I20=99,"Stopped",$D20)), 0),"Not required") -> Not required | N20: =IF(INTRO!$E$41="Endemic", IF(AND($J20>1,$J20<5), IF($J20=4, "Unknown", E20+F20), 0),"Not required") -> 183680 | O20: =IF(INTRO!$E$43="Endemic", IF(AND($K20>0,$K20<5), IF($K20=4,"Unknown", IF($K20=1, $F20*0.33, IF($K20=2, $F20*0.5+$G20*0.2, SUM(F20:G20)))), 0),"Not required") -> 387316 | R20: 2 | S20: 1
A21: =IF(INTRO!$E$33<>0,INTRO!$E$33, " ") -> RWANDA | B21: Southern | C21: Muhanga | D21: 378533.8853 | E21: =IF(INTRO!$E$48="","",ROUND($D21*INTRO!$E$48,0)) -> 44288 | F21: =IF(INTRO!$E$49="","",ROUND($D21*INTRO!$E$49,0)) -> 109018 | G21: =IF(INTRO!$E$50="","",ROUND($D21*INTRO!$E$50,0)) -> 214250 | J21: 2 | K21: 3 | L21: =IF(INTRO!$E$37="Endemic",IF($H21>0,IF($H21=4,"Unknown",IF($H21=99,"Stopped",$D21)),0),"Not required") -> Not required | M21: =IF(INTRO!$E$39="Endemic", IF($I21>0, IF($I21=4,"Unknown",IF($I21=99,"Stopped",$D21)), 0),"Not required") -> Not required | N21: =IF(INTRO!$E$41="Endemic", IF(AND($J21>1,$J21<5), IF($J21=4, "Unknown", E21+F21), 0),"Not required") -> 153306 | O21: =IF(INTRO!$E$43="Endemic", IF(AND($K21>0,$K21<5), IF($K21=4,"Unknown", IF($K21=1, $F21*0.33, IF($K21=2, $F21*0.5+$G21*0.2, SUM(F21:G21)))), 0),"Not required") -> 323268 | R21: 2 | S21: 1
A22: =IF(INTRO!$E$33<>0,INTRO!$E$33, " ") -> RWANDA | B22: Northern | C22: Musanze | D22: 450398.122 | E22: =IF(INTRO!$E$48="","",ROUND($D22*INTRO!$E$48,0)) -> 52697 | F22: =IF(INTRO!$E$49="","",ROUND($D22*INTRO!$E$49,0)) -> 129715 | G22: =IF(INTRO!$E$50="","",ROUND($D22*INTRO!$E$50,0)) -> 254925 | J22: 3 | K22: 2 | L22: =IF(INTRO!$E$37="Endemic",IF($H22>0,IF($H22=4,"Unknown",IF($H22=99,"Stopped",$D22)),0),"Not required") -> Not required | M22: =IF(INTRO!$E$39="Endemic", IF($I22>0, IF($I22=4,"Unknown",IF($I22=99,"Stopped",$D22)), 0),"Not required") -> Not required | N22: =IF(INTRO!$E$41="Endemic", IF(AND($J22>1,$J22<5), IF($J22=4, "Unknown", E22+F22), 0),"Not required") -> 182412 | O22: =IF(INTRO!$E$43="Endemic", IF(AND($K22>0,$K22<5), IF($K22=4,"Unknown", IF($K22=1, $F22*0.33, IF($K22=2, $F22*0.5+$G22*0.2, SUM(F22:G22)))), 0),"Not required") -> 115842.5 | R22: 2 | S22: 1
A23: =IF(INTRO!$E$33<>0,INTRO!$E$33, " ") -> RWANDA | B23: Eastern | C23: Ngoma | D23: 444699.0261 | E23: =IF(INTRO!$E$48="","",ROUND($D23*INTRO!$E$48,0)) -> 52030 | F23: =IF(INTRO!$E$49="","",ROUND($D23*INTRO!$E$49,0)) -> 128073 | G23: =IF(INTRO!$E$50="","",ROUND($D23*INTRO!$E$50,0)) -> 251700 | J23: 2 | K23: 2 | L23: =IF(INTRO!$E$37="Endemic",IF($H23>0,IF($H23=4,"Unknown",IF($H23=99,"Stopped",$D23)),0),"Not required") -> Not required | M23: =IF(INTRO!$E$39="Endemic", IF($I23>0, IF($I23=4,"Unknown",IF($I23=99,"Stopped",$D23)), 0),"Not required") -> Not required | N23: =IF(INTRO!$E$41="Endemic", IF(AND($J23>1,$J23<5), IF($J23=4, "Unknown", E23+F23), 0),"Not required") -> 180103 | O23: =IF(INTRO!$E$43="Endemic", IF(AND($K23>0,$K23<5), IF($K23=4,"Unknown", IF($K23=1, $F23*0.33, IF($K23=2, $F23*0.5+$G23*0.2, SUM(F23:G23)))), 0),"Not required") -> 114376.5 | R23: 2 | S23: 1
A24: =IF(INTRO!$E$33<>0,INTRO!$E$33, " ") -> RWANDA | B24: Western | C24: Ngororero | D24: 406102.971 | E24: =IF(INTRO!$E$48="","",ROUND($D24*INTRO!$E$48,0)) -> 47514 | F24: =IF(INTRO!$E$49="","",ROUND($D24*INTRO!$E$49,0)) -> 116958 | G24: =IF(INTRO!$E$50="","",ROUND($D24*INTRO!$E$50,0)) -> 229854 | J24: 3 | K24: 3 | L24: =IF(INTRO!$E$37="Endemic",IF($H24>0,IF($H24=4,"Unknown",IF($H24=99,"Stopped",$D24)),0),"Not required") -> Not required | M24: =IF(INTRO!$E$39="Endemic", IF($I24>0, IF($I24=4,"Unknown",IF($I24=99,"Stopped",$D24)), 0),"Not required") -> Not required | N24: =IF(INTRO!$E$41="Endemic", IF(AND($J24>1,$J24<5), IF($J24=4, "Unknown", E24+F24), 0),"Not required") -> 164472 | O24: =IF(INTRO!$E$43="Endemic", IF(AND($K24>0,$K24<5), IF($K24=4,"Unknown", IF($K24=1, $F24*0.33, IF($K24=2, $F24*0.5+$G24*0.2, SUM(F24:G24)))), 0),"Not required") -> 346812 | R24: 2 | S24: 1
A25: =IF(INTRO!$E$33<>0,INTRO!$E$33, " ") -> RWANDA | B25: Western | C25: Nyabihu | D25: 349202.8781 | E25: =IF(INTRO!$E$48="","",ROUND($D25*INTRO!$E$48,0)) -> 40857 | F25: =IF(INTRO!$E$49="","",ROUND($D25*INTRO!$E$49,0)) -> 100570 | G25: =IF(INTRO!$E$50="","",ROUND($D25*INTRO!$E$50,0)) -> 197649 | J25: 3 | K25: 2 | L25: =IF(INTRO!$E$37="Endemic",IF($H25>0,IF($H25=4,"Unknown",IF($H25=99,"Stopped",$D25)),0),"Not required") -> Not required | M25: =IF(INTRO!$E$39="Endemic", IF($I25>0, IF($I25=4,"Unknown",IF($I25=99,"Stopped",$D25)), 0),"Not required") -> Not required | N25: =IF(INTRO!$E$41="Endemic", IF(AND($J25>1,$J25<5), IF($J25=4, "Unknown", E25+F25), 0),"Not required") -> 141427 | O25: =IF(INTRO!$E$43="Endemic", IF(AND($K25>0,$K25<5), IF($K25=4,"Unknown", IF($K25=1, $F25*0.33, IF($K25=2, $F25*0.5+$G25*0.2, SUM(F25:G25)))), 0),"Not required") -> 89814.8 | R25: 2 | S25: 1
A26: =IF(INTRO!$E$33<>0,INTRO!$E$33, " ") -> RWANDA | B26: Eastern | C26: Nyagatare | D26: 684458.8727 | E26: =IF(INTRO!$E$48="","",ROUND($D26*INTRO!$E$48,0)) -> 80082 | F26: =IF(INTRO!$E$49="","",ROUND($D26*INTRO!$E$49,0)) -> 197124 | G26: =IF(INTRO!$E$50="","",ROUND($D26*INTRO!$E$50,0)) -> 387404 | J26: 2 | K26: 2 | L26: =IF(INTRO!$E$37="Endemic",IF($H26>0,IF($H26=4,"Unknown",IF($H26=99,"Stopped",$D26)),0),"Not required") -> Not required | M26: =IF(INTRO!$E$39="Endemic", IF($I26>0, IF($I26=4,"Unknown",IF($I26=99,"Stopped",$D26)), 0),"Not required") -> Not required | N26: =IF(INTRO!$E$41="Endemic", IF(AND($J26>1,$J26<5), IF($J26=4, "Unknown", E26+F26), 0),"Not required") -> 277206 | O26: =IF(INTRO!$E$43="Endemic", IF(AND($K26>0,$K26<5), IF($K26=4,"Unknown", IF($K26=1, $F26*0.33, IF($K26=2, $F26*0.5+$G26*0.2, SUM(F26:G26)))), 0),"Not required") -> 176042.8 | R26: 2 | S26: 1
A27: =IF(INTRO!$E$33<>0,INTRO!$E$33, " ") -> RWANDA | B27: Southern | C27: Nyamagabe | D27: 421269.902 | E27: =IF(INTRO!$E$48="","",ROUND($D27*INTRO!$E$48,0)) -> 49289 | F27: =IF(INTRO!$E$49="","",ROUND($D27*INTRO!$E$49,0)) -> 121326 | G27: =IF(INTRO!$E$50="","",ROUND($D27*INTRO!$E$50,0)) -> 238439 | J27: 3 | K27: 2 | L27: =IF(INTRO!$E$37="Endemic",IF($H27>0,IF($H27=4,"Unknown",IF($H27=99,"Stopped",$D27)),0),"Not required") -> Not required | M27: =IF(INTRO!$E$39="Endemic", IF($I27>0, IF($I27=4,"Unknown",IF($I27=99,"Stopped",$D27)), 0),"Not required") -> Not required | N27: =IF(INTRO!$E$41="Endemic", IF(AND($J27>1,$J27<5), IF($J27=4, "Unknown", E27+F27), 0),"Not required") -> 170615 | O27: =IF(INTRO!$E$43="Endemic", IF(AND($K27>0,$K27<5), IF($K27=4,"Unknown", IF($K27=1, $F27*0.33, IF($K27=2, $F27*0.5+$G27*0.2, SUM(F27:G27)))), 0),"Not required") -> 108350.8 | R27: 2 | S27: 1
A28: =IF(INTRO!$E$33<>0,INTRO!$E$33, " ") -> RWANDA | B28: Western | C28: Nyamasheke | D28: 464896.8525 | E28: =IF(INTRO!$E$48="","",ROUND($D28*INTRO!$E$48,0)) -> 54393 | F28: =IF(INTRO!$E$49="","",ROUND($D28*INTRO!$E$49,0)) -> 133890 | G28: =IF(INTRO!$E$50="","",ROUND($D28*INTRO!$E$50,0)) -> 263132 | J28: 3 | K28: 2 | L28: =IF(INTRO!$E$37="Endemic",IF($H28>0,IF($H28=4,"Unknown",IF($H28=99,"Stopped",$D28)),0),"Not required") -> Not required | M28: =IF(INTRO!$E$39="Endemic", IF($I28>0, IF($I28=4,"Unknown",IF($I28=99,"Stopped",$D28)), 0),"Not required") -> Not required | N28: =IF(INTRO!$E$41="Endemic", IF(AND($J28>1,$J28<5), IF($J28=4, "Unknown", E28+F28), 0),"Not required") -> 188283 | O28: =IF(INTRO!$E$43="Endemic", IF(AND($K28>0,$K28<5), IF($K28=4,"Unknown", IF($K28=1, $F28*0.33, IF($K28=2, $F28*0.5+$G28*0.2, SUM(F28:G28)))), 0),"Not required") -> 119571.4 | R28: 2 | S28: 1
A29: =IF(INTRO!$E$33<>0,INTRO!$E$33, " ") -> RWANDA | B29: Southern | C29: Nyanza | D29: 424959.9641 | E29: =IF(INTRO!$E$48="","",ROUND($D29*INTRO!$E$48,0)) -> 49720 | F29: =IF(INTRO!$E$49="","",ROUND($D29*INTRO!$E$49,0)) -> 122388 | G29: =IF(INTRO!$E$50="","",ROUND($D29*INTRO!$E$50,0)) -> 240527 | J29: 2 | K29: 3 | L29: =IF(INTRO!$E$37="Endemic",IF($H29>0,IF($H29=4,"Unknown",IF($H29=99,"Stopped",$D29)),0),"Not required") -> Not required | M29: =IF(INTRO!$E$39="Endemic", IF($I29>0, IF($I29=4,"Unknown",IF($I29=99,"Stopped",$D29)), 0),"Not required") -> Not required | N29: =IF(INTRO!$E$41="Endemic", IF(AND($J29>1,$J29<5), IF($J29=4, "Unknown", E29+F29), 0),"Not required") -> 172108 | O29: =IF(INTRO!$E$43="Endemic", IF(AND($K29>0,$K29<5), IF($K29=4,"Unknown", IF($K29=1, $F29*0.33, IF($K29=2, $F29*0.5+$G29*0.2, SUM(F29:G29)))), 0),"Not required") -> 362915 | R29: 2 | S29: 1
A30: =IF(INTRO!$E$33<>0,INTRO!$E$33, " ") -> RWANDA | B30: Kigali | C30: Nyarugenge | D30: 353450.3279 | E30: =IF(INTRO!$E$48="","",ROUND($D30*INTRO!$E$48,0)) -> 41354 | F30: =IF(INTRO!$E$49="","",ROUND($D30*INTRO!$E$49,0)) -> 101794 | G30: =IF(INTRO!$E$50="","",ROUND($D30*INTRO!$E$50,0)) -> 200053 | J30: 2 | K30: 2 | L30: =IF(INTRO!$E$37="Endemic",IF($H30>0,IF($H30=4,"Unknown",IF($H30=99,"Stopped",$D30)),0),"Not required") -> Not required | M30: =IF(INTRO!$E$39="Endemic", IF($I30>0, IF($I30=4,"Unknown",IF($I30=99,"Stopped",$D30)), 0),"Not required") -> Not required | N30: =IF(INTRO!$E$41="Endemic", IF(AND($J30>1,$J30<5), IF($J30=4, "Unknown", E30+F30), 0),"Not required") -> 143148 | O30: =IF(INTRO!$E$43="Endemic", IF(AND($K30>0,$K30<5), IF($K30=4,"Unknown", IF($K30=1, $F30*0.33, IF($K30=2, $F30*0.5+$G30*0.2, SUM(F30:G30)))), 0),"Not required") -> 90907.6 | R30: 2 | S30: 1
A31: =IF(INTRO!$E$33<>0,INTRO!$E$33, " ") -> RWANDA | B31: Southern | C31: Nyaruguru | D31: 366912.96 | E31: =IF(INTRO!$E$48="","",ROUND($D31*INTRO!$E$48,0)) -> 42929 | F31: =IF(INTRO!$E$49="","",ROUND($D31*INTRO!$E$49,0)) -> 105671 | G31: =IF(INTRO!$E$50="","",ROUND($D31*INTRO!$E$50,0)) -> 207673 | J31: 3 | K31: 2 | L31: =IF(INTRO!$E$37="Endemic",IF($H31>0,IF($H31=4,"Unknown",IF($H31=99,"Stopped",$D31)),0),"Not required") -> Not required | M31: =IF(INTRO!$E$39="Endemic", IF($I31>0, IF($I31=4,"Unknown",IF($I31=99,"Stopped",$D31)), 0),"Not required") -> Not required | N31: =IF(INTRO!$E$41="Endemic", IF(AND($J31>1,$J31<5), IF($J31=4, "Unknown", E31+F31), 0),"Not required") -> 148600 | O31: =IF(INTRO!$E$43="Endemic", IF(AND($K31>0,$K31<5), IF($K31=4,"Unknown", IF($K31=1, $F31*0.33, IF($K31=2, $F31*0.5+$G31*0.2, SUM(F31:G31)))), 0),"Not required") -> 94370.1 | R31: 2 | S31: 1
A32: =IF(INTRO!$E$33<>0,INTRO!$E$33, " ") -> RWANDA | B32: Western | C32: Rubavu | D32: 528673.9801 | E32: =IF(INTRO!$E$48="","",ROUND($D32*INTRO!$E$48,0)) -> 61855 | F32: =IF(INTRO!$E$49="","",ROUND($D32*INTRO!$E$49,0)) -> 152258 | G32: =IF(INTRO!$E$50="","",ROUND($D32*INTRO!$E$50,0)) -> 299229 | J32: 3 | K32: 2 | L32: =IF(INTRO!$E$37="Endemic",IF($H32>0,IF($H32=4,"Unknown",IF($H32=99,"Stopped",$D32)),0),"Not required") -> Not required | M32: =IF(INTRO!$E$39="Endemic", IF($I32>0, IF($I32=4,"Unknown",IF($I32=99,"Stopped",$D32)), 0),"Not required") -> Not required | N32: =IF(INTRO!$E$41="Endemic", IF(AND($J32>1,$J32<5), IF($J32=4, "Unknown", E32+F32), 0),"Not required") -> 214113 | O32: =IF(INTRO!$E$43="Endemic", IF(AND($K32>0,$K32<5), IF($K32=4,"Unknown", IF($K32=1, $F32*0.33, IF($K32=2, $F32*0.5+$G32*0.2, SUM(F32:G32)))), 0),"Not required") -> 135974.8 | R32: 2 | S32: 1
A33: =IF(INTRO!$E$33<>0,INTRO!$E$33, " ") -> RWANDA | B33: Southern | C33: Ruhango | D33: 403212.9764 | E33: =IF(INTRO!$E$48="","",ROUND($D33*INTRO!$E$48,0)) -> 47176 | F33: =IF(INTRO!$E$49="","",ROUND($D33*INTRO!$E$49,0)) -> 116125 | G33: =IF(INTRO!$E$50="","",ROUND($D33*INTRO!$E$50,0)) -> 228219 | J33: 2 | K33: 2 | L33: =IF(INTRO!$E$37="Endemic",IF($H33>0,IF($H33=4,"Unknown",IF($H33=99,"Stopped",$D33)),0),"Not required") -> Not required | M33: =IF(INTRO!$E$39="Endemic", IF($I33>0, IF($I33=4,"Unknown",IF($I33=99,"Stopped",$D33)), 0),"Not required") -> Not required | N33: =IF(INTRO!$E$41="Endemic", IF(AND($J33>1,$J33<5), IF($J33=4, "Unknown", E33+F33), 0),"Not required") -> 163301 | O33: =IF(INTRO!$E$43="Endemic", IF(AND($K33>0,$K33<5), IF($K33=4,"Unknown", IF($K33=1, $F33*0.33, IF($K33=2, $F33*0.5+$G33*0.2, SUM(F33:G33)))), 0),"Not required") -> 103706.3 | R33: 2 | S33: 1
A34: =IF(INTRO!$E$33<>0,INTRO!$E$33, " ") -> RWANDA | B34: Northern | C34: Rulindo | D34: 346149.9888 | E34: =IF(INTRO!$E$48="","",ROUND($D34*INTRO!$E$48,0)) -> 40500 | F34: =IF(INTRO!$E$49="","",ROUND($D34*INTRO!$E$49,0)) -> 99691 | G34: =IF(INTRO!$E$50="","",ROUND($D34*INTRO!$E$50,0)) -> 195921 | J34: 3 | K34: 3 | L34: =IF(INTRO!$E$37="Endemic",IF($H34>0,IF($H34=4,"Unknown",IF($H34=99,"Stopped",$D34)),0),"Not required") -> Not required | M34: =IF(INTRO!$E$39="Endemic", IF($I34>0, IF($I34=4,"Unknown",IF($I34=99,"Stopped",$D34)), 0),"Not required") -> Not required | N34: =IF(INTRO!$E$41="Endemic", IF(AND($J34>1,$J34<5), IF($J34=4, "Unknown", E34+F34), 0),"Not required") -> 140191 | O34: =IF(INTRO!$E$43="Endemic", IF(AND($K34>0,$K34<5), IF($K34=4,"Unknown", IF($K34=1, $F34*0.33, IF($K34=2, $F34*0.5+$G34*0.2, SUM(F34:G34)))), 0),"Not required") -> 295612 | R34: 2 | S34: 1
A35: =IF(INTRO!$E$33<>0,INTRO!$E$33, " ") -> RWANDA | B35: Western | C35: Rusizi | D35: 498186.0886 | E35: =IF(INTRO!$E$48="","",ROUND($D35*INTRO!$E$48,0)) -> 58288 | F35: =IF(INTRO!$E$49="","",ROUND($D35*INTRO!$E$49,0)) -> 143478 | G35: =IF(INTRO!$E$50="","",ROUND($D35*INTRO!$E$50,0)) -> 281973 | J35: 3 | K35: 2 | L35: =IF(INTRO!$E$37="Endemic",IF($H35>0,IF($H35=4,"Unknown",IF($H35=99,"Stopped",$D35)),0),"Not required") -> Not required | M35: =IF(INTRO!$E$39="Endemic", IF($I35>0, IF($I35=4,"Unknown",IF($I35=99,"Stopped",$D35)), 0),"Not required") -> Not required | N35: =IF(INTRO!$E$41="Endemic", IF(AND($J35>1,$J35<5), IF($J35=4, "Unknown", E35+F35), 0),"Not required") -> 201766 | O35: =IF(INTRO!$E$43="Endemic", IF(AND($K35>0,$K35<5), IF($K35=4,"Unknown", IF($K35=1, $F35*0.33, IF($K35=2, $F35*0.5+$G35*0.2, SUM(F35:G35)))), 0),"Not required") -> 128133.6 | R35: 2 | S35: 1
A36: =IF(INTRO!$E$33<>0,INTRO!$E$33, " ") -> RWANDA | B36: Western | C36: Rutsiro | D36: 397473.9879 | E36: =IF(INTRO!$E$48="","",ROUND($D36*INTRO!$E$48,0)) -> 46504 | F36: =IF(INTRO!$E$49="","",ROUND($D36*INTRO!$E$49,0)) -> 114473 | G36: =IF(INTRO!$E$50="","",ROUND($D36*INTRO!$E$50,0)) -> 224970 | J36: 3 | K36: 2 | L36: =IF(INTRO!$E$37="Endemic",IF($H36>0,IF($H36=4,"Unknown",IF($H36=99,"Stopped",$D36)),0),"Not required") -> Not required | M36: =IF(INTRO!$E$39="Endemic", IF($I36>0, IF($I36=4,"Unknown",IF($I36=99,"Stopped",$D36)), 0),"Not required") -> Not required | N36: =IF(INTRO!$E$41="Endemic", IF(AND($J36>1,$J36<5), IF($J36=4, "Unknown", E36+F36), 0),"Not required") -> 160977 | O36: =IF(INTRO!$E$43="Endemic", IF(AND($K36>0,$K36<5), IF($K36=4,"Unknown", IF($K36=1, $F36*0.33, IF($K36=2, $F36*0.5+$G36*0.2, SUM(F36:G36)))), 0),"Not required") -> 102230.5 | R36: 2 | S36: 1
A37: =IF(INTRO!$E$33<>0,INTRO!$E$33, " ") -> RWANDA | B37: Eastern | C37: Rwamagana | D37: 404780.9758 | E37: =IF(INTRO!$E$48="","",ROUND($D37*INTRO!$E$48,0)) -> 47359 | F37: =IF(INTRO!$E$49="","",ROUND($D37*INTRO!$E$49,0)) -> 116577 | G37: =IF(INTRO!$E$50="","",ROUND($D37*INTRO!$E$50,0)) -> 229106 | J37: 2 | K37: 2 | L37: =IF(INTRO!$E$37="Endemic",IF($H37>0,IF($H37=4,"Unknown",IF($H37=99,"Stopped",$D37)),0),"Not required") -> Not required | M37: =IF(INTRO!$E$39="Endemic", IF($I37>0, IF($I37=4,"Unknown",IF($I37=99,"Stopped",$D37)), 0),"Not required") -> Not required | N37: =IF(INTRO!$E$41="Endemic", IF(AND($J37>1,$J37<5), IF($J37=4, "Unknown", E37+F37), 0),"Not required") -> 163936 | O37: =IF(INTRO!$E$43="Endemic", IF(AND($K37>0,$K37<5), IF($K37=4,"Unknown", IF($K37=1, $F37*0.33, IF($K37=2, $F37*0.5+$G37*0.2, SUM(F37:G37)))), 0),"Not required") -> 104109.7 | R37: 2 | S37: 1

Sheet DEC (hidden)
A1: Diethylcarbamazine citrate (DEC)
A2: Administrative structure, eligible population by age group, treatment plan and information about tablets
A4: TOTAL | D4: =SUM(D$9:D$1000) -> 0 | E4: =SUM(E$9:E$1000) -> 0 | F4: =SUM(F$9:F$1000) -> 0 | G4: =SUM(G$9:G$1000) -> 0 | I4: =SUM(I$9:I$1000) -> 0 | J4: =SUM(J$9:J$1000) -> 0 | K4: =SUM(K$9:K$1000) -> 0 | L4: =SUM(L$9:L$1000) -> 0 | M4: =SUM(M$9:M$1000) -> 0
A6: Country administrative structure | D6: Population requiring treatment with DEC | H6: Treatment plan | I6: Target population | J6: Diethylcarbamazine citrate (DEC)
A7: Country | B7: Province/State | C7: District | D7: PreSAC | E7: SAC | F7: Adults | G7: Total | H7: LF | I7: LF | J7: Total required | K7: Remaining in stock | L7: Tablets to be procured | M7: Bottle (100 mg) 1000 tablets
A9: =IF(INTRO!$E$39<>"Non-endemic", " ", IF(INTRO!$E$37="Non-endemic"," ", IF(COUNTRY_INFO!A8=0," ",COUNTRY_INFO!A8))) ->  | B9: =IF(INTRO!$E$39<>"Non-endemic", " ", IF(INTRO!$E$37="Non-endemic"," ", IF(COUNTRY_INFO!B8=0," ",COUNTRY_INFO!B8))) ->  | C9: =IF(INTRO!$E$39<>"Non-endemic", " ", IF(INTRO!$E$37="Non-endemic"," ", IF(COUNTRY_INFO!C8=0," ",COUNTRY_INFO!C8))) ->  | D9: =IF(INTRO!$E$39<>"Non-endemic", 0, IF(INTRO!$E$37="Non-endemic",0,IF(COUNTRY_INFO!$H8=1,COUNTRY_INFO!E8,0))) -> 0 | E9: =IF(INTRO!$E$39<>"Non-endemic", 0, IF(INTRO!$E$37="Non-endemic",0,IF(COUNTRY_INFO!$H8=1,COUNTRY_INFO!F8,0))) -> 0 | F9: =IF(INTRO!$E$39<>"Non-endemic", 0, IF(INTRO!$E$37="Non-endemic",0,IF(COUNTRY_INFO!$H8=1,COUNTRY_INFO!G8,0))) -> 0 | G9: =SUM(D9:F9) -> 0 | H9: =IF(INTRO!$E$39="Non-endemic",IF(INTRO!$E$37="Non-endemic","Not required",COUNTRY_INFO!P8),"Treat with IVM") -> Not required | I9: =IF(H9=1,G9,0) -> 0 | J9: =IF(I9>0,I9*2.5,0) -> 0 | L9: =IF($J9>$K9,$J9-$K9,0) -> 0 | M9: =ROUNDUP($J9/1000,0) -> 0
A10: =IF(INTRO!$E$39<>"Non-endemic", " ", IF(INTRO!$E$37="Non-endemic"," ", IF(COUNTRY_INFO!A9=0," ",COUNTRY_INFO!A9))) ->  | B10: =IF(INTRO!$E$39<>"Non-endemic", " ", IF(INTRO!$E$37="Non-endemic"," ", IF(COUNTRY_INFO!B9=0," ",COUNTRY_INFO!B9))) ->  | C10: =IF(INTRO!$E$39<>"Non-endemic", " ", IF(INTRO!$E$37="Non-endemic"," ", IF(COUNTRY_INFO!C9=0," ",COUNTRY_INFO!C9))) ->  | D10: =IF(INTRO!$E$39<>"Non-endemic", 0, IF(INTRO!$E$37="Non-endemic",0,IF(COUNTRY_INFO!$H9=1,COUNTRY_INFO!E9,0))) -> 0 | E10: =IF(INTRO!$E$39<>"Non-endemic", 0, IF(INTRO!$E$37="Non-endemic",0,IF(COUNTRY_INFO!$H9=1,COUNTRY_INFO!F9,0))) -> 0 | F10: =IF(INTRO!$E$39<>"Non-endemic", 0, IF(INTRO!$E$37="Non-endemic",0,IF(COUNTRY_INFO!$H9=1,COUNTRY_INFO!G9,0))) -> 0 | G10: 0 | H10: =IF(INTRO!$E$39="Non-endemic",IF(INTRO!$E$37="Non-endemic","Not required",COUNTRY_INFO!P9),"Treat with IVM") -> Not required | I10: 0 | J10: 0 | L10: 0 | M10: 0
A11: =IF(INTRO!$E$39<>"Non-endemic", " ", IF(INTRO!$E$37="Non-endemic"," ", IF(COUNTRY_INFO!A10=0," ",COUNTRY_INFO!A10))) ->  | B11: =IF(INTRO!$E$39<>"Non-endemic", " ", IF(INTRO!$E$37="Non-endemic"," ", IF(COUNTRY_INFO!B10=0," ",COUNTRY_INFO!B10))) ->  | C11: =IF(INTRO!$E$39<>"Non-endemic", " ", IF(INTRO!$E$37="Non-endemic"," ", IF(COUNTRY_INFO!C10=0," ",COUNTRY_INFO!C10))) ->  | D11: =IF(INTRO!$E$39<>"Non-endemic", 0, IF(INTRO!$E$37="Non-endemic",0,IF(COUNTRY_INFO!$H10=1,COUNTRY_INFO!E10,0))) -> 0 | E11: =IF(INTRO!$E$39<>"Non-endemic", 0, IF(INTRO!$E$37="Non-endemic",0,IF(COUNTRY_INFO!$H10=1,COUNTRY_INFO!F10,0))) -> 0 | F11: =IF(INTRO!$E$39<>"Non-endemic", 0, IF(INTRO!$E$37="Non-endemic",0,IF(COUNTRY_INFO!$H10=1,COUNTRY_INFO!G10,0))) -> 0 | G11: 0 | H11: =IF(INTRO!$E$39="Non-endemic",IF(INTRO!$E$37="Non-endemic","Not required",COUNTRY_INFO!P10),"Treat with IVM") -> Not required | I11: 0 | J11: 0 | L11: 0 | M11: 0
A12: =IF(INTRO!$E$39<>"Non-endemic", " ", IF(INTRO!$E$37="Non-endemic"," ", IF(COUNTRY_INFO!A11=0," ",COUNTRY_INFO!A11))) ->  | B12: =IF(INTRO!$E$39<>"Non-endemic", " ", IF(INTRO!$E$37="Non-endemic"," ", IF(COUNTRY_INFO!B11=0," ",COUNTRY_INFO!B11))) ->  | C12: =IF(INTRO!$E$39<>"Non-endemic", " ", IF(INTRO!$E$37="Non-endemic"," ", IF(COUNTRY_INFO!C11=0," ",COUNTRY_INFO!C11))) ->  | D12: =IF(INTRO!$E$39<>"Non-endemic", 0, IF(INTRO!$E$37="Non-endemic",0,IF(COUNTRY_INFO!$H11=1,COUNTRY_INFO!E11,0))) -> 0 | E12: =IF(INTRO!$E$39<>"Non-endemic", 0, IF(INTRO!$E$37="Non-endemic",0,IF(COUNTRY_INFO!$H11=1,COUNTRY_INFO!F11,0))) -> 0 | F12: =IF(INTRO!$E$39<>"Non-endemic", 0, IF(INTRO!$E$37="Non-endemic",0,IF(COUNTRY_INFO!$H11=1,COUNTRY_INFO!G11,0))) -> 0 | G12: 0 | H12: =IF(INTRO!$E$39="Non-endemic",IF(INTRO!$E$37="Non-endemic","Not required",COUNTRY_INFO!P11),"Treat with IVM") -> Not required | I12: 0 | J12: 0 | L12: 0 | M12: 0
A13: =IF(INTRO!$E$39<>"Non-endemic", " ", IF(INTRO!$E$37="Non-endemic"," ", IF(COUNTRY_INFO!A12=0," ",COUNTRY_INFO!A12))) ->  | B13: =IF(INTRO!$E$39<>"Non-endemic", " ", IF(INTRO!$E$37="Non-endemic"," ", IF(COUNTRY_INFO!B12=0," ",COUNTRY_INFO!B12))) ->  | C13: =IF(INTRO!$E$39<>"Non-endemic", " ", IF(INTRO!$E$37="Non-endemic"," ", IF(COUNTRY_INFO!C12=0," ",COUNTRY_INFO!C12))) ->  | D13: =IF(INTRO!$E$39<>"Non-endemic", 0, IF(INTRO!$E$37="Non-endemic",0,IF(COUNTRY_INFO!$H12=1,COUNTRY_INFO!E12,0))) -> 0 | E13: =IF(INTRO!$E$39<>"Non-endemic", 0, IF(INTRO!$E$37="Non-endemic",0,IF(COUNTRY_INFO!$H12=1,COUNTRY_INFO!F12,0))) -> 0 | F13: =IF(INTRO!$E$39<>"Non-endemic", 0, IF(INTRO!$E$37="Non-endemic",0,IF(COUNTRY_INFO!$H12=1,COUNTRY_INFO!G12,0))) -> 0 | G13: 0 | H13: =IF(INTRO!$E$39="Non-endemic",IF(INTRO!$E$37="Non-endemic","Not required",COUNTRY_INFO!P12),"Treat with IVM") -> Not required | I13: 0 | J13: 0 | L13: 0 | M13: 0
A14: =IF(INTRO!$E$39<>"Non-endemic", " ", IF(INTRO!$E$37="Non-endemic"," ", IF(COUNTRY_INFO!A13=0," ",COUNTRY_INFO!A13))) ->  | B14: =IF(INTRO!$E$39<>"Non-endemic", " ", IF(INTRO!$E$37="Non-endemic"," ", IF(COUNTRY_INFO!B13=0," ",COUNTRY_INFO!B13))) ->  | C14: =IF(INTRO!$E$39<>"Non-endemic", " ", IF(INTRO!$E$37="Non-endemic"," ", IF(COUNTRY_INFO!C13=0," ",COUNTRY_INFO!C13))) ->  | D14: =IF(INTRO!$E$39<>"Non-endemic", 0, IF(INTRO!$E$37="Non-endemic",0,IF(COUNTRY_INFO!$H13=1,COUNTRY_INFO!E13,0))) -> 0 | E14: =IF(INTRO!$E$39<>"Non-endemic", 0, IF(INTRO!$E$37="Non-endemic",0,IF(COUNTRY_INFO!$H13=1,COUNTRY_INFO!F13,0))) -> 0 | F14: =IF(INTRO!$E$39<>"Non-endemic", 0, IF(INTRO!$E$37="Non-endemic",0,IF(COUNTRY_INFO!$H13=1,COUNTRY_INFO!G13,0))) -> 0 | G14: 0 | H14: =IF(INTRO!$E$39="Non-endemic",IF(INTRO!$E$37="Non-endemic","Not required",COUNTRY_INFO!P13),"Treat with IVM") -> Not required | I14: 0 | J14: 0 | L14: 0 | M14: 0
A15: =IF(INTRO!$E$39<>"Non-endemic", " ", IF(INTRO!$E$37="Non-endemic"," ", IF(COUNTRY_INFO!A14=0," ",COUNTRY_INFO!A14))) ->  | B15: =IF(INTRO!$E$39<>"Non-endemic", " ", IF(INTRO!$E$37="Non-endemic"," ", IF(COUNTRY_INFO!B14=0," ",COUNTRY_INFO!B14))) ->  | C15: =IF(INTRO!$E$39<>"Non-endemic", " ", IF(INTRO!$E$37="Non-endemic"," ", IF(COUNTRY_INFO!C14=0," ",COUNTRY_INFO!C14))) ->  | D15: =IF(INTRO!$E$39<>"Non-endemic", 0, IF(INTRO!$E$37="Non-endemic",0,IF(COUNTRY_INFO!$H14=1,COUNTRY_INFO!E14,0))) -> 0 | E15: =IF(INTRO!$E$39<>"Non-endemic", 0, IF(INTRO!$E$37="Non-endemic",0,IF(COUNTRY_INFO!$H14=1,COUNTRY_INFO!F14,0))) -> 0 | F15: =IF(INTRO!$E$39<>"Non-endemic", 0, IF(INTRO!$E$37="Non-endemic",0,IF(COUNTRY_INFO!$H14=1,COUNTRY_INFO!G14,0))) -> 0 | G15: 0 | H15: =IF(INTRO!$E$39="Non-endemic",IF(INTRO!$E$37="Non-endemic","Not required",COUNTRY_INFO!P14),"Treat with IVM") -> Not required | I15: 0 | J15: 0 | L15: 0 | M15: 0
A16: =IF(INTRO!$E$39<>"Non-endemic", " ", IF(INTRO!$E$37="Non-endemic"," ", IF(COUNTRY_INFO!A15=0," ",COUNTRY_INFO!A15))) ->  | B16: =IF(INTRO!$E$39<>"Non-endemic", " ", IF(INTRO!$E$37="Non-endemic"," ", IF(COUNTRY_INFO!B15=0," ",COUNTRY_INFO!B15))) ->  | C16: =IF(INTRO!$E$39<>"Non-endemic", " ", IF(INTRO!$E$37="Non-endemic"," ", IF(COUNTRY_INFO!C15=0," ",COUNTRY_INFO!C15))) ->  | D16: =IF(INTRO!$E$39<>"Non-endemic", 0, IF(INTRO!$E$37="Non-endemic",0,IF(COUNTRY_INFO!$H15=1,COUNTRY_INFO!E15,0))) -> 0 | E16: =IF(INTRO!$E$39<>"Non-endemic", 0, IF(INTRO!$E$37="Non-endemic",0,IF(COUNTRY_INFO!$H15=1,COUNTRY_INFO!F15,0))) -> 0 | F16: =IF(INTRO!$E$39<>"Non-endemic", 0, IF(INTRO!$E$37="Non-endemic",0,IF(COUNTRY_INFO!$H15=1,COUNTRY_INFO!G15,0))) -> 0 | G16: 0 | H16: =IF(INTRO!$E$39="Non-endemic",IF(INTRO!$E$37="Non-endemic","Not required",COUNTRY_INFO!P15),"Treat with IVM") -> Not required | I16: 0 | J16: 0 | L16: 0 | M16: 0
A17: =IF(INTRO!$E$39<>"Non-endemic", " ", IF(INTRO!$E$37="Non-endemic"," ", IF(COUNTRY_INFO!A16=0," ",COUNTRY_INFO!A16))) ->  | B17: =IF(INTRO!$E$39<>"Non-endemic", " ", IF(INTRO!$E$37="Non-endemic"," ", IF(COUNTRY_INFO!B16=0," ",COUNTRY_INFO!B16))) ->  | C17: =IF(INTRO!$E$39<>"Non-endemic", " ", IF(INTRO!$E$37="Non-endemic"," ", IF(COUNTRY_INFO!C16=0," ",COUNTRY_INFO!C16))) ->  | D17: =IF(INTRO!$E$39<>"Non-endemic", 0, IF(INTRO!$E$37="Non-endemic",0,IF(COUNTRY_INFO!$H16=1,COUNTRY_INFO!E16,0))) -> 0 | E17: =IF(INTRO!$E$39<>"Non-endemic", 0, IF(INTRO!$E$37="Non-endemic",0,IF(COUNTRY_INFO!$H16=1,COUNTRY_INFO!F16,0))) -> 0 | F17: =IF(INTRO!$E$39<>"Non-endemic", 0, IF(INTRO!$E$37="Non-endemic",0,IF(COUNTRY_INFO!$H16=1,COUNTRY_INFO!G16,0))) -> 0 | G17: 0 | H17: =IF(INTRO!$E$39="Non-endemic",IF(INTRO!$E$37="Non-endemic","Not required",COUNTRY_INFO!P16),"Treat with IVM") -> Not required | I17: 0 | J17: 0 | L17: 0 | M17: 0
A18: =IF(INTRO!$E$39<>"Non-endemic", " ", IF(INTRO!$E$37="Non-endemic"," ", IF(COUNTRY_INFO!A17=0," ",COUNTRY_INFO!A17))) ->  | B18: =IF(INTRO!$E$39<>"Non-endemic", " ", IF(INTRO!$E$37="Non-endemic"," ", IF(COUNTRY_INFO!B17=0," ",COUNTRY_INFO!B17))) ->  | C18: =IF(INTRO!$E$39<>"Non-endemic", " ", IF(INTRO!$E$37="Non-endemic"," ", IF(COUNTRY_INFO!C17=0," ",COUNTRY_INFO!C17))) ->  | D18: =IF(INTRO!$E$39<>"Non-endemic", 0, IF(INTRO!$E$37="Non-endemic",0,IF(COUNTRY_INFO!$H17=1,COUNTRY_INFO!E17,0))) -> 0 | E18: =IF(INTRO!$E$39<>"Non-endemic", 0, IF(INTRO!$E$37="Non-endemic",0,IF(COUNTRY_INFO!$H17=1,COUNTRY_INFO!F17,0))) -> 0 | F18: =IF(INTRO!$E$39<>"Non-endemic", 0, IF(INTRO!$E$37="Non-endemic",0,IF(COUNTRY_INFO!$H17=1,COUNTRY_INFO!G17,0))) -> 0 | G18: 0 | H18: =IF(INTRO!$E$39="Non-endemic",IF(INTRO!$E$37="Non-endemic","Not required",COUNTRY_INFO!P17),"Treat with IVM") -> Not required | I18: 0 | J18: 0 | L18: 0 | M18: 0
A19: =IF(INTRO!$E$39<>"Non-endemic", " ", IF(INTRO!$E$37="Non-endemic"," ", IF(COUNTRY_INFO!A18=0," ",COUNTRY_INFO!A18))) ->  | B19: =IF(INTRO!$E$39<>"Non-endemic", " ", IF(INTRO!$E$37="Non-endemic"," ", IF(COUNTRY_INFO!B18=0," ",COUNTRY_INFO!B18))) ->  | C19: =IF(INTRO!$E$39<>"Non-endemic", " ", IF(INTRO!$E$37="Non-endemic"," ", IF(COUNTRY_INFO!C18=0," ",COUNTRY_INFO!C18))) ->  | D19: =IF(INTRO!$E$39<>"Non-endemic", 0, IF(INTRO!$E$37="Non-endemic",0,IF(COUNTRY_INFO!$H18=1,COUNTRY_INFO!E18,0))) -> 0 | E19: =IF(INTRO!$E$39<>"Non-endemic", 0, IF(INTRO!$E$37="Non-endemic",0,IF(COUNTRY_INFO!$H18=1,COUNTRY_INFO!F18,0))) -> 0 | F19: =IF(INTRO!$E$39<>"Non-endemic", 0, IF(INTRO!$E$37="Non-endemic",0,IF(COUNTRY_INFO!$H18=1,COUNTRY_INFO!G18,0))) -> 0 | G19: 0 | H19: =IF(INTRO!$E$39="Non-endemic",IF(INTRO!$E$37="Non-endemic","Not required",COUNTRY_INFO!P18),"Treat with IVM") -> Not required | I19: 0 | J19: 0 | L19: 0 | M19: 0
A20: =IF(INTRO!$E$39<>"Non-endemic", " ", IF(INTRO!$E$37="Non-endemic"," ", IF(COUNTRY_INFO!A19=0," ",COUNTRY_INFO!A19))) ->  | B20: =IF(INTRO!$E$39<>"Non-endemic", " ", IF(INTRO!$E$37="Non-endemic"," ", IF(COUNTRY_INFO!B19=0," ",COUNTRY_INFO!B19))) ->  | C20: =IF(INTRO!$E$39<>"Non-endemic", " ", IF(INTRO!$E$37="Non-endemic"," ", IF(COUNTRY_INFO!C19=0," ",COUNTRY_INFO!C19))) ->  | D20: =IF(INTRO!$E$39<>"Non-endemic", 0, IF(INTRO!$E$37="Non-endemic",0,IF(COUNTRY_INFO!$H19=1,COUNTRY_INFO!E19,0))) -> 0 | E20: =IF(INTRO!$E$39<>"Non-endemic", 0, IF(INTRO!$E$37="Non-endemic",0,IF(COUNTRY_INFO!$H19=1,COUNTRY_INFO!F19,0))) -> 0 | F20: =IF(INTRO!$E$39<>"Non-endemic", 0, IF(INTRO!$E$37="Non-endemic",0,IF(COUNTRY_INFO!$H19=1,COUNTRY_INFO!G19,0))) -> 0 | G20: 0 | H20: =IF(INTRO!$E$39="Non-endemic",IF(INTRO!$E$37="Non-endemic","Not required",COUNTRY_INFO!P19),"Treat with IVM") -> Not required | I20: 0 | J20: 0 | L20: 0 | M20: 0
A21: =IF(INTRO!$E$39<>"Non-endemic", " ", IF(INTRO!$E$37="Non-endemic"," ", IF(COUNTRY_INFO!A20=0," ",COUNTRY_INFO!A20))) ->  | B21: =IF(INTRO!$E$39<>"Non-endemic", " ", IF(INTRO!$E$37="Non-endemic"," ", IF(COUNTRY_INFO!B20=0," ",COUNTRY_INFO!B20))) ->  | C21: =IF(INTRO!$E$39<>"Non-endemic", " ", IF(INTRO!$E$37="Non-endemic"," ", IF(COUNTRY_INFO!C20=0," ",COUNTRY_INFO!C20))) ->  | D21: =IF(INTRO!$E$39<>"Non-endemic", 0, IF(INTRO!$E$37="Non-endemic",0,IF(COUNTRY_INFO!$H20=1,COUNTRY_INFO!E20,0))) -> 0 | E21: =IF(INTRO!$E$39<>"Non-endemic", 0, IF(INTRO!$E$37="Non-endemic",0,IF(COUNTRY_INFO!$H20=1,COUNTRY_INFO!F20,0))) -> 0 | F21: =IF(INTRO!$E$39<>"Non-endemic", 0, IF(INTRO!$E$37="Non-endemic",0,IF(COUNTRY_INFO!$H20=1,COUNTRY_INFO!G20,0))) -> 0 | G21: 0 | H21: =IF(INTRO!$E$39="Non-endemic",IF(INTRO!$E$37="Non-endemic","Not required",COUNTRY_INFO!P20),"Treat with IVM") -> Not required | I21: 0 | J21: 0 | L21: 0 | M21: 0
A22: =IF(INTRO!$E$39<>"Non-endemic", " ", IF(INTRO!$E$37="Non-endemic"," ", IF(COUNTRY_INFO!A21=0," ",COUNTRY_INFO!A21))) ->  | B22: =IF(INTRO!$E$39<>"Non-endemic", " ", IF(INTRO!$E$37="Non-endemic"," ", IF(COUNTRY_INFO!B21=0," ",COUNTRY_INFO!B21))) ->  | C22: =IF(INTRO!$E$39<>"Non-endemic", " ", IF(INTRO!$E$37="Non-endemic"," ", IF(COUNTRY_INFO!C21=0," ",COUNTRY_INFO!C21))) ->  | D22: =IF(INTRO!$E$39<>"Non-endemic", 0, IF(INTRO!$E$37="Non-endemic",0,IF(COUNTRY_INFO!$H21=1,COUNTRY_INFO!E21,0))) -> 0 | E22: =IF(INTRO!$E$39<>"Non-endemic", 0, IF(INTRO!$E$37="Non-endemic",0,IF(COUNTRY_INFO!$H21=1,COUNTRY_INFO!F21,0))) -> 0 | F22: =IF(INTRO!$E$39<>"Non-endemic", 0, IF(INTRO!$E$37="Non-endemic",0,IF(COUNTRY_INFO!$H21=1,COUNTRY_INFO!G21,0))) -> 0 | G22: 0 | H22: =IF(INTRO!$E$39="Non-endemic",IF(INTRO!$E$37="Non-endemic","Not required",COUNTRY_INFO!P21),"Treat with IVM") -> Not required | I22: 0 | J22: 0 | L22: 0 | M22: 0
A23: =IF(INTRO!$E$39<>"Non-endemic", " ", IF(INTRO!$E$37="Non-endemic"," ", IF(COUNTRY_INFO!A22=0," ",COUNTRY_INFO!A22))) ->  | B23: =IF(INTRO!$E$39<>"Non-endemic", " ", IF(INTRO!$E$37="Non-endemic"," ", IF(COUNTRY_INFO!B22=0," ",COUNTRY_INFO!B22))) ->  | C23: =IF(INTRO!$E$39<>"Non-endemic", " ", IF(INTRO!$E$37="Non-endemic"," ", IF(COUNTRY_INFO!C22=0," ",COUNTRY_INFO!C22))) ->  | D23: =IF(INTRO!$E$39<>"Non-endemic", 0, IF(INTRO!$E$37="Non-endemic",0,IF(COUNTRY_INFO!$H22=1,COUNTRY_INFO!E22,0))) -> 0 | E23: =IF(INTRO!$E$39<>"Non-endemic", 0, IF(INTRO!$E$37="Non-endemic",0,IF(COUNTRY_INFO!$H22=1,COUNTRY_INFO!F22,0))) -> 0 | F23: =IF(INTRO!$E$39<>"Non-endemic", 0, IF(INTRO!$E$37="Non-endemic",0,IF(COUNTRY_INFO!$H22=1,COUNTRY_INFO!G22,0))) -> 0 | G23: 0 | H23: =IF(INTRO!$E$39="Non-endemic",IF(INTRO!$E$37="Non-endemic","Not required",COUNTRY_INFO!P22),"Treat with IVM") -> Not required | I23: 0 | J23: 0 | L23: 0 | M23: 0
A24: =IF(INTRO!$E$39<>"Non-endemic", " ", IF(INTRO!$E$37="Non-endemic"," ", IF(COUNTRY_INFO!A23=0," ",COUNTRY_INFO!A23))) ->  | B24: =IF(INTRO!$E$39<>"Non-endemic", " ", IF(INTRO!$E$37="Non-endemic"," ", IF(COUNTRY_INFO!B23=0," ",COUNTRY_INFO!B23))) ->  | C24: =IF(INTRO!$E$39<>"Non-endemic", " ", IF(INTRO!$E$37="Non-endemic"," ", IF(COUNTRY_INFO!C23=0," ",COUNTRY_INFO!C23))) ->  | D24: =IF(INTRO!$E$39<>"Non-endemic", 0, IF(INTRO!$E$37="Non-endemic",0,IF(COUNTRY_INFO!$H23=1,COUNTRY_INFO!E23,0))) -> 0 | E24: =IF(INTRO!$E$39<>"Non-endemic", 0, IF(INTRO!$E$37="Non-endemic",0,IF(COUNTRY_INFO!$H23=1,COUNTRY_INFO!F23,0))) -> 0 | F24: =IF(INTRO!$E$39<>"Non-endemic", 0, IF(INTRO!$E$37="Non-endemic",0,IF(COUNTRY_INFO!$H23=1,COUNTRY_INFO!G23,0))) -> 0 | G24: 0 | H24: =IF(INTRO!$E$39="Non-endemic",IF(INTRO!$E$37="Non-endemic","Not required",COUNTRY_INFO!P23),"Treat with IVM") -> Not required | I24: 0 | J24: 0 | L24: 0 | M24: 0
A25: =IF(INTRO!$E$39<>"Non-endemic", " ", IF(INTRO!$E$37="Non-endemic"," ", IF(COUNTRY_INFO!A24=0," ",COUNTRY_INFO!A24))) ->  | B25: =IF(INTRO!$E$39<>"Non-endemic", " ", IF(INTRO!$E$37="Non-endemic"," ", IF(COUNTRY_INFO!B24=0," ",COUNTRY_INFO!B24))) ->  | C25: =IF(INTRO!$E$39<>"Non-endemic", " ", IF(INTRO!$E$37="Non-endemic"," ", IF(COUNTRY_INFO!C24=0," ",COUNTRY_INFO!C24))) ->  | D25: =IF(INTRO!$E$39<>"Non-endemic", 0, IF(INTRO!$E$37="Non-endemic",0,IF(COUNTRY_INFO!$H24=1,COUNTRY_INFO!E24,0))) -> 0 | E25: =IF(INTRO!$E$39<>"Non-endemic", 0, IF(INTRO!$E$37="Non-endemic",0,IF(COUNTRY_INFO!$H24=1,COUNTRY_INFO!F24,0))) -> 0 | F25: =IF(INTRO!$E$39<>"Non-endemic", 0, IF(INTRO!$E$37="Non-endemic",0,IF(COUNTRY_INFO!$H24=1,COUNTRY_INFO!G24,0))) -> 0 | G25: 0 | H25: =IF(INTRO!$E$39="Non-endemic",IF(INTRO!$E$37="Non-endemic","Not required",COUNTRY_INFO!P24),"Treat with IVM") -> Not required | I25: 0 | J25: 0 | L25: 0 | M25: 0
A26: =IF(INTRO!$E$39<>"Non-endemic", " ", IF(INTRO!$E$37="Non-endemic"," ", IF(COUNTRY_INFO!A25=0," ",COUNTRY_INFO!A25))) ->  | B26: =IF(INTRO!$E$39<>"Non-endemic", " ", IF(INTRO!$E$37="Non-endemic"," ", IF(COUNTRY_INFO!B25=0," ",COUNTRY_INFO!B25))) ->  | C26: =IF(INTRO!$E$39<>"Non-endemic", " ", IF(INTRO!$E$37="Non-endemic"," ", IF(COUNTRY_INFO!C25=0," ",COUNTRY_INFO!C25))) ->  | D26: =IF(INTRO!$E$39<>"Non-endemic", 0, IF(INTRO!$E$37="Non-endemic",0,IF(COUNTRY_INFO!$H25=1,COUNTRY_INFO!E25,0))) -> 0 | E26: =IF(INTRO!$E$39<>"Non-endemic", 0, IF(INTRO!$E$37="Non-endemic",0,IF(COUNTRY_INFO!$H25=1,COUNTRY_INFO!F25,0))) -> 0 | F26: =IF(INTRO!$E$39<>"Non-endemic", 0, IF(INTRO!$E$37="Non-endemic",0,IF(COUNTRY_INFO!$H25=1,COUNTRY_INFO!G25,0))) -> 0 | G26: 0 | H26: =IF(INTRO!$E$39="Non-endemic",IF(INTRO!$E$37="Non-endemic","Not required",COUNTRY_INFO!P25),"Treat with IVM") -> Not required | I26: 0 | J26: 0 | L26: 0 | M26: 0
A27: =IF(INTRO!$E$39<>"Non-endemic", " ", IF(INTRO!$E$37="Non-endemic"," ", IF(COUNTRY_INFO!A26=0," ",COUNTRY_INFO!A26))) ->  | B27: =IF(INTRO!$E$39<>"Non-endemic", " ", IF(INTRO!$E$37="Non-endemic"," ", IF(COUNTRY_INFO!B26=0," ",COUNTRY_INFO!B26))) ->  | C27: =IF(INTRO!$E$39<>"Non-endemic", " ", IF(INTRO!$E$37="Non-endemic"," ", IF(COUNTRY_INFO!C26=0," ",COUNTRY_INFO!C26))) ->  | D27: =IF(INTRO!$E$39<>"Non-endemic", 0, IF(INTRO!$E$37="Non-endemic",0,IF(COUNTRY_INFO!$H26=1,COUNTRY_INFO!E26,0))) -> 0 | E27: =IF(INTRO!$E$39<>"Non-endemic", 0, IF(INTRO!$E$37="Non-endemic",0,IF(COUNTRY_INFO!$H26=1,COUNTRY_INFO!F26,0))) -> 0 | F27: =IF(INTRO!$E$39<>"Non-endemic", 0, IF(INTRO!$E$37="Non-endemic",0,IF(COUNTRY_INFO!$H26=1,COUNTRY_INFO!G26,0))) -> 0 | G27: 0 | H27: =IF(INTRO!$E$39="Non-endemic",IF(INTRO!$E$37="Non-endemic","Not required",COUNTRY_INFO!P26),"Treat with IVM") -> Not required | I27: 0 | J27: 0 | L27: 0 | M27: 0
A28: =IF(INTRO!$E$39<>"Non-endemic", " ", IF(INTRO!$E$37="Non-endemic"," ", IF(COUNTRY_INFO!A27=0," ",COUNTRY_INFO!A27))) ->  | B28: =IF(INTRO!$E$39<>"Non-endemic", " ", IF(INTRO!$E$37="Non-endemic"," ", IF(COUNTRY_INFO!B27=0," ",COUNTRY_INFO!B27))) ->  | C28: =IF(INTRO!$E$39<>"Non-endemic", " ", IF(INTRO!$E$37="Non-endemic"," ", IF(COUNTRY_INFO!C27=0," ",COUNTRY_INFO!C27))) ->  | D28: =IF(INTRO!$E$39<>"Non-endemic", 0, IF(INTRO!$E$37="Non-endemic",0,IF(COUNTRY_INFO!$H27=1,COUNTRY_INFO!E27,0))) -> 0 | E28: =IF(INTRO!$E$39<>"Non-endemic", 0, IF(INTRO!$E$37="Non-endemic",0,IF(COUNTRY_INFO!$H27=1,COUNTRY_INFO!F27,0))) -> 0 | F28: =IF(INTRO!$E$39<>"Non-endemic", 0, IF(INTRO!$E$37="Non-endemic",0,IF(COUNTRY_INFO!$H27=1,COUNTRY_INFO!G27,0))) -> 0 | G28: 0 | H28: =IF(INTRO!$E$39="Non-endemic",IF(INTRO!$E$37="Non-endemic","Not required",COUNTRY_INFO!P27),"Treat with IVM") -> Not required | I28: 0 | J28: 0 | L28: 0 | M28: 0
A29: =IF(INTRO!$E$39<>"Non-endemic", " ", IF(INTRO!$E$37="Non-endemic"," ", IF(COUNTRY_INFO!A28=0," ",COUNTRY_INFO!A28))) ->  | B29: =IF(INTRO!$E$39<>"Non-endemic", " ", IF(INTRO!$E$37="Non-endemic"," ", IF(COUNTRY_INFO!B28=0," ",COUNTRY_INFO!B28))) ->  | C29: =IF(INTRO!$E$39<>"Non-endemic", " ", IF(INTRO!$E$37="Non-endemic"," ", IF(COUNTRY_INFO!C28=0," ",COUNTRY_INFO!C28))) ->  | D29: =IF(INTRO!$E$39<>"Non-endemic", 0, IF(INTRO!$E$37="Non-endemic",0,IF(COUNTRY_INFO!$H28=1,COUNTRY_INFO!E28,0))) -> 0 | E29: =IF(INTRO!$E$39<>"Non-endemic", 0, IF(INTRO!$E$37="Non-endemic",0,IF(COUNTRY_INFO!$H28=1,COUNTRY_INFO!F28,0))) -> 0 | F29: =IF(INTRO!$E$39<>"Non-endemic", 0, IF(INTRO!$E$37="Non-endemic",0,IF(COUNTRY_INFO!$H28=1,COUNTRY_INFO!G28,0))) -> 0 | G29: 0 | H29: =IF(INTRO!$E$39="Non-endemic",IF(INTRO!$E$37="Non-endemic","Not required",COUNTRY_INFO!P28),"Treat with IVM") -> Not required | I29: 0 | J29: 0 | L29: 0 | M29: 0
A30: =IF(INTRO!$E$39<>"Non-endemic", " ", IF(INTRO!$E$37="Non-endemic"," ", IF(COUNTRY_INFO!A29=0," ",COUNTRY_INFO!A29))) ->  | B30: =IF(INTRO!$E$39<>"Non-endemic", " ", IF(INTRO!$E$37="Non-endemic"," ", IF(COUNTRY_INFO!B29=0," ",COUNTRY_INFO!B29))) ->  | C30: =IF(INTRO!$E$39<>"Non-endemic", " ", IF(INTRO!$E$37="Non-endemic"," ", IF(COUNTRY_INFO!C29=0," ",COUNTRY_INFO!C29))) ->  | D30: =IF(INTRO!$E$39<>"Non-endemic", 0, IF(INTRO!$E$37="Non-endemic",0,IF(COUNTRY_INFO!$H29=1,COUNTRY_INFO!E29,0))) -> 0 | E30: =IF(INTRO!$E$39<>"Non-endemic", 0, IF(INTRO!$E$37="Non-endemic",0,IF(COUNTRY_INFO!$H29=1,COUNTRY_INFO!F29,0))) -> 0 | F30: =IF(INTRO!$E$39<>"Non-endemic", 0, IF(INTRO!$E$37="Non-endemic",0,IF(COUNTRY_INFO!$H29=1,COUNTRY_INFO!G29,0))) -> 0 | G30: 0 | H30: =IF(INTRO!$E$39="Non-endemic",IF(INTRO!$E$37="Non-endemic","Not required",COUNTRY_INFO!P29),"Treat with IVM") -> Not required | I30: 0 | J30: 0 | L30: 0 | M30: 0
A31: =IF(INTRO!$E$39<>"Non-endemic", " ", IF(INTRO!$E$37="Non-endemic"," ", IF(COUNTRY_INFO!A30=0," ",COUNTRY_INFO!A30))) ->  | B31: =IF(INTRO!$E$39<>"Non-endemic", " ", IF(INTRO!$E$37="Non-endemic"," ", IF(COUNTRY_INFO!B30=0," ",COUNTRY_INFO!B30))) ->  | C31: =IF(INTRO!$E$39<>"Non-endemic", " ", IF(INTRO!$E$37="Non-endemic"," ", IF(COUNTRY_INFO!C30=0," ",COUNTRY_INFO!C30))) ->  | D31: =IF(INTRO!$E$39<>"Non-endemic", 0, IF(INTRO!$E$37="Non-endemic",0,IF(COUNTRY_INFO!$H30=1,COUNTRY_INFO!E30,0))) -> 0 | E31: =IF(INTRO!$E$39<>"Non-endemic", 0, IF(INTRO!$E$37="Non-endemic",0,IF(COUNTRY_INFO!$H30=1,COUNTRY_INFO!F30,0))) -> 0 | F31: =IF(INTRO!$E$39<>"Non-endemic", 0, IF(INTRO!$E$37="Non-endemic",0,IF(COUNTRY_INFO!$H30=1,COUNTRY_INFO!G30,0))) -> 0 | G31: 0 | H31: =IF(INTRO!$E$39="Non-endemic",IF(INTRO!$E$37="Non-endemic","Not required",COUNTRY_INFO!P30),"Treat with IVM") -> Not required | I31: 0 | J31: 0 | L31: 0 | M31: 0
A32: =IF(INTRO!$E$39<>"Non-endemic", " ", IF(INTRO!$E$37="Non-endemic"," ", IF(COUNTRY_INFO!A31=0," ",COUNTRY_INFO!A31))) ->  | B32: =IF(INTRO!$E$39<>"Non-endemic", " ", IF(INTRO!$E$37="Non-endemic"," ", IF(COUNTRY_INFO!B31=0," ",COUNTRY_INFO!B31))) ->  | C32: =IF(INTRO!$E$39<>"Non-endemic", " ", IF(INTRO!$E$37="Non-endemic"," ", IF(COUNTRY_INFO!C31=0," ",COUNTRY_INFO!C31))) ->  | D32: =IF(INTRO!$E$39<>"Non-endemic", 0, IF(INTRO!$E$37="Non-endemic",0,IF(COUNTRY_INFO!$H31=1,COUNTRY_INFO!E31,0))) -> 0 | E32: =IF(INTRO!$E$39<>"Non-endemic", 0, IF(INTRO!$E$37="Non-endemic",0,IF(COUNTRY_INFO!$H31=1,COUNTRY_INFO!F31,0))) -> 0 | F32: =IF(INTRO!$E$39<>"Non-endemic", 0, IF(INTRO!$E$37="Non-endemic",0,IF(COUNTRY_INFO!$H31=1,COUNTRY_INFO!G31,0))) -> 0 | G32: 0 | H32: =IF(INTRO!$E$39="Non-endemic",IF(INTRO!$E$37="Non-endemic","Not required",COUNTRY_INFO!P31),"Treat with IVM") -> Not required | I32: 0 | J32: 0 | L32: 0 | M32: 0
A33: =IF(INTRO!$E$39<>"Non-endemic", " ", IF(INTRO!$E$37="Non-endemic"," ", IF(COUNTRY_INFO!A32=0," ",COUNTRY_INFO!A32))) ->  | B33: =IF(INTRO!$E$39<>"Non-endemic", " ", IF(INTRO!$E$37="Non-endemic"," ", IF(COUNTRY_INFO!B32=0," ",COUNTRY_INFO!B32))) ->  | C33: =IF(INTRO!$E$39<>"Non-endemic", " ", IF(INTRO!$E$37="Non-endemic"," ", IF(COUNTRY_INFO!C32=0," ",COUNTRY_INFO!C32))) ->  | D33: =IF(INTRO!$E$39<>"Non-endemic", 0, IF(INTRO!$E$37="Non-endemic",0,IF(COUNTRY_INFO!$H32=1,COUNTRY_INFO!E32,0))) -> 0 | E33: =IF(INTRO!$E$39<>"Non-endemic", 0, IF(INTRO!$E$37="Non-endemic",0,IF(COUNTRY_INFO!$H32=1,COUNTRY_INFO!F32,0))) -> 0 | F33: =IF(INTRO!$E$39<>"Non-endemic", 0, IF(INTRO!$E$37="Non-endemic",0,IF(COUNTRY_INFO!$H32=1,COUNTRY_INFO!G32,0))) -> 0 | G33: 0 | H33: =IF(INTRO!$E$39="Non-endemic",IF(INTRO!$E$37="Non-endemic","Not required",COUNTRY_INFO!P32),"Treat with IVM") -> Not required | I33: 0 | J33: 0 | L33: 0 | M33: 0
A34: =IF(INTRO!$E$39<>"Non-endemic", " ", IF(INTRO!$E$37="Non-endemic"," ", IF(COUNTRY_INFO!A33=0," ",COUNTRY_INFO!A33))) ->  | B34: =IF(INTRO!$E$39<>"Non-endemic", " ", IF(INTRO!$E$37="Non-endemic"," ", IF(COUNTRY_INFO!B33=0," ",COUNTRY_INFO!B33))) ->  | C34: =IF(INTRO!$E$39<>"Non-endemic", " ", IF(INTRO!$E$37="Non-endemic"," ", IF(COUNTRY_INFO!C33=0," ",COUNTRY_INFO!C33))) ->  | D34: =IF(INTRO!$E$39<>"Non-endemic", 0, IF(INTRO!$E$37="Non-endemic",0,IF(COUNTRY_INFO!$H33=1,COUNTRY_INFO!E33,0))) -> 0 | E34: =IF(INTRO!$E$39<>"Non-endemic", 0, IF(INTRO!$E$37="Non-endemic",0,IF(COUNTRY_INFO!$H33=1,COUNTRY_INFO!F33,0))) -> 0 | F34: =IF(INTRO!$E$39<>"Non-endemic", 0, IF(INTRO!$E$37="Non-endemic",0,IF(COUNTRY_INFO!$H33=1,COUNTRY_INFO!G33,0))) -> 0 | G34: 0 | H34: =IF(INTRO!$E$39="Non-endemic",IF(INTRO!$E$37="Non-endemic","Not required",COUNTRY_INFO!P33),"Treat with IVM") -> Not required | I34: 0 | J34: 0 | L34: 0 | M34: 0
A35: =IF(INTRO!$E$39<>"Non-endemic", " ", IF(INTRO!$E$37="Non-endemic"," ", IF(COUNTRY_INFO!A34=0," ",COUNTRY_INFO!A34))) ->  | B35: =IF(INTRO!$E$39<>"Non-endemic", " ", IF(INTRO!$E$37="Non-endemic"," ", IF(COUNTRY_INFO!B34=0," ",COUNTRY_INFO!B34))) ->  | C35: =IF(INTRO!$E$39<>"Non-endemic", " ", IF(INTRO!$E$37="Non-endemic"," ", IF(COUNTRY_INFO!C34=0," ",COUNTRY_INFO!C34))) ->  | D35: =IF(INTRO!$E$39<>"Non-endemic", 0, IF(INTRO!$E$37="Non-endemic",0,IF(COUNTRY_INFO!$H34=1,COUNTRY_INFO!E34,0))) -> 0 | E35: =IF(INTRO!$E$39<>"Non-endemic", 0, IF(INTRO!$E$37="Non-endemic",0,IF(COUNTRY_INFO!$H34=1,COUNTRY_INFO!F34,0))) -> 0 | F35: =IF(INTRO!$E$39<>"Non-endemic", 0, IF(INTRO!$E$37="Non-endemic",0,IF(COUNTRY_INFO!$H34=1,COUNTRY_INFO!G34,0))) -> 0 | G35: 0 | H35: =IF(INTRO!$E$39="Non-endemic",IF(INTRO!$E$37="Non-endemic","Not required",COUNTRY_INFO!P34),"Treat with IVM") -> Not required | I35: 0 | J35: 0 | L35: 0 | M35: 0
A36: =IF(INTRO!$E$39<>"Non-endemic", " ", IF(INTRO!$E$37="Non-endemic"," ", IF(COUNTRY_INFO!A35=0," ",COUNTRY_INFO!A35))) ->  | B36: =IF(INTRO!$E$39<>"Non-endemic", " ", IF(INTRO!$E$37="Non-endemic"," ", IF(COUNTRY_INFO!B35=0," ",COUNTRY_INFO!B35))) ->  | C36: =IF(INTRO!$E$39<>"Non-endemic", " ", IF(INTRO!$E$37="Non-endemic"," ", IF(COUNTRY_INFO!C35=0," ",COUNTRY_INFO!C35))) ->  | D36: =IF(INTRO!$E$39<>"Non-endemic", 0, IF(INTRO!$E$37="Non-endemic",0,IF(COUNTRY_INFO!$H35=1,COUNTRY_INFO!E35,0))) -> 0 | E36: =IF(INTRO!$E$39<>"Non-endemic", 0, IF(INTRO!$E$37="Non-endemic",0,IF(COUNTRY_INFO!$H35=1,COUNTRY_INFO!F35,0))) -> 0 | F36: =IF(INTRO!$E$39<>"Non-endemic", 0, IF(INTRO!$E$37="Non-endemic",0,IF(COUNTRY_INFO!$H35=1,COUNTRY_INFO!G35,0))) -> 0 | G36: 0 | H36: =IF(INTRO!$E$39="Non-endemic",IF(INTRO!$E$37="Non-endemic","Not required",COUNTRY_INFO!P35),"Treat with IVM") -> Not required | I36: 0 | J36: 0 | L36: 0 | M36: 0
A37: =IF(INTRO!$E$39<>"Non-endemic", " ", IF(INTRO!$E$37="Non-endemic"," ", IF(COUNTRY_INFO!A36=0," ",COUNTRY_INFO!A36))) ->  | B37: =IF(INTRO!$E$39<>"Non-endemic", " ", IF(INTRO!$E$37="Non-endemic"," ", IF(COUNTRY_INFO!B36=0," ",COUNTRY_INFO!B36))) ->  | C37: =IF(INTRO!$E$39<>"Non-endemic", " ", IF(INTRO!$E$37="Non-endemic"," ", IF(COUNTRY_INFO!C36=0," ",COUNTRY_INFO!C36))) ->  | D37: =IF(INTRO!$E$39<>"Non-endemic", 0, IF(INTRO!$E$37="Non-endemic",0,IF(COUNTRY_INFO!$H36=1,COUNTRY_INFO!E36,0))) -> 0 | E37: =IF(INTRO!$E$39<>"Non-endemic", 0, IF(INTRO!$E$37="Non-endemic",0,IF(COUNTRY_INFO!$H36=1,COUNTRY_INFO!F36,0))) -> 0 | F37: =IF(INTRO!$E$39<>"Non-endemic", 0, IF(INTRO!$E$37="Non-endemic",0,IF(COUNTRY_INFO!$H36=1,COUNTRY_INFO!G36,0))) -> 0 | G37: 0 | H37: =IF(INTRO!$E$39="Non-endemic",IF(INTRO!$E$37="Non-endemic","Not required",COUNTRY_INFO!P36),"Treat with IVM") -> Not required | I37: 0 | J37: 0 | L37: 0 | M37: 0
A38: =IF(INTRO!$E$39<>"Non-endemic", " ", IF(INTRO!$E$37="Non-endemic"," ", IF(COUNTRY_INFO!A37=0," ",COUNTRY_INFO!A37))) ->  | B38: =IF(INTRO!$E$39<>"Non-endemic", " ", IF(INTRO!$E$37="Non-endemic"," ", IF(COUNTRY_INFO!B37=0," ",COUNTRY_INFO!B37))) ->  | C38: =IF(INTRO!$E$39<>"Non-endemic", " ", IF(INTRO!$E$37="Non-endemic"," ", IF(COUNTRY_INFO!C37=0," ",COUNTRY_INFO!C37))) ->  | D38: =IF(INTRO!$E$39<>"Non-endemic", 0, IF(INTRO!$E$37="Non-endemic",0,IF(COUNTRY_INFO!$H37=1,COUNTRY_INFO!E37,0))) -> 0 | E38: =IF(INTRO!$E$39<>"Non-endemic", 0, IF(INTRO!$E$37="Non-endemic",0,IF(COUNTRY_INFO!$H37=1,COUNTRY_INFO!F37,0))) -> 0 | F38: =IF(INTRO!$E$39<>"Non-endemic", 0, IF(INTRO!$E$37="Non-endemic",0,IF(COUNTRY_INFO!$H37=1,COUNTRY_INFO!G37,0))) -> 0 | G38: 0 | H38: =IF(INTRO!$E$39="Non-endemic",IF(INTRO!$E$37="Non-endemic","Not required",COUNTRY_INFO!P37),"Treat with IVM") -> Not required | I38: 0 | J38: 0 | L38: 0 | M38: 0

Sheet ALB_MBD
A1: Albendazole (ALB) and Mebendazole (MBD)
A2: Administrative structure, eligible population by age group, treatment plan and information about tablets
A4: TOTAL | D4: =SUM(D$9:D$1000) -> 1578795 | E4: =SUM(E$9:E$1000) -> 3886260 | F4: =SUM(F$9:F$1000) -> 5465055 | I4: =SUM(I$9:I$1000) -> 0 | K4: =SUM(K$9:K$1000) -> 3157590 | L4: =SUM(L$9:L$1000) -> 7772520 | M4: =SUM(M$9:M$1000) -> 0 | N4: =SUM(N$9:N$1000) -> 10930110 | O4: =SUM(O$9:O$1000) -> 0 | P4: =SUM(P$9:P$1000) -> 0 | Q4: 0 | R4: 0 | S4: 0 | T4: 0 | U4: 0 | V4: 0 | W4: 7772520 | X4: 38875 | Y4: 0 | Z4: 0 | AA4: 0
A6: Country administrative structure | D6: Population requiring treatment with ALB/MBD | G6: Treatment plan | I6: People covered by PELF with ALB | J6: Select medicine for treatment of STH | K6: Target population | S6: Albendazole (ALB) | Y6: Mebendazole (MBD)
A7: Country | B7: Province/State | C7: District | D7: PreSAC | E7: SAC | F7: Total | G7: LF | H7: STH | K7: STH (ALB) | O7: STH (MBD) | S7: Remaining in stock (LF) | T7: Tablets to be procured (LF) | U7: Bottle (400 mg) 200 tablets (LF) | V7: Remaining in stock (STH) | W7: Tablets to be procured for SAC (STH) | X7: Bottle (400 mg) 200 tablets (STH) | Y7: Remaining in stock | Z7: Tablets to be procured for SAC | AA7: Bottles (500 mg) 150 tablets
K8: PreSAC | L8: SAC | M8: Other | N8: Total | O8: PreSAC | P8: SAC | Q8: Other | R8: Total
A9: =IF(AND(INTRO!$E$37="Non-endemic",INTRO!$E$41="Non-endemic")," ",IF(COUNTRY_INFO!A8=0," ",COUNTRY_INFO!A8)) -> RWANDA | B9: =IF(AND(INTRO!$E$37="Non-endemic",INTRO!$E$41="Non-endemic")," ",IF(COUNTRY_INFO!B8=0," ",COUNTRY_INFO!B8)) -> Eastern | C9: =IF(AND(INTRO!$E$37="Non-endemic",INTRO!$E$41="Non-endemic")," ",IF(COUNTRY_INFO!C8=0," ",COUNTRY_INFO!C8)) -> Bugesera | D9: =IF(AND(INTRO!$E$37="Non-endemic",INTRO!$E$41="Non-endemic"),0,IF(AND(OR(COUNTRY_INFO!$H8=0,COUNTRY_INFO!$H8=4,COUNTRY_INFO!$H8=99),OR(COUNTRY_INFO!$J8=0,COUNTRY_INFO!$J8=4)),0,COUNTRY_INFO!$E8)) -> 54720 | E9: =IF(AND(INTRO!$E$37="Non-endemic",INTRO!$E$41="Non-endemic"),0,IF(AND(OR(COUNTRY_INFO!$H8=0,COUNTRY_INFO!$H8=4,COUNTRY_INFO!$H8=99),OR(COUNTRY_INFO!$J8=0,COUNTRY_INFO!$J8=4)),0,COUNTRY_INFO!$F8)) -> 134695 | F9: =SUM(D9:E9) -> 189415 | G9: =IF(AND(INTRO!$E$37="Non-endemic",INTRO!$E$41="Non-endemic"),0,COUNTRY_INFO!P8) -> 0 | H9: 2 | I9: =IF(INTRO!$E$39="Non-endemic",IF($G9=1,DEC!I9,0),IF($G9=1,IVM!G9,0)) -> 0 | J9: ALB | K9: =IF($J9="ALB", IF(INTRO!$E$39="Non-endemic", IF($H9<>0, IF($I9=0, $D9*$H9, $D9*($H9-$G9)), 0), $D9*$H9), 0) -> 109440 | L9: =IF($J9="ALB", IF($H9<>0, IF($I9=0, $E9*$H9, $E9*($H9-$G9)),0), 0) -> 269390 | N9: =SUM(K9:M9) -> 378830 | O9: 0 | P9: =IF($J9="MBD", IF($H9<>0,IF($I9=0, $E9*$H9, $E9*($H9-$G9)),0), 0 ) -> 0 | R9: =SUM(O9:Q9) -> 0 | T9: =IF($I9>$S9, $I9-$S9,0) -> 0 | U9: =ROUNDUP($I9/200,0) -> 0 | W9: =IF($L9>$V9,$L9-$V9,0) -> 269390 | X9: =ROUNDUP($L9/200,0) -> 1347 | Z9: =IF($P9>$Y9,$P9-$Y9,0) -> 0 | AA9: =ROUNDUP($P9/150,0) -> 0
A10: =IF(AND(INTRO!$E$37="Non-endemic",INTRO!$E$41="Non-endemic")," ",IF(COUNTRY_INFO!A9=0," ",COUNTRY_INFO!A9)) -> RWANDA | B10: =IF(AND(INTRO!$E$37="Non-endemic",INTRO!$E$41="Non-endemic")," ",IF(COUNTRY_INFO!B9=0," ",COUNTRY_INFO!B9)) -> Northern | C10: =IF(AND(INTRO!$E$37="Non-endemic",INTRO!$E$41="Non-endemic")," ",IF(COUNTRY_INFO!C9=0," ",COUNTRY_INFO!C9)) -> Burera | D10: =IF(AND(INTRO!$E$37="Non-endemic",INTRO!$E$41="Non-endemic"),0,IF(AND(OR(COUNTRY_INFO!$H9=0,COUNTRY_INFO!$H9=4,COUNTRY_INFO!$H9=99),OR(COUNTRY_INFO!$J9=0,COUNTRY_INFO!$J9=4)),0,COUNTRY_INFO!$E9)) -> 45752 | E10: =IF(AND(INTRO!$E$37="Non-endemic",INTRO!$E$41="Non-endemic"),0,IF(AND(OR(COUNTRY_INFO!$H9=0,COUNTRY_INFO!$H9=4,COUNTRY_INFO!$H9=99),OR(COUNTRY_INFO!$J9=0,COUNTRY_INFO!$J9=4)),0,COUNTRY_INFO!$F9)) -> 112621 | F10: 158373 | G10: =IF(AND(INTRO!$E$37="Non-endemic",INTRO!$E$41="Non-endemic"),0,COUNTRY_INFO!P9) -> 0 | H10: 2 | I10: =IF(INTRO!$E$39="Non-endemic",IF($G10=1,DEC!I10,0),IF($G10=1,IVM!G10,0)) -> 0 | J10: ALB | K10: =IF($J10="ALB", IF(INTRO!$E$39="Non-endemic", IF($H10<>0, IF($I10=0, $D10*$H10, $D10*($H10-$G10)), 0), $D10*$H10), 0) -> 91504 | L10: 225242 | N10: 316746 | O10: =IF($J10="MBD", IF(INTRO!$E$39="Non-endemic", IF($H10<>0, IF($I10=0, $D10*$H10, $D10*($H10-$G10)), 0), $D10*$H10), 0) -> 0 | P10: 0 | R10: 0 | T10: 0 | U10: 0 | W10: 225242 | X10: 1127 | Z10: 0 | AA10: 0
A11: =IF(AND(INTRO!$E$37="Non-endemic",INTRO!$E$41="Non-endemic")," ",IF(COUNTRY_INFO!A10=0," ",COUNTRY_INFO!A10)) -> RWANDA | B11: =IF(AND(INTRO!$E$37="Non-endemic",INTRO!$E$41="Non-endemic")," ",IF(COUNTRY_INFO!B10=0," ",COUNTRY_INFO!B10)) -> Northern | C11: =IF(AND(INTRO!$E$37="Non-endemic",INTRO!$E$41="Non-endemic")," ",IF(COUNTRY_INFO!C10=0," ",COUNTRY_INFO!C10)) -> Gakenke | D11: =IF(AND(INTRO!$E$37="Non-endemic",INTRO!$E$41="Non-endemic"),0,IF(AND(OR(COUNTRY_INFO!$H10=0,COUNTRY_INFO!$H10=4,COUNTRY_INFO!$H10=99),OR(COUNTRY_INFO!$J10=0,COUNTRY_INFO!$J10=4)),0,COUNTRY_INFO!$E10)) -> 45564 | E11: =IF(AND(INTRO!$E$37="Non-endemic",INTRO!$E$41="Non-endemic"),0,IF(AND(OR(COUNTRY_INFO!$H10=0,COUNTRY_INFO!$H10=4,COUNTRY_INFO!$H10=99),OR(COUNTRY_INFO!$J10=0,COUNTRY_INFO!$J10=4)),0,COUNTRY_INFO!$F10)) -> 112158 | F11: 157722 | G11: =IF(AND(INTRO!$E$37="Non-endemic",INTRO!$E$41="Non-endemic"),0,COUNTRY_INFO!P10) -> 0 | H11: =IF(AND(INTRO!$E$37="Non-endemic",INTRO!$E$41="Non-endemic"),0,COUNTRY_INFO!R10) -> 2 | I11: =IF(INTRO!$E$39="Non-endemic",IF($G11=1,DEC!I11,0),IF($G11=1,IVM!G11,0)) -> 0 | J11: ALB | K11: =IF($J11="ALB", IF(INTRO!$E$39="Non-endemic", IF($H11<>0, IF($I11=0, $D11*$H11, $D11*($H11-$G11)), 0), $D11*$H11), 0) -> 91128 | L11: 224316 | N11: 315444 | O11: =IF($J11="MBD", IF(INTRO!$E$39="Non-endemic", IF($H11<>0, IF($I11=0, $D11*$H11, $D11*($H11-$G11)), 0), $D11*$H11), 0) -> 0 | P11: 0 | R11: 0 | T11: 0 | U11: 0 | W11: 224316 | X11: 1122 | Z11: 0 | AA11: 0
A12: =IF(AND(INTRO!$E$37="Non-endemic",INTRO!$E$41="Non-endemic")," ",IF(COUNTRY_INFO!A11=0," ",COUNTRY_INFO!A11)) -> RWANDA | B12: =IF(AND(INTRO!$E$37="Non-endemic",INTRO!$E$41="Non-endemic")," ",IF(COUNTRY_INFO!B11=0," ",COUNTRY_INFO!B11)) -> Kigali | C12: =IF(AND(INTRO!$E$37="Non-endemic",INTRO!$E$41="Non-endemic")," ",IF(COUNTRY_INFO!C11=0," ",COUNTRY_INFO!C11)) -> Gasabo | D12: =IF(AND(INTRO!$E$37="Non-endemic",INTRO!$E$41="Non-endemic"),0,IF(AND(OR(COUNTRY_INFO!$H11=0,COUNTRY_INFO!$H11=4,COUNTRY_INFO!$H11=99),OR(COUNTRY_INFO!$J11=0,COUNTRY_INFO!$J11=4)),0,COUNTRY_INFO!$E11)) -> 98666 | E12: =IF(AND(INTRO!$E$37="Non-endemic",INTRO!$E$41="Non-endemic"),0,IF(AND(OR(COUNTRY_INFO!$H11=0,COUNTRY_INFO!$H11=4,COUNTRY_INFO!$H11=99),OR(COUNTRY_INFO!$J11=0,COUNTRY_INFO!$J11=4)),0,COUNTRY_INFO!$F11)) -> 242870 | F12: 341536 | G12: =IF(AND(INTRO!$E$37="Non-endemic",INTRO!$E$41="Non-endemic"),0,COUNTRY_INFO!P11) -> 0 | H12: =IF(AND(INTRO!$E$37="Non-endemic",INTRO!$E$41="Non-endemic"),0,COUNTRY_INFO!R11) -> 2 | I12: =IF(INTRO!$E$39="Non-endemic",IF($G12=1,DEC!I12,0),IF($G12=1,IVM!G12,0)) -> 0 | J12: ALB | K12: =IF($J12="ALB", IF(INTRO!$E$39="Non-endemic", IF($H12<>0, IF($I12=0, $D12*$H12, $D12*($H12-$G12)), 0), $D12*$H12), 0) -> 197332 | L12: 485740 | N12: 683072 | O12: =IF($J12="MBD", IF(INTRO!$E$39="Non-endemic", IF($H12<>0, IF($I12=0, $D12*$H12, $D12*($H12-$G12)), 0), $D12*$H12), 0) -> 0 | P12: 0 | R12: 0 | T12: 0 | U12: 0 | W12: 485740 | X12: 2429 | Z12: 0 | AA12: 0
A13: =IF(AND(INTRO!$E$37="Non-endemic",INTRO!$E$41="Non-endemic")," ",IF(COUNTRY_INFO!A12=0," ",COUNTRY_INFO!A12)) -> RWANDA | B13: =IF(AND(INTRO!$E$37="Non-endemic",INTRO!$E$41="Non-endemic")," ",IF(COUNTRY_INFO!B12=0," ",COUNTRY_INFO!B12)) -> Eastern | C13: =IF(AND(INTRO!$E$37="Non-endemic",INTRO!$E$41="Non-endemic")," ",IF(COUNTRY_INFO!C12=0," ",COUNTRY_INFO!C12)) -> Gatsibo | D13: =IF(AND(INTRO!$E$37="Non-endemic",INTRO!$E$41="Non-endemic"),0,IF(AND(OR(COUNTRY_INFO!$H12=0,COUNTRY_INFO!$H12=4,COUNTRY_INFO!$H12=99),OR(COUNTRY_INFO!$J12=0,COUNTRY_INFO!$J12=4)),0,COUNTRY_INFO!$E12)) -> 69098 | E13: =IF(AND(INTRO!$E$37="Non-endemic",INTRO!$E$41="Non-endemic"),0,IF(AND(OR(COUNTRY_INFO!$H12=0,COUNTRY_INFO!$H12=4,COUNTRY_INFO!$H12=99),OR(COUNTRY_INFO!$J12=0,COUNTRY_INFO!$J12=4)),0,COUNTRY_INFO!$F12)) -> 170086 | F13: 239184 | G13: =IF(AND(INTRO!$E$37="Non-endemic",INTRO!$E$41="Non-endemic"),0,COUNTRY_INFO!P12) -> 0 | H13: =IF(AND(INTRO!$E$37="Non-endemic",INTRO!$E$41="Non-endemic"),0,COUNTRY_INFO!R12) -> 2 | I13: =IF(INTRO!$E$39="Non-endemic",IF($G13=1,DEC!I13,0),IF($G13=1,IVM!G13,0)) -> 0 | J13: ALB | K13: =IF($J13="ALB", IF(INTRO!$E$39="Non-endemic", IF($H13<>0, IF($I13=0, $D13*$H13, $D13*($H13-$G13)), 0), $D13*$H13), 0) -> 138196 | L13: 340172 | N13: 478368 | O13: =IF($J13="MBD", IF(INTRO!$E$39="Non-endemic", IF($H13<>0, IF($I13=0, $D13*$H13, $D13*($H13-$G13)), 0), $D13*$H13), 0) -> 0 | P13: 0 | R13: 0 | T13: 0 | U13: 0 | W13: 340172 | X13: 1701 | Z13: 0 | AA13: 0
A14: =IF(AND(INTRO!$E$37="Non-endemic",INTRO!$E$41="Non-endemic")," ",IF(COUNTRY_INFO!A13=0," ",COUNTRY_INFO!A13)) -> RWANDA | B14: =IF(AND(INTRO!$E$37="Non-endemic",INTRO!$E$41="Non-endemic")," ",IF(COUNTRY_INFO!B13=0," ",COUNTRY_INFO!B13)) -> Northern | C14: =IF(AND(INTRO!$E$37="Non-endemic",INTRO!$E$41="Non-endemic")," ",IF(COUNTRY_INFO!C13=0," ",COUNTRY_INFO!C13)) -> Gicumbi | D14: =IF(AND(INTRO!$E$37="Non-endemic",INTRO!$E$41="Non-endemic"),0,IF(AND(OR(COUNTRY_INFO!$H13=0,COUNTRY_INFO!$H13=4,COUNTRY_INFO!$H13=99),OR(COUNTRY_INFO!$J13=0,COUNTRY_INFO!$J13=4)),0,COUNTRY_INFO!$E13)) -> 55678 | E14: =IF(AND(INTRO!$E$37="Non-endemic",INTRO!$E$41="Non-endemic"),0,IF(AND(OR(COUNTRY_INFO!$H13=0,COUNTRY_INFO!$H13=4,COUNTRY_INFO!$H13=99),OR(COUNTRY_INFO!$J13=0,COUNTRY_INFO!$J13=4)),0,COUNTRY_INFO!$F13)) -> 137053 | F14: 192731 | G14: =IF(AND(INTRO!$E$37="Non-endemic",INTRO!$E$41="Non-endemic"),0,COUNTRY_INFO!P13) -> 0 | H14: =IF(AND(INTRO!$E$37="Non-endemic",INTRO!$E$41="Non-endemic"),0,COUNTRY_INFO!R13) -> 2 | I14: =IF(INTRO!$E$39="Non-endemic",IF($G14=1,DEC!I14,0),IF($G14=1,IVM!G14,0)) -> 0 | J14: ALB | K14: =IF($J14="ALB", IF(INTRO!$E$39="Non-endemic", IF($H14<>0, IF($I14=0, $D14*$H14, $D14*($H14-$G14)), 0), $D14*$H14), 0) -> 111356 | L14: 274106 | N14: 385462 | O14: =IF($J14="MBD", IF(INTRO!$E$39="Non-endemic", IF($H14<>0, IF($I14=0, $D14*$H14, $D14*($H14-$G14)), 0), $D14*$H14), 0) -> 0 | P14: 0 | R14: 0 | T14: 0 | U14: 0 | W14: 274106 | X14: 1371 | Z14: 0 | AA14: 0
A15: =IF(AND(INTRO!$E$37="Non-endemic",INTRO!$E$41="Non-endemic")," ",IF(COUNTRY_INFO!A14=0," ",COUNTRY_INFO!A14)) -> RWANDA | B15: =IF(AND(INTRO!$E$37="Non-endemic",INTRO!$E$41="Non-endemic")," ",IF(COUNTRY_INFO!B14=0," ",COUNTRY_INFO!B14)) -> Southern | C15: =IF(AND(INTRO!$E$37="Non-endemic",INTRO!$E$41="Non-endemic")," ",IF(COUNTRY_INFO!C14=0," ",COUNTRY_INFO!C14)) -> Gisagara | D15: =IF(AND(INTRO!$E$37="Non-endemic",INTRO!$E$41="Non-endemic"),0,IF(AND(OR(COUNTRY_INFO!$H14=0,COUNTRY_INFO!$H14=4,COUNTRY_INFO!$H14=99),OR(COUNTRY_INFO!$J14=0,COUNTRY_INFO!$J14=4)),0,COUNTRY_INFO!$E14)) -> 46656 | E15: =IF(AND(INTRO!$E$37="Non-endemic",INTRO!$E$41="Non-endemic"),0,IF(AND(OR(COUNTRY_INFO!$H14=0,COUNTRY_INFO!$H14=4,COUNTRY_INFO!$H14=99),OR(COUNTRY_INFO!$J14=0,COUNTRY_INFO!$J14=4)),0,COUNTRY_INFO!$F14)) -> 114845 | F15: 161501 | G15: =IF(AND(INTRO!$E$37="Non-endemic",INTRO!$E$41="Non-endemic"),0,COUNTRY_INFO!P14) -> 0 | H15: =IF(AND(INTRO!$E$37="Non-endemic",INTRO!$E$41="Non-endemic"),0,COUNTRY_INFO!R14) -> 2 | I15: =IF(INTRO!$E$39="Non-endemic",IF($G15=1,DEC!I15,0),IF($G15=1,IVM!G15,0)) -> 0 | J15: ALB | K15: =IF($J15="ALB", IF(INTRO!$E$39="Non-endemic", IF($H15<>0, IF($I15=0, $D15*$H15, $D15*($H15-$G15)), 0), $D15*$H15), 0) -> 93312 | L15: 229690 | N15: 323002 | O15: =IF($J15="MBD", IF(INTRO!$E$39="Non-endemic", IF($H15<>0, IF($I15=0, $D15*$H15, $D15*($H15-$G15)), 0), $D15*$H15), 0) -> 0 | P15: 0 | R15: 0 | T15: 0 | U15: 0 | W15: 229690 | X15: 1149 | Z15: 0 | AA15: 0
A16: =IF(AND(INTRO!$E$37="Non-endemic",INTRO!$E$41="Non-endemic")," ",IF(COUNTRY_INFO!A15=0," ",COUNTRY_INFO!A15)) -> RWANDA | B16: =IF(AND(INTRO!$E$37="Non-endemic",INTRO!$E$41="Non-endemic")," ",IF(COUNTRY_INFO!B15=0," ",COUNTRY_INFO!B15)) -> Southern | C16: =IF(AND(INTRO!$E$37="Non-endemic",INTRO!$E$41="Non-endemic")," ",IF(COUNTRY_INFO!C15=0," ",COUNTRY_INFO!C15)) -> Huye | D16: =IF(AND(INTRO!$E$37="Non-endemic",INTRO!$E$41="Non-endemic"),0,IF(AND(OR(COUNTRY_INFO!$H15=0,COUNTRY_INFO!$H15=4,COUNTRY_INFO!$H15=99),OR(COUNTRY_INFO!$J15=0,COUNTRY_INFO!$J15=4)),0,COUNTRY_INFO!$E15)) -> 47622 | E16: =IF(AND(INTRO!$E$37="Non-endemic",INTRO!$E$41="Non-endemic"),0,IF(AND(OR(COUNTRY_INFO!$H15=0,COUNTRY_INFO!$H15=4,COUNTRY_INFO!$H15=99),OR(COUNTRY_INFO!$J15=0,COUNTRY_INFO!$J15=4)),0,COUNTRY_INFO!$F15)) -> 117224 | F16: 164846 | G16: =IF(AND(INTRO!$E$37="Non-endemic",INTRO!$E$41="Non-endemic"),0,COUNTRY_INFO!P15) -> 0 | H16: =IF(AND(INTRO!$E$37="Non-endemic",INTRO!$E$41="Non-endemic"),0,COUNTRY_INFO!R15) -> 2 | I16: =IF(INTRO!$E$39="Non-endemic",IF($G16=1,DEC!I16,0),IF($G16=1,IVM!G16,0)) -> 0 | J16: ALB | K16: =IF($J16="ALB", IF(INTRO!$E$39="Non-endemic", IF($H16<>0, IF($I16=0, $D16*$H16, $D16*($H16-$G16)), 0), $D16*$H16), 0) -> 95244 | L16: 234448 | N16: 329692 | O16: =IF($J16="MBD", IF(INTRO!$E$39="Non-endemic", IF($H16<>0, IF($I16=0, $D16*$H16, $D16*($H16-$G16)), 0), $D16*$H16), 0) -> 0 | P16: 0 | R16: 0 | T16: 0 | U16: 0 | W16: 234448 | X16: 1173 | Z16: 0 | AA16: 0
A17: =IF(AND(INTRO!$E$37="Non-endemic",INTRO!$E$41="Non-endemic")," ",IF(COUNTRY_INFO!A16=0," ",COUNTRY_INFO!A16)) -> RWANDA | B17: =IF(AND(INTRO!$E$37="Non-endemic",INTRO!$E$41="Non-endemic")," ",IF(COUNTRY_INFO!B16=0," ",COUNTRY_INFO!B16)) -> Southern | C17: =IF(AND(INTRO!$E$37="Non-endemic",INTRO!$E$41="Non-endemic")," ",IF(COUNTRY_INFO!C16=0," ",COUNTRY_INFO!C16)) -> Kamonyi | D17: =IF(AND(INTRO!$E$37="Non-endemic",INTRO!$E$41="Non-endemic"),0,IF(AND(OR(COUNTRY_INFO!$H16=0,COUNTRY_INFO!$H16=4,COUNTRY_INFO!$H16=99),OR(COUNTRY_INFO!$J16=0,COUNTRY_INFO!$J16=4)),0,COUNTRY_INFO!$E16)) -> 50901 | E17: =IF(AND(INTRO!$E$37="Non-endemic",INTRO!$E$41="Non-endemic"),0,IF(AND(OR(COUNTRY_INFO!$H16=0,COUNTRY_INFO!$H16=4,COUNTRY_INFO!$H16=99),OR(COUNTRY_INFO!$J16=0,COUNTRY_INFO!$J16=4)),0,COUNTRY_INFO!$F16)) -> 125294 | F17: 176195 | G17: =IF(AND(INTRO!$E$37="Non-endemic",INTRO!$E$41="Non-endemic"),0,COUNTRY_INFO!P16) -> 0 | H17: =IF(AND(INTRO!$E$37="Non-endemic",INTRO!$E$41="Non-endemic"),0,COUNTRY_INFO!R16) -> 2 | I17: =IF(INTRO!$E$39="Non-endemic",IF($G17=1,DEC!I17,0),IF($G17=1,IVM!G17,0)) -> 0 | J17: ALB | K17: =IF($J17="ALB", IF(INTRO!$E$39="Non-endemic", IF($H17<>0, IF($I17=0, $D17*$H17, $D17*($H17-$G17)), 0), $D17*$H17), 0) -> 101802 | L17: 250588 | N17: 352390 | O17: =IF($J17="MBD", IF(INTRO!$E$39="Non-endemic", IF($H17<>0, IF($I17=0, $D17*$H17, $D17*($H17-$G17)), 0), $D17*$H17), 0) -> 0 | P17: 0 | R17: 0 | T17: 0 | U17: 0 | W17: 250588 | X17: 1253 | Z17: 0 | AA17: 0
A18: =IF(AND(INTRO!$E$37="Non-endemic",INTRO!$E$41="Non-endemic")," ",IF(COUNTRY_INFO!A17=0," ",COUNTRY_INFO!A17)) -> RWANDA | B18: =IF(AND(INTRO!$E$37="Non-endemic",INTRO!$E$41="Non-endemic")," ",IF(COUNTRY_INFO!B17=0," ",COUNTRY_INFO!B17)) -> Western | C18: =IF(AND(INTRO!$E$37="Non-endemic",INTRO!$E$41="Non-endemic")," ",IF(COUNTRY_INFO!C17=0," ",COUNTRY_INFO!C17)) -> Karongi | D18: =IF(AND(INTRO!$E$37="Non-endemic",INTRO!$E$41="Non-endemic"),0,IF(AND(OR(COUNTRY_INFO!$H17=0,COUNTRY_INFO!$H17=4,COUNTRY_INFO!$H17=99),OR(COUNTRY_INFO!$J17=0,COUNTRY_INFO!$J17=4)),0,COUNTRY_INFO!$E17)) -> 47202 | E18: =IF(AND(INTRO!$E$37="Non-endemic",INTRO!$E$41="Non-endemic"),0,IF(AND(OR(COUNTRY_INFO!$H17=0,COUNTRY_INFO!$H17=4,COUNTRY_INFO!$H17=99),OR(COUNTRY_INFO!$J17=0,COUNTRY_INFO!$J17=4)),0,COUNTRY_INFO!$F17)) -> 116189 | F18: 163391 | G18: =IF(AND(INTRO!$E$37="Non-endemic",INTRO!$E$41="Non-endemic"),0,COUNTRY_INFO!P17) -> 0 | H18: =IF(AND(INTRO!$E$37="Non-endemic",INTRO!$E$41="Non-endemic"),0,COUNTRY_INFO!R17) -> 2 | I18: =IF(INTRO!$E$39="Non-endemic",IF($G18=1,DEC!I18,0),IF($G18=1,IVM!G18,0)) -> 0 | J18: ALB | K18: =IF($J18="ALB", IF(INTRO!$E$39="Non-endemic", IF($H18<>0, IF($I18=0, $D18*$H18, $D18*($H18-$G18)), 0), $D18*$H18), 0) -> 94404 | L18: 232378 | N18: 326782 | O18: =IF($J18="MBD", IF(INTRO!$E$39="Non-endemic", IF($H18<>0, IF($I18=0, $D18*$H18, $D18*($H18-$G18)), 0), $D18*$H18), 0) -> 0 | P18: 0 | R18: 0 | T18: 0 | U18: 0 | W18: 232378 | X18: 1162 | Z18: 0 | AA18: 0
A19: =IF(AND(INTRO!$E$37="Non-endemic",INTRO!$E$41="Non-endemic")," ",IF(COUNTRY_INFO!A18=0," ",COUNTRY_INFO!A18)) -> RWANDA | B19: =IF(AND(INTRO!$E$37="Non-endemic",INTRO!$E$41="Non-endemic")," ",IF(COUNTRY_INFO!B18=0," ",COUNTRY_INFO!B18)) -> Eastern | C19: =IF(AND(INTRO!$E$37="Non-endemic",INTRO!$E$41="Non-endemic")," ",IF(COUNTRY_INFO!C18=0," ",COUNTRY_INFO!C18)) -> Kayonza | D19: =IF(AND(INTRO!$E$37="Non-endemic",INTRO!$E$41="Non-endemic"),0,IF(AND(OR(COUNTRY_INFO!$H18=0,COUNTRY_INFO!$H18=4,COUNTRY_INFO!$H18=99),OR(COUNTRY_INFO!$J18=0,COUNTRY_INFO!$J18=4)),0,COUNTRY_INFO!$E18)) -> 56517 | E19: =IF(AND(INTRO!$E$37="Non-endemic",INTRO!$E$41="Non-endemic"),0,IF(AND(OR(COUNTRY_INFO!$H18=0,COUNTRY_INFO!$H18=4,COUNTRY_INFO!$H18=99),OR(COUNTRY_INFO!$J18=0,COUNTRY_INFO!$J18=4)),0,COUNTRY_INFO!$F18)) -> 139119 | F19: 195636 | G19: =IF(AND(INTRO!$E$37="Non-endemic",INTRO!$E$41="Non-endemic"),0,COUNTRY_INFO!P18) -> 0 | H19: =IF(AND(INTRO!$E$37="Non-endemic",INTRO!$E$41="Non-endemic"),0,COUNTRY_INFO!R18) -> 2 | I19: =IF(INTRO!$E$39="Non-endemic",IF($G19=1,DEC!I19,0),IF($G19=1,IVM!G19,0)) -> 0 | J19: ALB | K19: =IF($J19="ALB", IF(INTRO!$E$39="Non-endemic", IF($H19<>0, IF($I19=0, $D19*$H19, $D19*($H19-$G19)), 0), $D19*$H19), 0) -> 113034 | L19: 278238 | N19: 391272 | O19: =IF($J19="MBD", IF(INTRO!$E$39="Non-endemic", IF($H19<>0, IF($I19=0, $D19*$H19, $D19*($H19-$G19)), 0), $D19*$H19), 0) -> 0 | P19: 0 | R19: 0 | T19: 0 | U19: 0 | W19: 278238 | X19: 1392 | Z19: 0 | AA19: 0
A20: =IF(AND(INTRO!$E$37="Non-endemic",INTRO!$E$41="Non-endemic")," ",IF(COUNTRY_INFO!A19=0," ",COUNTRY_INFO!A19)) -> RWANDA | B20: =IF(AND(INTRO!$E$37="Non-endemic",INTRO!$E$41="Non-endemic")," ",IF(COUNTRY_INFO!B19=0," ",COUNTRY_INFO!B19)) -> Kigali | C20: =IF(AND(INTRO!$E$37="Non-endemic",INTRO!$E$41="Non-endemic")," ",IF(COUNTRY_INFO!C19=0," ",COUNTRY_INFO!C19)) -> Kicukiro | D20: =IF(AND(INTRO!$E$37="Non-endemic",INTRO!$E$41="Non-endemic"),0,IF(AND(OR(COUNTRY_INFO!$H19=0,COUNTRY_INFO!$H19=4,COUNTRY_INFO!$H19=99),OR(COUNTRY_INFO!$J19=0,COUNTRY_INFO!$J19=4)),0,COUNTRY_INFO!$E19)) -> 50521 | E20: =IF(AND(INTRO!$E$37="Non-endemic",INTRO!$E$41="Non-endemic"),0,IF(AND(OR(COUNTRY_INFO!$H19=0,COUNTRY_INFO!$H19=4,COUNTRY_INFO!$H19=99),OR(COUNTRY_INFO!$J19=0,COUNTRY_INFO!$J19=4)),0,COUNTRY_INFO!$F19)) -> 124360 | F20: 174881 | G20: =IF(AND(INTRO!$E$37="Non-endemic",INTRO!$E$41="Non-endemic"),0,COUNTRY_INFO!P19) -> 0 | H20: =IF(AND(INTRO!$E$37="Non-endemic",INTRO!$E$41="Non-endemic"),0,COUNTRY_INFO!R19) -> 2 | I20: =IF(INTRO!$E$39="Non-endemic",IF($G20=1,DEC!I20,0),IF($G20=1,IVM!G20,0)) -> 0 | J20: ALB | K20: =IF($J20="ALB", IF(INTRO!$E$39="Non-endemic", IF($H20<>0, IF($I20=0, $D20*$H20, $D20*($H20-$G20)), 0), $D20*$H20), 0) -> 101042 | L20: 248720 | N20: 349762 | O20: =IF($J20="MBD", IF(INTRO!$E$39="Non-endemic", IF($H20<>0, IF($I20=0, $D20*$H20, $D20*($H20-$G20)), 0), $D20*$H20), 0) -> 0 | P20: 0 | R20: 0 | T20: 0 | U20: 0 | W20: 248720 | X20: 1244 | Z20: 0 | AA20: 0
A21: =IF(AND(INTRO!$E$37="Non-endemic",INTRO!$E$41="Non-endemic")," ",IF(COUNTRY_INFO!A20=0," ",COUNTRY_INFO!A20)) -> RWANDA | B21: =IF(AND(INTRO!$E$37="Non-endemic",INTRO!$E$41="Non-endemic")," ",IF(COUNTRY_INFO!B20=0," ",COUNTRY_INFO!B20)) -> Eastern | C21: =IF(AND(INTRO!$E$37="Non-endemic",INTRO!$E$41="Non-endemic")," ",IF(COUNTRY_INFO!C20=0," ",COUNTRY_INFO!C20)) -> Kirehe | D21: =IF(AND(INTRO!$E$37="Non-endemic",INTRO!$E$41="Non-endemic"),0,IF(AND(OR(COUNTRY_INFO!$H20=0,COUNTRY_INFO!$H20=4,COUNTRY_INFO!$H20=99),OR(COUNTRY_INFO!$J20=0,COUNTRY_INFO!$J20=4)),0,COUNTRY_INFO!$E20)) -> 53063 | E21: =IF(AND(INTRO!$E$37="Non-endemic",INTRO!$E$41="Non-endemic"),0,IF(AND(OR(COUNTRY_INFO!$H20=0,COUNTRY_INFO!$H20=4,COUNTRY_INFO!$H20=99),OR(COUNTRY_INFO!$J20=0,COUNTRY_INFO!$J20=4)),0,COUNTRY_INFO!$F20)) -> 130617 | F21: 183680 | G21: =IF(AND(INTRO!$E$37="Non-endemic",INTRO!$E$41="Non-endemic"),0,COUNTRY_INFO!P20) -> 0 | H21: =IF(AND(INTRO!$E$37="Non-endemic",INTRO!$E$41="Non-endemic"),0,COUNTRY_INFO!R20) -> 2 | I21: =IF(INTRO!$E$39="Non-endemic",IF($G21=1,DEC!I21,0),IF($G21=1,IVM!G21,0)) -> 0 | J21: ALB | K21: =IF($J21="ALB", IF(INTRO!$E$39="Non-endemic", IF($H21<>0, IF($I21=0, $D21*$H21, $D21*($H21-$G21)), 0), $D21*$H21), 0) -> 106126 | L21: 261234 | N21: 367360 | O21: =IF($J21="MBD", IF(INTRO!$E$39="Non-endemic", IF($H21<>0, IF($I21=0, $D21*$H21, $D21*($H21-$G21)), 0), $D21*$H21), 0) -> 0 | P21: 0 | R21: 0 | T21: 0 | U21: 0 | W21: 261234 | X21: 1307 | Z21: 0 | AA21: 0
A22: =IF(AND(INTRO!$E$37="Non-endemic",INTRO!$E$41="Non-endemic")," ",IF(COUNTRY_INFO!A21=0," ",COUNTRY_INFO!A21)) -> RWANDA | B22: =IF(AND(INTRO!$E$37="Non-endemic",INTRO!$E$41="Non-endemic")," ",IF(COUNTRY_INFO!B21=0," ",COUNTRY_INFO!B21)) -> Southern | C22: =IF(AND(INTRO!$E$37="Non-endemic",INTRO!$E$41="Non-endemic")," ",IF(COUNTRY_INFO!C21=0," ",COUNTRY_INFO!C21)) -> Muhanga | D22: =IF(AND(INTRO!$E$37="Non-endemic",INTRO!$E$41="Non-endemic"),0,IF(AND(OR(COUNTRY_INFO!$H21=0,COUNTRY_INFO!$H21=4,COUNTRY_INFO!$H21=99),OR(COUNTRY_INFO!$J21=0,COUNTRY_INFO!$J21=4)),0,COUNTRY_INFO!$E21)) -> 44288 | E22: =IF(AND(INTRO!$E$37="Non-endemic",INTRO!$E$41="Non-endemic"),0,IF(AND(OR(COUNTRY_INFO!$H21=0,COUNTRY_INFO!$H21=4,COUNTRY_INFO!$H21=99),OR(COUNTRY_INFO!$J21=0,COUNTRY_INFO!$J21=4)),0,COUNTRY_INFO!$F21)) -> 109018 | F22: 153306 | G22: =IF(AND(INTRO!$E$37="Non-endemic",INTRO!$E$41="Non-endemic"),0,COUNTRY_INFO!P21) -> 0 | H22: =IF(AND(INTRO!$E$37="Non-endemic",INTRO!$E$41="Non-endemic"),0,COUNTRY_INFO!R21) -> 2 | I22: =IF(INTRO!$E$39="Non-endemic",IF($G22=1,DEC!I22,0),IF($G22=1,IVM!G22,0)) -> 0 | J22: ALB | K22: =IF($J22="ALB", IF(INTRO!$E$39="Non-endemic", IF($H22<>0, IF($I22=0, $D22*$H22, $D22*($H22-$G22)), 0), $D22*$H22), 0) -> 88576 | L22: 218036 | N22: 306612 | O22: =IF($J22="MBD", IF(INTRO!$E$39="Non-endemic", IF($H22<>0, IF($I22=0, $D22*$H22, $D22*($H22-$G22)), 0), $D22*$H22), 0) -> 0 | P22: 0 | R22: 0 | T22: 0 | U22: 0 | W22: 218036 | X22: 1091 | Z22: 0 | AA22: 0
A23: =IF(AND(INTRO!$E$37="Non-endemic",INTRO!$E$41="Non-endemic")," ",IF(COUNTRY_INFO!A22=0," ",COUNTRY_INFO!A22)) -> RWANDA | B23: =IF(AND(INTRO!$E$37="Non-endemic",INTRO!$E$41="Non-endemic")," ",IF(COUNTRY_INFO!B22=0," ",COUNTRY_INFO!B22)) -> Northern | C23: =IF(AND(INTRO!$E$37="Non-endemic",INTRO!$E$41="Non-endemic")," ",IF(COUNTRY_INFO!C22=0," ",COUNTRY_INFO!C22)) -> Musanze | D23: =IF(AND(INTRO!$E$37="Non-endemic",INTRO!$E$41="Non-endemic"),0,IF(AND(OR(COUNTRY_INFO!$H22=0,COUNTRY_INFO!$H22=4,COUNTRY_INFO!$H22=99),OR(COUNTRY_INFO!$J22=0,COUNTRY_INFO!$J22=4)),0,COUNTRY_INFO!$E22)) -> 52697 | E23: =IF(AND(INTRO!$E$37="Non-endemic",INTRO!$E$41="Non-endemic"),0,IF(AND(OR(COUNTRY_INFO!$H22=0,COUNTRY_INFO!$H22=4,COUNTRY_INFO!$H22=99),OR(COUNTRY_INFO!$J22=0,COUNTRY_INFO!$J22=4)),0,COUNTRY_INFO!$F22)) -> 129715 | F23: 182412 | G23: =IF(AND(INTRO!$E$37="Non-endemic",INTRO!$E$41="Non-endemic"),0,COUNTRY_INFO!P22) -> 0 | H23: =IF(AND(INTRO!$E$37="Non-endemic",INTRO!$E$41="Non-endemic"),0,COUNTRY_INFO!R22) -> 2 | I23: =IF(INTRO!$E$39="Non-endemic",IF($G23=1,DEC!I23,0),IF($G23=1,IVM!G23,0)) -> 0 | J23: ALB | K23: =IF($J23="ALB", IF(INTRO!$E$39="Non-endemic", IF($H23<>0, IF($I23=0, $D23*$H23, $D23*($H23-$G23)), 0), $D23*$H23), 0) -> 105394 | L23: 259430 | N23: 364824 | O23: =IF($J23="MBD", IF(INTRO!$E$39="Non-endemic", IF($H23<>0, IF($I23=0, $D23*$H23, $D23*($H23-$G23)), 0), $D23*$H23), 0) -> 0 | P23: 0 | R23: 0 | T23: 0 | U23: 0 | W23: 259430 | X23: 1298 | Z23: 0 | AA23: 0
A24: =IF(AND(INTRO!$E$37="Non-endemic",INTRO!$E$41="Non-endemic")," ",IF(COUNTRY_INFO!A23=0," ",COUNTRY_INFO!A23)) -> RWANDA | B24: =IF(AND(INTRO!$E$37="Non-endemic",INTRO!$E$41="Non-endemic")," ",IF(COUNTRY_INFO!B23=0," ",COUNTRY_INFO!B23)) -> Eastern | C24: =IF(AND(INTRO!$E$37="Non-endemic",INTRO!$E$41="Non-endemic")," ",IF(COUNTRY_INFO!C23=0," ",COUNTRY_INFO!C23)) -> Ngoma | D24: =IF(AND(INTRO!$E$37="Non-endemic",INTRO!$E$41="Non-endemic"),0,IF(AND(OR(COUNTRY_INFO!$H23=0,COUNTRY_INFO!$H23=4,COUNTRY_INFO!$H23=99),OR(COUNTRY_INFO!$J23=0,COUNTRY_INFO!$J23=4)),0,COUNTRY_INFO!$E23)) -> 52030 | E24: =IF(AND(INTRO!$E$37="Non-endemic",INTRO!$E$41="Non-endemic"),0,IF(AND(OR(COUNTRY_INFO!$H23=0,COUNTRY_INFO!$H23=4,COUNTRY_INFO!$H23=99),OR(COUNTRY_INFO!$J23=0,COUNTRY_INFO!$J23=4)),0,COUNTRY_INFO!$F23)) -> 128073 | F24: 180103 | G24: =IF(AND(INTRO!$E$37="Non-endemic",INTRO!$E$41="Non-endemic"),0,COUNTRY_INFO!P23) -> 0 | H24: =IF(AND(INTRO!$E$37="Non-endemic",INTRO!$E$41="Non-endemic"),0,COUNTRY_INFO!R23) -> 2 | I24: =IF(INTRO!$E$39="Non-endemic",IF($G24=1,DEC!I24,0),IF($G24=1,IVM!G24,0)) -> 0 | J24: ALB | K24: =IF($J24="ALB", IF(INTRO!$E$39="Non-endemic", IF($H24<>0, IF($I24=0, $D24*$H24, $D24*($H24-$G24)), 0), $D24*$H24), 0) -> 104060 | L24: 256146 | N24: 360206 | O24: =IF($J24="MBD", IF(INTRO!$E$39="Non-endemic", IF($H24<>0, IF($I24=0, $D24*$H24, $D24*($H24-$G24)), 0), $D24*$H24), 0) -> 0 | P24: 0 | R24: 0 | T24: 0 | U24: 0 | W24: 256146 | X24: 1281 | Z24: 0 | AA24: 0
A25: =IF(AND(INTRO!$E$37="Non-endemic",INTRO!$E$41="Non-endemic")," ",IF(COUNTRY_INFO!A24=0," ",COUNTRY_INFO!A24)) -> RWANDA | B25: =IF(AND(INTRO!$E$37="Non-endemic",INTRO!$E$41="Non-endemic")," ",IF(COUNTRY_INFO!B24=0," ",COUNTRY_INFO!B24)) -> Western | C25: =IF(AND(INTRO!$E$37="Non-endemic",INTRO!$E$41="Non-endemic")," ",IF(COUNTRY_INFO!C24=0," ",COUNTRY_INFO!C24)) -> Ngororero | D25: =IF(AND(INTRO!$E$37="Non-endemic",INTRO!$E$41="Non-endemic"),0,IF(AND(OR(COUNTRY_INFO!$H24=0,COUNTRY_INFO!$H24=4,COUNTRY_INFO!$H24=99),OR(COUNTRY_INFO!$J24=0,COUNTRY_INFO!$J24=4)),0,COUNTRY_INFO!$E24)) -> 47514 | E25: =IF(AND(INTRO!$E$37="Non-endemic",INTRO!$E$41="Non-endemic"),0,IF(AND(OR(COUNTRY_INFO!$H24=0,COUNTRY_INFO!$H24=4,COUNTRY_INFO!$H24=99),OR(COUNTRY_INFO!$J24=0,COUNTRY_INFO!$J24=4)),0,COUNTRY_INFO!$F24)) -> 116958 | F25: 164472 | G25: =IF(AND(INTRO!$E$37="Non-endemic",INTRO!$E$41="Non-endemic"),0,COUNTRY_INFO!P24) -> 0 | H25: =IF(AND(INTRO!$E$37="Non-endemic",INTRO!$E$41="Non-endemic"),0,COUNTRY_INFO!R24) -> 2 | I25: =IF(INTRO!$E$39="Non-endemic",IF($G25=1,DEC!I25,0),IF($G25=1,IVM!G25,0)) -> 0 | J25: ALB | K25: =IF($J25="ALB", IF(INTRO!$E$39="Non-endemic", IF($H25<>0, IF($I25=0, $D25*$H25, $D25*($H25-$G25)), 0), $D25*$H25), 0) -> 95028 | L25: 233916 | N25: 328944 | O25: =IF($J25="MBD", IF(INTRO!$E$39="Non-endemic", IF($H25<>0, IF($I25=0, $D25*$H25, $D25*($H25-$G25)), 0), $D25*$H25), 0) -> 0 | P25: 0 | R25: 0 | T25: 0 | U25: 0 | W25: 233916 | X25: 1170 | Z25: 0 | AA25: 0
A26: =IF(AND(INTRO!$E$37="Non-endemic",INTRO!$E$41="Non-endemic")," ",IF(COUNTRY_INFO!A25=0," ",COUNTRY_INFO!A25)) -> RWANDA | B26: =IF(AND(INTRO!$E$37="Non-endemic",INTRO!$E$41="Non-endemic")," ",IF(COUNTRY_INFO!B25=0," ",COUNTRY_INFO!B25)) -> Western | C26: =IF(AND(INTRO!$E$37="Non-endemic",INTRO!$E$41="Non-endemic")," ",IF(COUNTRY_INFO!C25=0," ",COUNTRY_INFO!C25)) -> Nyabihu | D26: =IF(AND(INTRO!$E$37="Non-endemic",INTRO!$E$41="Non-endemic"),0,IF(AND(OR(COUNTRY_INFO!$H25=0,COUNTRY_INFO!$H25=4,COUNTRY_INFO!$H25=99),OR(COUNTRY_INFO!$J25=0,COUNTRY_INFO!$J25=4)),0,COUNTRY_INFO!$E25)) -> 40857 | E26: =IF(AND(INTRO!$E$37="Non-endemic",INTRO!$E$41="Non-endemic"),0,IF(AND(OR(COUNTRY_INFO!$H25=0,COUNTRY_INFO!$H25=4,COUNTRY_INFO!$H25=99),OR(COUNTRY_INFO!$J25=0,COUNTRY_INFO!$J25=4)),0,COUNTRY_INFO!$F25)) -> 100570 | F26: 141427 | G26: =IF(AND(INTRO!$E$37="Non-endemic",INTRO!$E$41="Non-endemic"),0,COUNTRY_INFO!P25) -> 0 | H26: =IF(AND(INTRO!$E$37="Non-endemic",INTRO!$E$41="Non-endemic"),0,COUNTRY_INFO!R25) -> 2 | I26: =IF(INTRO!$E$39="Non-endemic",IF($G26=1,DEC!I26,0),IF($G26=1,IVM!G26,0)) -> 0 | J26: ALB | K26: =IF($J26="ALB", IF(INTRO!$E$39="Non-endemic", IF($H26<>0, IF($I26=0, $D26*$H26, $D26*($H26-$G26)), 0), $D26*$H26), 0) -> 81714 | L26: 201140 | N26: 282854 | O26: =IF($J26="MBD", IF(INTRO!$E$39="Non-endemic", IF($H26<>0, IF($I26=0, $D26*$H26, $D26*($H26-$G26)), 0), $D26*$H26), 0) -> 0 | P26: 0 | R26: 0 | T26: 0 | U26: 0 | W26: 201140 | X26: 1006 | Z26: 0 | AA26: 0
A27: =IF(AND(INTRO!$E$37="Non-endemic",INTRO!$E$41="Non-endemic")," ",IF(COUNTRY_INFO!A26=0," ",COUNTRY_INFO!A26)) -> RWANDA | B27: =IF(AND(INTRO!$E$37="Non-endemic",INTRO!$E$41="Non-endemic")," ",IF(COUNTRY_INFO!B26=0," ",COUNTRY_INFO!B26)) -> Eastern | C27: =IF(AND(INTRO!$E$37="Non-endemic",INTRO!$E$41="Non-endemic")," ",IF(COUNTRY_INFO!C26=0," ",COUNTRY_INFO!C26)) -> Nyagatare | D27: =IF(AND(INTRO!$E$37="Non-endemic",INTRO!$E$41="Non-endemic"),0,IF(AND(OR(COUNTRY_INFO!$H26=0,COUNTRY_INFO!$H26=4,COUNTRY_INFO!$H26=99),OR(COUNTRY_INFO!$J26=0,COUNTRY_INFO!$J26=4)),0,COUNTRY_INFO!$E26)) -> 80082 | E27: =IF(AND(INTRO!$E$37="Non-endemic",INTRO!$E$41="Non-endemic"),0,IF(AND(OR(COUNTRY_INFO!$H26=0,COUNTRY_INFO!$H26=4,COUNTRY_INFO!$H26=99),OR(COUNTRY_INFO!$J26=0,COUNTRY_INFO!$J26=4)),0,COUNTRY_INFO!$F26)) -> 197124 | F27: 277206 | G27: =IF(AND(INTRO!$E$37="Non-endemic",INTRO!$E$41="Non-endemic"),0,COUNTRY_INFO!P26) -> 0 | H27: =IF(AND(INTRO!$E$37="Non-endemic",INTRO!$E$41="Non-endemic"),0,COUNTRY_INFO!R26) -> 2 | I27: =IF(INTRO!$E$39="Non-endemic",IF($G27=1,DEC!I27,0),IF($G27=1,IVM!G27,0)) -> 0 | J27: ALB | K27: =IF($J27="ALB", IF(INTRO!$E$39="Non-endemic", IF($H27<>0, IF($I27=0, $D27*$H27, $D27*($H27-$G27)), 0), $D27*$H27), 0) -> 160164 | L27: 394248 | N27: 554412 | O27: =IF($J27="MBD", IF(INTRO!$E$39="Non-endemic", IF($H27<>0, IF($I27=0, $D27*$H27, $D27*($H27-$G27)), 0), $D27*$H27), 0) -> 0 | P27: 0 | R27: 0 | T27: 0 | U27: 0 | W27: 394248 | X27: 1972 | Z27: 0 | AA27: 0
A28: =IF(AND(INTRO!$E$37="Non-endemic",INTRO!$E$41="Non-endemic")," ",IF(COUNTRY_INFO!A27=0," ",COUNTRY_INFO!A27)) -> RWANDA | B28: =IF(AND(INTRO!$E$37="Non-endemic",INTRO!$E$41="Non-endemic")," ",IF(COUNTRY_INFO!B27=0," ",COUNTRY_INFO!B27)) -> Southern | C28: =IF(AND(INTRO!$E$37="Non-endemic",INTRO!$E$41="Non-endemic")," ",IF(COUNTRY_INFO!C27=0," ",COUNTRY_INFO!C27)) -> Nyamagabe | D28: =IF(AND(INTRO!$E$37="Non-endemic",INTRO!$E$41="Non-endemic"),0,IF(AND(OR(COUNTRY_INFO!$H27=0,COUNTRY_INFO!$H27=4,COUNTRY_INFO!$H27=99),OR(COUNTRY_INFO!$J27=0,COUNTRY_INFO!$J27=4)),0,COUNTRY_INFO!$E27)) -> 49289 | E28: =IF(AND(INTRO!$E$37="Non-endemic",INTRO!$E$41="Non-endemic"),0,IF(AND(OR(COUNTRY_INFO!$H27=0,COUNTRY_INFO!$H27=4,COUNTRY_INFO!$H27=99),OR(COUNTRY_INFO!$J27=0,COUNTRY_INFO!$J27=4)),0,COUNTRY_INFO!$F27)) -> 121326 | F28: 170615 | G28: =IF(AND(INTRO!$E$37="Non-endemic",INTRO!$E$41="Non-endemic"),0,COUNTRY_INFO!P27) -> 0 | H28: =IF(AND(INTRO!$E$37="Non-endemic",INTRO!$E$41="Non-endemic"),0,COUNTRY_INFO!R27) -> 2 | I28: =IF(INTRO!$E$39="Non-endemic",IF($G28=1,DEC!I28,0),IF($G28=1,IVM!G28,0)) -> 0 | J28: ALB | K28: =IF($J28="ALB", IF(INTRO!$E$39="Non-endemic", IF($H28<>0, IF($I28=0, $D28*$H28, $D28*($H28-$G28)), 0), $D28*$H28), 0) -> 98578 | L28: 242652 | N28: 341230 | O28: =IF($J28="MBD", IF(INTRO!$E$39="Non-endemic", IF($H28<>0, IF($I28=0, $D28*$H28, $D28*($H28-$G28)), 0), $D28*$H28), 0) -> 0 | P28: 0 | R28: 0 | T28: 0 | U28: 0 | W28: 242652 | X28: 1214 | Z28: 0 | AA28: 0
A29: =IF(AND(INTRO!$E$37="Non-endemic",INTRO!$E$41="Non-endemic")," ",IF(COUNTRY_INFO!A28=0," ",COUNTRY_INFO!A28)) -> RWANDA | B29: =IF(AND(INTRO!$E$37="Non-endemic",INTRO!$E$41="Non-endemic")," ",IF(COUNTRY_INFO!B28=0," ",COUNTRY_INFO!B28)) -> Western | C29: =IF(AND(INTRO!$E$37="Non-endemic",INTRO!$E$41="Non-endemic")," ",IF(COUNTRY_INFO!C28=0," ",COUNTRY_INFO!C28)) -> Nyamasheke | D29: =IF(AND(INTRO!$E$37="Non-endemic",INTRO!$E$41="Non-endemic"),0,IF(AND(OR(COUNTRY_INFO!$H28=0,COUNTRY_INFO!$H28=4,COUNTRY_INFO!$H28=99),OR(COUNTRY_INFO!$J28=0,COUNTRY_INFO!$J28=4)),0,COUNTRY_INFO!$E28)) -> 54393 | E29: =IF(AND(INTRO!$E$37="Non-endemic",INTRO!$E$41="Non-endemic"),0,IF(AND(OR(COUNTRY_INFO!$H28=0,COUNTRY_INFO!$H28=4,COUNTRY_INFO!$H28=99),OR(COUNTRY_INFO!$J28=0,COUNTRY_INFO!$J28=4)),0,COUNTRY_INFO!$F28)) -> 133890 | F29: 188283 | G29: =IF(AND(INTRO!$E$37="Non-endemic",INTRO!$E$41="Non-endemic"),0,COUNTRY_INFO!P28) -> 0 | H29: =IF(AND(INTRO!$E$37="Non-endemic",INTRO!$E$41="Non-endemic"),0,COUNTRY_INFO!R28) -> 2 | I29: =IF(INTRO!$E$39="Non-endemic",IF($G29=1,DEC!I29,0),IF($G29=1,IVM!G29,0)) -> 0 | J29: ALB | K29: =IF($J29="ALB", IF(INTRO!$E$39="Non-endemic", IF($H29<>0, IF($I29=0, $D29*$H29, $D29*($H29-$G29)), 0), $D29*$H29), 0) -> 108786 | L29: 267780 | N29: 376566 | O29: =IF($J29="MBD", IF(INTRO!$E$39="Non-endemic", IF($H29<>0, IF($I29=0, $D29*$H29, $D29*($H29-$G29)), 0), $D29*$H29), 0) -> 0 | P29: 0 | R29: 0 | T29: 0 | U29: 0 | W29: 267780 | X29: 1339 | Z29: 0 | AA29: 0
A30: =IF(AND(INTRO!$E$37="Non-endemic",INTRO!$E$41="Non-endemic")," ",IF(COUNTRY_INFO!A29=0," ",COUNTRY_INFO!A29)) -> RWANDA | B30: =IF(AND(INTRO!$E$37="Non-endemic",INTRO!$E$41="Non-endemic")," ",IF(COUNTRY_INFO!B29=0," ",COUNTRY_INFO!B29)) -> Southern | C30: =IF(AND(INTRO!$E$37="Non-endemic",INTRO!$E$41="Non-endemic")," ",IF(COUNTRY_INFO!C29=0," ",COUNTRY_INFO!C29)) -> Nyanza | D30: =IF(AND(INTRO!$E$37="Non-endemic",INTRO!$E$41="Non-endemic"),0,IF(AND(OR(COUNTRY_INFO!$H29=0,COUNTRY_INFO!$H29=4,COUNTRY_INFO!$H29=99),OR(COUNTRY_INFO!$J29=0,COUNTRY_INFO!$J29=4)),0,COUNTRY_INFO!$E29)) -> 49720 | E30: =IF(AND(INTRO!$E$37="Non-endemic",INTRO!$E$41="Non-endemic"),0,IF(AND(OR(COUNTRY_INFO!$H29=0,COUNTRY_INFO!$H29=4,COUNTRY_INFO!$H29=99),OR(COUNTRY_INFO!$J29=0,COUNTRY_INFO!$J29=4)),0,COUNTRY_INFO!$F29)) -> 122388 | F30: 172108 | G30: =IF(AND(INTRO!$E$37="Non-endemic",INTRO!$E$41="Non-endemic"),0,COUNTRY_INFO!P29) -> 0 | H30: =IF(AND(INTRO!$E$37="Non-endemic",INTRO!$E$41="Non-endemic"),0,COUNTRY_INFO!R29) -> 2 | I30: =IF(INTRO!$E$39="Non-endemic",IF($G30=1,DEC!I30,0),IF($G30=1,IVM!G30,0)) -> 0 | J30: ALB | K30: =IF($J30="ALB", IF(INTRO!$E$39="Non-endemic", IF($H30<>0, IF($I30=0, $D30*$H30, $D30*($H30-$G30)), 0), $D30*$H30), 0) -> 99440 | L30: 244776 | N30: 344216 | O30: =IF($J30="MBD", IF(INTRO!$E$39="Non-endemic", IF($H30<>0, IF($I30=0, $D30*$H30, $D30*($H30-$G30)), 0), $D30*$H30), 0) -> 0 | P30: 0 | R30: 0 | T30: 0 | U30: 0 | W30: 244776 | X30: 1224 | Z30: 0 | AA30: 0
A31: =IF(AND(INTRO!$E$37="Non-endemic",INTRO!$E$41="Non-endemic")," ",IF(COUNTRY_INFO!A30=0," ",COUNTRY_INFO!A30)) -> RWANDA | B31: =IF(AND(INTRO!$E$37="Non-endemic",INTRO!$E$41="Non-endemic")," ",IF(COUNTRY_INFO!B30=0," ",COUNTRY_INFO!B30)) -> Kigali | C31: =IF(AND(INTRO!$E$37="Non-endemic",INTRO!$E$41="Non-endemic")," ",IF(COUNTRY_INFO!C30=0," ",COUNTRY_INFO!C30)) -> Nyarugenge | D31: =IF(AND(INTRO!$E$37="Non-endemic",INTRO!$E$41="Non-endemic"),0,IF(AND(OR(COUNTRY_INFO!$H30=0,COUNTRY_INFO!$H30=4,COUNTRY_INFO!$H30=99),OR(COUNTRY_INFO!$J30=0,COUNTRY_INFO!$J30=4)),0,COUNTRY_INFO!$E30)) -> 41354 | E31: =IF(AND(INTRO!$E$37="Non-endemic",INTRO!$E$41="Non-endemic"),0,IF(AND(OR(COUNTRY_INFO!$H30=0,COUNTRY_INFO!$H30=4,COUNTRY_INFO!$H30=99),OR(COUNTRY_INFO!$J30=0,COUNTRY_INFO!$J30=4)),0,COUNTRY_INFO!$F30)) -> 101794 | F31: 143148 | G31: =IF(AND(INTRO!$E$37="Non-endemic",INTRO!$E$41="Non-endemic"),0,COUNTRY_INFO!P30) -> 0 | H31: =IF(AND(INTRO!$E$37="Non-endemic",INTRO!$E$41="Non-endemic"),0,COUNTRY_INFO!R30) -> 2 | I31: =IF(INTRO!$E$39="Non-endemic",IF($G31=1,DEC!I31,0),IF($G31=1,IVM!G31,0)) -> 0 | J31: ALB | K31: =IF($J31="ALB", IF(INTRO!$E$39="Non-endemic", IF($H31<>0, IF($I31=0, $D31*$H31, $D31*($H31-$G31)), 0), $D31*$H31), 0) -> 82708 | L31: 203588 | N31: 286296 | O31: =IF($J31="MBD", IF(INTRO!$E$39="Non-endemic", IF($H31<>0, IF($I31=0, $D31*$H31, $D31*($H31-$G31)), 0), $D31*$H31), 0) -> 0 | P31: 0 | R31: 0 | T31: 0 | U31: 0 | W31: 203588 | X31: 1018 | Z31: 0 | AA31: 0
A32: =IF(AND(INTRO!$E$37="Non-endemic",INTRO!$E$41="Non-endemic")," ",IF(COUNTRY_INFO!A31=0," ",COUNTRY_INFO!A31)) -> RWANDA | B32: =IF(AND(INTRO!$E$37="Non-endemic",INTRO!$E$41="Non-endemic")," ",IF(COUNTRY_INFO!B31=0," ",COUNTRY_INFO!B31)) -> Southern | C32: =IF(AND(INTRO!$E$37="Non-endemic",INTRO!$E$41="Non-endemic")," ",IF(COUNTRY_INFO!C31=0," ",COUNTRY_INFO!C31)) -> Nyaruguru | D32: =IF(AND(INTRO!$E$37="Non-endemic",INTRO!$E$41="Non-endemic"),0,IF(AND(OR(COUNTRY_INFO!$H31=0,COUNTRY_INFO!$H31=4,COUNTRY_INFO!$H31=99),OR(COUNTRY_INFO!$J31=0,COUNTRY_INFO!$J31=4)),0,COUNTRY_INFO!$E31)) -> 42929 | E32: =IF(AND(INTRO!$E$37="Non-endemic",INTRO!$E$41="Non-endemic"),0,IF(AND(OR(COUNTRY_INFO!$H31=0,COUNTRY_INFO!$H31=4,COUNTRY_INFO!$H31=99),OR(COUNTRY_INFO!$J31=0,COUNTRY_INFO!$J31=4)),0,COUNTRY_INFO!$F31)) -> 105671 | F32: 148600 | G32: =IF(AND(INTRO!$E$37="Non-endemic",INTRO!$E$41="Non-endemic"),0,COUNTRY_INFO!P31) -> 0 | H32: =IF(AND(INTRO!$E$37="Non-endemic",INTRO!$E$41="Non-endemic"),0,COUNTRY_INFO!R31) -> 2 | I32: =IF(INTRO!$E$39="Non-endemic",IF($G32=1,DEC!I32,0),IF($G32=1,IVM!G32,0)) -> 0 | J32: ALB | K32: =IF($J32="ALB", IF(INTRO!$E$39="Non-endemic", IF($H32<>0, IF($I32=0, $D32*$H32, $D32*($H32-$G32)), 0), $D32*$H32), 0) -> 85858 | L32: 211342 | N32: 297200 | O32: =IF($J32="MBD", IF(INTRO!$E$39="Non-endemic", IF($H32<>0, IF($I32=0, $D32*$H32, $D32*($H32-$G32)), 0), $D32*$H32), 0) -> 0 | P32: 0 | R32: 0 | T32: 0 | U32: 0 | W32: 211342 | X32: 1057 | Z32: 0 | AA32: 0
A33: =IF(AND(INTRO!$E$37="Non-endemic",INTRO!$E$41="Non-endemic")," ",IF(COUNTRY_INFO!A32=0," ",COUNTRY_INFO!A32)) -> RWANDA | B33: =IF(AND(INTRO!$E$37="Non-endemic",INTRO!$E$41="Non-endemic")," ",IF(COUNTRY_INFO!B32=0," ",COUNTRY_INFO!B32)) -> Western | C33: =IF(AND(INTRO!$E$37="Non-endemic",INTRO!$E$41="Non-endemic")," ",IF(COUNTRY_INFO!C32=0," ",COUNTRY_INFO!C32)) -> Rubavu | D33: =IF(AND(INTRO!$E$37="Non-endemic",INTRO!$E$41="Non-endemic"),0,IF(AND(OR(COUNTRY_INFO!$H32=0,COUNTRY_INFO!$H32=4,COUNTRY_INFO!$H32=99),OR(COUNTRY_INFO!$J32=0,COUNTRY_INFO!$J32=4)),0,COUNTRY_INFO!$E32)) -> 61855 | E33: =IF(AND(INTRO!$E$37="Non-endemic",INTRO!$E$41="Non-endemic"),0,IF(AND(OR(COUNTRY_INFO!$H32=0,COUNTRY_INFO!$H32=4,COUNTRY_INFO!$H32=99),OR(COUNTRY_INFO!$J32=0,COUNTRY_INFO!$J32=4)),0,COUNTRY_INFO!$F32)) -> 152258 | F33: 214113 | G33: =IF(AND(INTRO!$E$37="Non-endemic",INTRO!$E$41="Non-endemic"),0,COUNTRY_INFO!P32) -> 0 | H33: =IF(AND(INTRO!$E$37="Non-endemic",INTRO!$E$41="Non-endemic"),0,COUNTRY_INFO!R32) -> 2 | I33: =IF(INTRO!$E$39="Non-endemic",IF($G33=1,DEC!I33,0),IF($G33=1,IVM!G33,0)) -> 0 | J33: ALB | K33: =IF($J33="ALB", IF(INTRO!$E$39="Non-endemic", IF($H33<>0, IF($I33=0, $D33*$H33, $D33*($H33-$G33)), 0), $D33*$H33), 0) -> 123710 | L33: 304516 | N33: 428226 | O33: =IF($J33="MBD", IF(INTRO!$E$39="Non-endemic", IF($H33<>0, IF($I33=0, $D33*$H33, $D33*($H33-$G33)), 0), $D33*$H33), 0) -> 0 | P33: 0 | R33: 0 | T33: 0 | U33: 0 | W33: 304516 | X33: 1523 | Z33: 0 | AA33: 0
A34: =IF(AND(INTRO!$E$37="Non-endemic",INTRO!$E$41="Non-endemic")," ",IF(COUNTRY_INFO!A33=0," ",COUNTRY_INFO!A33)) -> RWANDA | B34: =IF(AND(INTRO!$E$37="Non-endemic",INTRO!$E$41="Non-endemic")," ",IF(COUNTRY_INFO!B33=0," ",COUNTRY_INFO!B33)) -> Southern | C34: =IF(AND(INTRO!$E$37="Non-endemic",INTRO!$E$41="Non-endemic")," ",IF(COUNTRY_INFO!C33=0," ",COUNTRY_INFO!C33)) -> Ruhango | D34: =IF(AND(INTRO!$E$37="Non-endemic",INTRO!$E$41="Non-endemic"),0,IF(AND(OR(COUNTRY_INFO!$H33=0,COUNTRY_INFO!$H33=4,COUNTRY_INFO!$H33=99),OR(COUNTRY_INFO!$J33=0,COUNTRY_INFO!$J33=4)),0,COUNTRY_INFO!$E33)) -> 47176 | E34: =IF(AND(INTRO!$E$37="Non-endemic",INTRO!$E$41="Non-endemic"),0,IF(AND(OR(COUNTRY_INFO!$H33=0,COUNTRY_INFO!$H33=4,COUNTRY_INFO!$H33=99),OR(COUNTRY_INFO!$J33=0,COUNTRY_INFO!$J33=4)),0,COUNTRY_INFO!$F33)) -> 116125 | F34: 163301 | G34: =IF(AND(INTRO!$E$37="Non-endemic",INTRO!$E$41="Non-endemic"),0,COUNTRY_INFO!P33) -> 0 | H34: =IF(AND(INTRO!$E$37="Non-endemic",INTRO!$E$41="Non-endemic"),0,COUNTRY_INFO!R33) -> 2 | I34: =IF(INTRO!$E$39="Non-endemic",IF($G34=1,DEC!I34,0),IF($G34=1,IVM!G34,0)) -> 0 | J34: ALB | K34: =IF($J34="ALB", IF(INTRO!$E$39="Non-endemic", IF($H34<>0, IF($I34=0, $D34*$H34, $D34*($H34-$G34)), 0), $D34*$H34), 0) -> 94352 | L34: 232250 | N34: 326602 | O34: =IF($J34="MBD", IF(INTRO!$E$39="Non-endemic", IF($H34<>0, IF($I34=0, $D34*$H34, $D34*($H34-$G34)), 0), $D34*$H34), 0) -> 0 | P34: 0 | R34: 0 | T34: 0 | U34: 0 | W34: 232250 | X34: 1162 | Z34: 0 | AA34: 0
A35: =IF(AND(INTRO!$E$37="Non-endemic",INTRO!$E$41="Non-endemic")," ",IF(COUNTRY_INFO!A34=0," ",COUNTRY_INFO!A34)) -> RWANDA | B35: =IF(AND(INTRO!$E$37="Non-endemic",INTRO!$E$41="Non-endemic")," ",IF(COUNTRY_INFO!B34=0," ",COUNTRY_INFO!B34)) -> Northern | C35: =IF(AND(INTRO!$E$37="Non-endemic",INTRO!$E$41="Non-endemic")," ",IF(COUNTRY_INFO!C34=0," ",COUNTRY_INFO!C34)) -> Rulindo | D35: =IF(AND(INTRO!$E$37="Non-endemic",INTRO!$E$41="Non-endemic"),0,IF(AND(OR(COUNTRY_INFO!$H34=0,COUNTRY_INFO!$H34=4,COUNTRY_INFO!$H34=99),OR(COUNTRY_INFO!$J34=0,COUNTRY_INFO!$J34=4)),0,COUNTRY_INFO!$E34)) -> 40500 | E35: =IF(AND(INTRO!$E$37="Non-endemic",INTRO!$E$41="Non-endemic"),0,IF(AND(OR(COUNTRY_INFO!$H34=0,COUNTRY_INFO!$H34=4,COUNTRY_INFO!$H34=99),OR(COUNTRY_INFO!$J34=0,COUNTRY_INFO!$J34=4)),0,COUNTRY_INFO!$F34)) -> 99691 | F35: 140191 | G35: =IF(AND(INTRO!$E$37="Non-endemic",INTRO!$E$41="Non-endemic"),0,COUNTRY_INFO!P34) -> 0 | H35: =IF(AND(INTRO!$E$37="Non-endemic",INTRO!$E$41="Non-endemic"),0,COUNTRY_INFO!R34) -> 2 | I35: =IF(INTRO!$E$39="Non-endemic",IF($G35=1,DEC!I35,0),IF($G35=1,IVM!G35,0)) -> 0 | J35: ALB | K35: =IF($J35="ALB", IF(INTRO!$E$39="Non-endemic", IF($H35<>0, IF($I35=0, $D35*$H35, $D35*($H35-$G35)), 0), $D35*$H35), 0) -> 81000 | L35: 199382 | N35: 280382 | O35: =IF($J35="MBD", IF(INTRO!$E$39="Non-endemic", IF($H35<>0, IF($I35=0, $D35*$H35, $D35*($H35-$G35)), 0), $D35*$H35), 0) -> 0 | P35: 0 | R35: 0 | T35: 0 | U35: 0 | W35: 199382 | X35: 997 | Z35: 0 | AA35: 0
A36: =IF(AND(INTRO!$E$37="Non-endemic",INTRO!$E$41="Non-endemic")," ",IF(COUNTRY_INFO!A35=0," ",COUNTRY_INFO!A35)) -> RWANDA | B36: =IF(AND(INTRO!$E$37="Non-endemic",INTRO!$E$41="Non-endemic")," ",IF(COUNTRY_INFO!B35=0," ",COUNTRY_INFO!B35)) -> Western | C36: =IF(AND(INTRO!$E$37="Non-endemic",INTRO!$E$41="Non-endemic")," ",IF(COUNTRY_INFO!C35=0," ",COUNTRY_INFO!C35)) -> Rusizi | D36: =IF(AND(INTRO!$E$37="Non-endemic",INTRO!$E$41="Non-endemic"),0,IF(AND(OR(COUNTRY_INFO!$H35=0,COUNTRY_INFO!$H35=4,COUNTRY_INFO!$H35=99),OR(COUNTRY_INFO!$J35=0,COUNTRY_INFO!$J35=4)),0,COUNTRY_INFO!$E35)) -> 58288 | E36: =IF(AND(INTRO!$E$37="Non-endemic",INTRO!$E$41="Non-endemic"),0,IF(AND(OR(COUNTRY_INFO!$H35=0,COUNTRY_INFO!$H35=4,COUNTRY_INFO!$H35=99),OR(COUNTRY_INFO!$J35=0,COUNTRY_INFO!$J35=4)),0,COUNTRY_INFO!$F35)) -> 143478 | F36: 201766 | G36: =IF(AND(INTRO!$E$37="Non-endemic",INTRO!$E$41="Non-endemic"),0,COUNTRY_INFO!P35) -> 0 | H36: =IF(AND(INTRO!$E$37="Non-endemic",INTRO!$E$41="Non-endemic"),0,COUNTRY_INFO!R35) -> 2 | I36: =IF(INTRO!$E$39="Non-endemic",IF($G36=1,DEC!I36,0),IF($G36=1,IVM!G36,0)) -> 0 | J36: ALB | K36: =IF($J36="ALB", IF(INTRO!$E$39="Non-endemic", IF($H36<>0, IF($I36=0, $D36*$H36, $D36*($H36-$G36)), 0), $D36*$H36), 0) -> 116576 | L36: 286956 | N36: 403532 | O36: =IF($J36="MBD", IF(INTRO!$E$39="Non-endemic", IF($H36<>0, IF($I36=0, $D36*$H36, $D36*($H36-$G36)), 0), $D36*$H36), 0) -> 0 | P36: 0 | R36: 0 | T36: 0 | U36: 0 | W36: 286956 | X36: 1435 | Z36: 0 | AA36: 0
A37: =IF(AND(INTRO!$E$37="Non-endemic",INTRO!$E$41="Non-endemic")," ",IF(COUNTRY_INFO!A36=0," ",COUNTRY_INFO!A36)) -> RWANDA | B37: =IF(AND(INTRO!$E$37="Non-endemic",INTRO!$E$41="Non-endemic")," ",IF(COUNTRY_INFO!B36=0," ",COUNTRY_INFO!B36)) -> Western | C37: =IF(AND(INTRO!$E$37="Non-endemic",INTRO!$E$41="Non-endemic")," ",IF(COUNTRY_INFO!C36=0," ",COUNTRY_INFO!C36)) -> Rutsiro | D37: =IF(AND(INTRO!$E$37="Non-endemic",INTRO!$E$41="Non-endemic"),0,IF(AND(OR(COUNTRY_INFO!$H36=0,COUNTRY_INFO!$H36=4,COUNTRY_INFO!$H36=99),OR(COUNTRY_INFO!$J36=0,COUNTRY_INFO!$J36=4)),0,COUNTRY_INFO!$E36)) -> 46504 | E37: =IF(AND(INTRO!$E$37="Non-endemic",INTRO!$E$41="Non-endemic"),0,IF(AND(OR(COUNTRY_INFO!$H36=0,COUNTRY_INFO!$H36=4,COUNTRY_INFO!$H36=99),OR(COUNTRY_INFO!$J36=0,COUNTRY_INFO!$J36=4)),0,COUNTRY_INFO!$F36)) -> 114473 | F37: 160977 | G37: =IF(AND(INTRO!$E$37="Non-endemic",INTRO!$E$41="Non-endemic"),0,COUNTRY_INFO!P36) -> 0 | H37: =IF(AND(INTRO!$E$37="Non-endemic",INTRO!$E$41="Non-endemic"),0,COUNTRY_INFO!R36) -> 2 | I37: =IF(INTRO!$E$39="Non-endemic",IF($G37=1,DEC!I37,0),IF($G37=1,IVM!G37,0)) -> 0 | J37: ALB | K37: =IF($J37="ALB", IF(INTRO!$E$39="Non-endemic", IF($H37<>0, IF($I37=0, $D37*$H37, $D37*($H37-$G37)), 0), $D37*$H37), 0) -> 93008 | L37: 228946 | N37: 321954 | O37: =IF($J37="MBD", IF(INTRO!$E$39="Non-endemic", IF($H37<>0, IF($I37=0, $D37*$H37, $D37*($H37-$G37)), 0), $D37*$H37), 0) -> 0 | P37: 0 | R37: 0 | T37: 0 | U37: 0 | W37: 228946 | X37: 1145 | Z37: 0 | AA37: 0
A38: =IF(AND(INTRO!$E$37="Non-endemic",INTRO!$E$41="Non-endemic")," ",IF(COUNTRY_INFO!A37=0," ",COUNTRY_INFO!A37)) -> RWANDA | B38: =IF(AND(INTRO!$E$37="Non-endemic",INTRO!$E$41="Non-endemic")," ",IF(COUNTRY_INFO!B37=0," ",COUNTRY_INFO!B37)) -> Eastern | C38: =IF(AND(INTRO!$E$37="Non-endemic",INTRO!$E$41="Non-endemic")," ",IF(COUNTRY_INFO!C37=0," ",COUNTRY_INFO!C37)) -> Rwamagana | D38: =IF(AND(INTRO!$E$37="Non-endemic",INTRO!$E$41="Non-endemic"),0,IF(AND(OR(COUNTRY_INFO!$H37=0,COUNTRY_INFO!$H37=4,COUNTRY_INFO!$H37=99),OR(COUNTRY_INFO!$J37=0,COUNTRY_INFO!$J37=4)),0,COUNTRY_INFO!$E37)) -> 47359 | E38: =IF(AND(INTRO!$E$37="Non-endemic",INTRO!$E$41="Non-endemic"),0,IF(AND(OR(COUNTRY_INFO!$H37=0,COUNTRY_INFO!$H37=4,COUNTRY_INFO!$H37=99),OR(COUNTRY_INFO!$J37=0,COUNTRY_INFO!$J37=4)),0,COUNTRY_INFO!$F37)) -> 116577 | F38: 163936 | G38: =IF(AND(INTRO!$E$37="Non-endemic",INTRO!$E$41="Non-endemic"),0,COUNTRY_INFO!P37) -> 0 | H38: =IF(AND(INTRO!$E$37="Non-endemic",INTRO!$E$41="Non-endemic"),0,COUNTRY_INFO!R37) -> 2 | I38: =IF(INTRO!$E$39="Non-endemic",IF($G38=1,DEC!I38,0),IF($G38=1,IVM!G38,0)) -> 0 | J38: ALB | K38: =IF($J38="ALB", IF(INTRO!$E$39="Non-endemic", IF($H38<>0, IF($I38=0, $D38*$H38, $D38*($H38-$G38)), 0), $D38*$H38), 0) -> 94718 | L38: 233154 | N38: 327872 | O38: =IF($J38="MBD", IF(INTRO!$E$39="Non-endemic", IF($H38<>0, IF($I38=0, $D38*$H38, $D38*($H38-$G38)), 0), $D38*$H38), 0) -> 0 | P38: 0 | R38: 0 | T38: 0 | U38: 0 | W38: 233154 | X38: 1166 | Z38: 0 | AA38: 0

Sheet PZQ
A1: Praziquantel (PZQ)
A2: Administrative structure, eligible population by age group, treatment plan and information about tablets
A4: TOTAL | D4: =SUM(D$9:D$1000) -> 2594337 | E4: =SUM(E$9:E$1000) -> 3625689.2 | F4: =SUM(F$9:F$1000) -> 6220026.2 | I4: =SUM(I$9:I$1000) -> 2594337 | J4: =SUM(J$9:J$1000) -> 1597277 | K4: =SUM(K$9:K$1000) -> 3139099 | L4: =SUM(L$9:L$1000) -> 4736376 | M4: =SUM(M$9:M$1000) -> 3993192.5 | N4: 9417297 | O4: 3993192.5 | P4: 0 | Q4: 3993192.5 | R4: 4009
A6: Country administrative structure | D6: Population requiring treatment with PZQ | G6: Treatment plan | I6: Target population | M6: Praziquantel (PZQ)
A7: Country | B7: Province/State | C7: District | D7: SAC | E7: Adults | F7: Total | G7: SCH | H7: All SAC targeted? | I7: SAC | J7: SAC at lower level | K7: Adults | L7: Total | M7: SAC | N7: Adults | O7: Total required for SAC | P7: Remaining in stock | Q7: Tablets to be procured | R7: Bottle (600 mg) 1000 tablets
A9: =IF(INTRO!$E$43="Non-endemic"," ", IF(COUNTRY_INFO!A8=0," ",COUNTRY_INFO!A8)) -> RWANDA | B9: =IF(INTRO!$E$43="Non-endemic"," ", IF(COUNTRY_INFO!B8=0," ",COUNTRY_INFO!B8)) -> Eastern | C9: =IF(INTRO!$E$43="Non-endemic"," ", IF(COUNTRY_INFO!C8=0," ",COUNTRY_INFO!C8)) -> Bugesera | D9: 34455 | F9: =SUM(D9:E9) -> 34455 | G9: =IF(INTRO!$E$43="Non-endemic", "Not required", COUNTRY_INFO!S8) -> 1 | I9: =IF($D9=0,0,IF(AND($G9>0,$H9<>"Yes"),D9,IF(AND($G9>0,$H9="Yes"),COUNTRY_INFO!$F8,0))) -> 34455 | J9: 73913 | K9: 145260 | L9: =IF($J9=0,SUM(I9,K9),SUM(J9,K9)) -> 219173 | M9: =IF($J9=0,$I9*2.5,$J9*2.5) -> 184782.5 | N9: =$K9*3 -> 435780 | O9: =M9 -> 184782.5 | Q9: =IF($O9>$P9,O9-P9,0) -> 184782.5 | R9: =ROUNDUP($O9/1000,0) -> 185
A10: =IF(INTRO!$E$43="Non-endemic"," ", IF(COUNTRY_INFO!A9=0," ",COUNTRY_INFO!A9)) -> RWANDA | B10: =IF(INTRO!$E$43="Non-endemic"," ", IF(COUNTRY_INFO!B9=0," ",COUNTRY_INFO!B9)) -> Northern | C10: =IF(INTRO!$E$43="Non-endemic"," ", IF(COUNTRY_INFO!C9=0," ",COUNTRY_INFO!C9)) -> Burera | D10: =IF(INTRO!$E$43="Non-endemic", 0, IF(COUNTRY_INFO!$K9>0, IF(COUNTRY_INFO!$K9=4, 0, IF(COUNTRY_INFO!$K9=1, COUNTRY_INFO!$F9*0.33, IF(COUNTRY_INFO!$K9=2, COUNTRY_INFO!$F9*0.5, COUNTRY_INFO!$F9))), 0)) -> 56310.5 | E10: =IF(INTRO!$E$43="Non-endemic", 0, IF(COUNTRY_INFO!$K9>0, IF(COUNTRY_INFO!$K9=4, 0, IF(COUNTRY_INFO!$K9=1, 0, IF(COUNTRY_INFO!$K9=2, COUNTRY_INFO!$G9*0.2, COUNTRY_INFO!$G9))), 0)) -> 44266.2 | F10: 100576.7 | G10: =IF(INTRO!$E$43="Non-endemic", "Not required", COUNTRY_INFO!S9) -> 1 | I10: =IF($D10=0,0,IF(AND($G10>0,$H10<>"Yes"),D10,IF(AND($G10>0,$H10="Yes"),COUNTRY_INFO!$F9,0))) -> 56310.5 | J10: 35663 | K10: 70088 | L10: 105751 | M10: 89157.5 | N10: 210264 | O10: 89157.5 | Q10: 89157.5 | R10: 90
A11: =IF(INTRO!$E$43="Non-endemic"," ", IF(COUNTRY_INFO!A10=0," ",COUNTRY_INFO!A10)) -> RWANDA | B11: =IF(INTRO!$E$43="Non-endemic"," ", IF(COUNTRY_INFO!B10=0," ",COUNTRY_INFO!B10)) -> Northern | C11: =IF(INTRO!$E$43="Non-endemic"," ", IF(COUNTRY_INFO!C10=0," ",COUNTRY_INFO!C10)) -> Gakenke | D11: =IF(INTRO!$E$43="Non-endemic", 0, IF(COUNTRY_INFO!$K10>0, IF(COUNTRY_INFO!$K10=4, 0, IF(COUNTRY_INFO!$K10=1, COUNTRY_INFO!$F10*0.33, IF(COUNTRY_INFO!$K10=2, COUNTRY_INFO!$F10*0.5, COUNTRY_INFO!$F10))), 0)) -> 112158 | E11: =IF(INTRO!$E$43="Non-endemic", 0, IF(COUNTRY_INFO!$K10>0, IF(COUNTRY_INFO!$K10=4, 0, IF(COUNTRY_INFO!$K10=1, 0, IF(COUNTRY_INFO!$K10=2, COUNTRY_INFO!$G10*0.2, COUNTRY_INFO!$G10))), 0)) -> 220422 | F11: 332580 | G11: =IF(INTRO!$E$43="Non-endemic", "Not required", COUNTRY_INFO!S10) -> 1 | I11: =IF($D11=0,0,IF(AND($G11>0,$H11<>"Yes"),D11,IF(AND($G11>0,$H11="Yes"),COUNTRY_INFO!$F10,0))) -> 112158 | J11: 90722 | K11: 178295 | L11: 269017 | M11: 226805 | N11: 534885 | O11: 226805 | Q11: 226805 | R11: 227
A12: =IF(INTRO!$E$43="Non-endemic"," ", IF(COUNTRY_INFO!A11=0," ",COUNTRY_INFO!A11)) -> RWANDA | B12: =IF(INTRO!$E$43="Non-endemic"," ", IF(COUNTRY_INFO!B11=0," ",COUNTRY_INFO!B11)) -> Kigali | C12: =IF(INTRO!$E$43="Non-endemic"," ", IF(COUNTRY_INFO!C11=0," ",COUNTRY_INFO!C11)) -> Gasabo | D12: =IF(INTRO!$E$43="Non-endemic", 0, IF(COUNTRY_INFO!$K11>0, IF(COUNTRY_INFO!$K11=4, 0, IF(COUNTRY_INFO!$K11=1, COUNTRY_INFO!$F11*0.33, IF(COUNTRY_INFO!$K11=2, COUNTRY_INFO!$F11*0.5, COUNTRY_INFO!$F11))), 0)) -> 242870 | E12: =IF(INTRO!$E$43="Non-endemic", 0, IF(COUNTRY_INFO!$K11>0, IF(COUNTRY_INFO!$K11=4, 0, IF(COUNTRY_INFO!$K11=1, 0, IF(COUNTRY_INFO!$K11=2, COUNTRY_INFO!$G11*0.2, COUNTRY_INFO!$G11))), 0)) -> 477308 | F12: 720178 | G12: =IF(INTRO!$E$43="Non-endemic", "Not required", COUNTRY_INFO!S11) -> 1 | I12: =IF($D12=0,0,IF(AND($G12>0,$H12<>"Yes"),D12,IF(AND($G12>0,$H12="Yes"),COUNTRY_INFO!$F11,0))) -> 242870 | J12: 34013 | K12: 66846 | L12: 100859 | M12: 85032.5 | N12: 200538 | O12: 85032.5 | Q12: 85032.5 | R12: 86
A13: =IF(INTRO!$E$43="Non-endemic"," ", IF(COUNTRY_INFO!A12=0," ",COUNTRY_INFO!A12)) -> RWANDA | B13: =IF(INTRO!$E$43="Non-endemic"," ", IF(COUNTRY_INFO!B12=0," ",COUNTRY_INFO!B12)) -> Eastern | C13: =IF(INTRO!$E$43="Non-endemic"," ", IF(COUNTRY_INFO!C12=0," ",COUNTRY_INFO!C12)) -> Gatsibo | D13: =IF(INTRO!$E$43="Non-endemic", 0, IF(COUNTRY_INFO!$K12>0, IF(COUNTRY_INFO!$K12=4, 0, IF(COUNTRY_INFO!$K12=1, COUNTRY_INFO!$F12*0.33, IF(COUNTRY_INFO!$K12=2, COUNTRY_INFO!$F12*0.5, COUNTRY_INFO!$F12))), 0)) -> 170086 | E13: =IF(INTRO!$E$43="Non-endemic", 0, IF(COUNTRY_INFO!$K12>0, IF(COUNTRY_INFO!$K12=4, 0, IF(COUNTRY_INFO!$K12=1, 0, IF(COUNTRY_INFO!$K12=2, COUNTRY_INFO!$G12*0.2, COUNTRY_INFO!$G12))), 0)) -> 334267 | F13: 504353 | G13: =IF(INTRO!$E$43="Non-endemic", "Not required", COUNTRY_INFO!S12) -> 1 | I13: =IF($D13=0,0,IF(AND($G13>0,$H13<>"Yes"),D13,IF(AND($G13>0,$H13="Yes"),COUNTRY_INFO!$F12,0))) -> 170086 | J13: 120273 | K13: 236369 | L13: 356642 | M13: 300682.5 | N13: 709107 | O13: 300682.5 | Q13: 300682.5 | R13: 301
A14: =IF(INTRO!$E$43="Non-endemic"," ", IF(COUNTRY_INFO!A13=0," ",COUNTRY_INFO!A13)) -> RWANDA | B14: =IF(INTRO!$E$43="Non-endemic"," ", IF(COUNTRY_INFO!B13=0," ",COUNTRY_INFO!B13)) -> Northern | C14: =IF(INTRO!$E$43="Non-endemic"," ", IF(COUNTRY_INFO!C13=0," ",COUNTRY_INFO!C13)) -> Gicumbi | D14: =IF(INTRO!$E$43="Non-endemic", 0, IF(COUNTRY_INFO!$K13>0, IF(COUNTRY_INFO!$K13=4, 0, IF(COUNTRY_INFO!$K13=1, COUNTRY_INFO!$F13*0.33, IF(COUNTRY_INFO!$K13=2, COUNTRY_INFO!$F13*0.5, COUNTRY_INFO!$F13))), 0)) -> 68526.5 | E14: =IF(INTRO!$E$43="Non-endemic", 0, IF(COUNTRY_INFO!$K13>0, IF(COUNTRY_INFO!$K13=4, 0, IF(COUNTRY_INFO!$K13=1, 0, IF(COUNTRY_INFO!$K13=2, COUNTRY_INFO!$G13*0.2, COUNTRY_INFO!$G13))), 0)) -> 53869.6 | F14: 122396.1 | G14: =IF(INTRO!$E$43="Non-endemic", "Not required", COUNTRY_INFO!S13) -> 1 | I14: =IF($D14=0,0,IF(AND($G14>0,$H14<>"Yes"),D14,IF(AND($G14>0,$H14="Yes"),COUNTRY_INFO!$F13,0))) -> 68526.5 | J14: 56711 | K14: 111453 | L14: 168164 | M14: 141777.5 | N14: 334359 | O14: 141777.5 | Q14: 141777.5 | R14: 142
A15: =IF(INTRO!$E$43="Non-endemic"," ", IF(COUNTRY_INFO!A14=0," ",COUNTRY_INFO!A14)) -> RWANDA | B15: =IF(INTRO!$E$43="Non-endemic"," ", IF(COUNTRY_INFO!B14=0," ",COUNTRY_INFO!B14)) -> Southern | C15: =IF(INTRO!$E$43="Non-endemic"," ", IF(COUNTRY_INFO!C14=0," ",COUNTRY_INFO!C14)) -> Gisagara | D15: =IF(INTRO!$E$43="Non-endemic", 0, IF(COUNTRY_INFO!$K14>0, IF(COUNTRY_INFO!$K14=4, 0, IF(COUNTRY_INFO!$K14=1, COUNTRY_INFO!$F14*0.33, IF(COUNTRY_INFO!$K14=2, COUNTRY_INFO!$F14*0.5, COUNTRY_INFO!$F14))), 0)) -> 57422.5 | E15: =IF(INTRO!$E$43="Non-endemic", 0, IF(COUNTRY_INFO!$K14>0, IF(COUNTRY_INFO!$K14=4, 0, IF(COUNTRY_INFO!$K14=1, 0, IF(COUNTRY_INFO!$K14=2, COUNTRY_INFO!$G14*0.2, COUNTRY_INFO!$G14))), 0)) -> 45140.4 | F15: 102562.9 | G15: =IF(INTRO!$E$43="Non-endemic", "Not required", COUNTRY_INFO!S14) -> 1 | I15: =IF($D15=0,0,IF(AND($G15>0,$H15<>"Yes"),D15,IF(AND($G15>0,$H15="Yes"),COUNTRY_INFO!$F14,0))) -> 57422.5 | J15: 55938 | K15: 109934 | L15: 165872 | M15: 139845 | N15: 329802 | O15: 139845 | Q15: 139845 | R15: 140
A16: =IF(INTRO!$E$43="Non-endemic"," ", IF(COUNTRY_INFO!A15=0," ",COUNTRY_INFO!A15)) -> RWANDA | B16: =IF(INTRO!$E$43="Non-endemic"," ", IF(COUNTRY_INFO!B15=0," ",COUNTRY_INFO!B15)) -> Southern | C16: =IF(INTRO!$E$43="Non-endemic"," ", IF(COUNTRY_INFO!C15=0," ",COUNTRY_INFO!C15)) -> Huye | D16: =IF(INTRO!$E$43="Non-endemic", 0, IF(COUNTRY_INFO!$K15>0, IF(COUNTRY_INFO!$K15=4, 0, IF(COUNTRY_INFO!$K15=1, COUNTRY_INFO!$F15*0.33, IF(COUNTRY_INFO!$K15=2, COUNTRY_INFO!$F15*0.5, COUNTRY_INFO!$F15))), 0)) -> 58612 | E16: =IF(INTRO!$E$43="Non-endemic", 0, IF(COUNTRY_INFO!$K15>0, IF(COUNTRY_INFO!$K15=4, 0, IF(COUNTRY_INFO!$K15=1, 0, IF(COUNTRY_INFO!$K15=2, COUNTRY_INFO!$G15*0.2, COUNTRY_INFO!$G15))), 0)) -> 46075.4 | F16: 104687.4 | G16: =IF(INTRO!$E$43="Non-endemic", "Not required", COUNTRY_INFO!S15) -> 1 | I16: =IF($D16=0,0,IF(AND($G16>0,$H16<>"Yes"),D16,IF(AND($G16>0,$H16="Yes"),COUNTRY_INFO!$F15,0))) -> 58612 | J16: 59652 | K16: 117233 | L16: 176885 | M16: 149130 | N16: 351699 | O16: 149130 | Q16: 149130 | R16: 150
A17: =IF(INTRO!$E$43="Non-endemic"," ", IF(COUNTRY_INFO!A16=0," ",COUNTRY_INFO!A16)) -> RWANDA | B17: =IF(INTRO!$E$43="Non-endemic"," ", IF(COUNTRY_INFO!B16=0," ",COUNTRY_INFO!B16)) -> Southern | C17: =IF(INTRO!$E$43="Non-endemic"," ", IF(COUNTRY_INFO!C16=0," ",COUNTRY_INFO!C16)) -> Kamonyi | D17: =IF(INTRO!$E$43="Non-endemic", 0, IF(COUNTRY_INFO!$K16>0, IF(COUNTRY_INFO!$K16=4, 0, IF(COUNTRY_INFO!$K16=1, COUNTRY_INFO!$F16*0.33, IF(COUNTRY_INFO!$K16=2, COUNTRY_INFO!$F16*0.5, COUNTRY_INFO!$F16))), 0)) -> 125294 | E17: =IF(INTRO!$E$43="Non-endemic", 0, IF(COUNTRY_INFO!$K16>0, IF(COUNTRY_INFO!$K16=4, 0, IF(COUNTRY_INFO!$K16=1, 0, IF(COUNTRY_INFO!$K16=2, COUNTRY_INFO!$G16*0.2, COUNTRY_INFO!$G16))), 0)) -> 246238 | F17: 371532 | G17: =IF(INTRO!$E$43="Non-endemic", "Not required", COUNTRY_INFO!S16) -> 1 | I17: =IF($D17=0,0,IF(AND($G17>0,$H17<>"Yes"),D17,IF(AND($G17>0,$H17="Yes"),COUNTRY_INFO!$F16,0))) -> 125294 | J17: 57493 | K17: 112990 | L17: 170483 | M17: 143732.5 | N17: 338970 | O17: 143732.5 | Q17: 143732.5 | R17: 144
A18: =IF(INTRO!$E$43="Non-endemic"," ", IF(COUNTRY_INFO!A17=0," ",COUNTRY_INFO!A17)) -> RWANDA | B18: =IF(INTRO!$E$43="Non-endemic"," ", IF(COUNTRY_INFO!B17=0," ",COUNTRY_INFO!B17)) -> Western | C18: =IF(INTRO!$E$43="Non-endemic"," ", IF(COUNTRY_INFO!C17=0," ",COUNTRY_INFO!C17)) -> Karongi | D18: =IF(INTRO!$E$43="Non-endemic", 0, IF(COUNTRY_INFO!$K17>0, IF(COUNTRY_INFO!$K17=4, 0, IF(COUNTRY_INFO!$K17=1, COUNTRY_INFO!$F17*0.33, IF(COUNTRY_INFO!$K17=2, COUNTRY_INFO!$F17*0.5, COUNTRY_INFO!$F17))), 0)) -> 58094.5 | E18: =IF(INTRO!$E$43="Non-endemic", 0, IF(COUNTRY_INFO!$K17>0, IF(COUNTRY_INFO!$K17=4, 0, IF(COUNTRY_INFO!$K17=1, 0, IF(COUNTRY_INFO!$K17=2, COUNTRY_INFO!$G17*0.2, COUNTRY_INFO!$G17))), 0)) -> 45668.6 | F18: 103763.1 | G18: =IF(INTRO!$E$43="Non-endemic", "Not required", COUNTRY_INFO!S17) -> 1 | I18: =IF($D18=0,0,IF(AND($G18>0,$H18<>"Yes"),D18,IF(AND($G18>0,$H18="Yes"),COUNTRY_INFO!$F17,0))) -> 58094.5 | J18: 22338 | K18: 43901 | L18: 66239 | M18: 55845 | N18: 131703 | O18: 55845 | Q18: 55845 | R18: 56
A19: =IF(INTRO!$E$43="Non-endemic"," ", IF(COUNTRY_INFO!A18=0," ",COUNTRY_INFO!A18)) -> RWANDA | B19: =IF(INTRO!$E$43="Non-endemic"," ", IF(COUNTRY_INFO!B18=0," ",COUNTRY_INFO!B18)) -> Eastern | C19: =IF(INTRO!$E$43="Non-endemic"," ", IF(COUNTRY_INFO!C18=0," ",COUNTRY_INFO!C18)) -> Kayonza | D19: =IF(INTRO!$E$43="Non-endemic", 0, IF(COUNTRY_INFO!$K18>0, IF(COUNTRY_INFO!$K18=4, 0, IF(COUNTRY_INFO!$K18=1, COUNTRY_INFO!$F18*0.33, IF(COUNTRY_INFO!$K18=2, COUNTRY_INFO!$F18*0.5, COUNTRY_INFO!$F18))), 0)) -> 139119 | E19: =IF(INTRO!$E$43="Non-endemic", 0, IF(COUNTRY_INFO!$K18>0, IF(COUNTRY_INFO!$K18=4, 0, IF(COUNTRY_INFO!$K18=1, 0, IF(COUNTRY_INFO!$K18=2, COUNTRY_INFO!$G18*0.2, COUNTRY_INFO!$G18))), 0)) -> 273408 | F19: 412527 | G19: =IF(INTRO!$E$43="Non-endemic", "Not required", COUNTRY_INFO!S18) -> 1 | I19: =IF($D19=0,0,IF(AND($G19>0,$H19<>"Yes"),D19,IF(AND($G19>0,$H19="Yes"),COUNTRY_INFO!$F18,0))) -> 139119 | J19: 43683 | K19: 85848 | L19: 129531 | M19: 109207.5 | N19: 257544 | O19: 109207.5 | Q19: 109207.5 | R19: 110
A20: =IF(INTRO!$E$43="Non-endemic"," ", IF(COUNTRY_INFO!A19=0," ",COUNTRY_INFO!A19)) -> RWANDA | B20: =IF(INTRO!$E$43="Non-endemic"," ", IF(COUNTRY_INFO!B19=0," ",COUNTRY_INFO!B19)) -> Kigali | C20: =IF(INTRO!$E$43="Non-endemic"," ", IF(COUNTRY_INFO!C19=0," ",COUNTRY_INFO!C19)) -> Kicukiro | D20: =IF(INTRO!$E$43="Non-endemic", 0, IF(COUNTRY_INFO!$K19>0, IF(COUNTRY_INFO!$K19=4, 0, IF(COUNTRY_INFO!$K19=1, COUNTRY_INFO!$F19*0.33, IF(COUNTRY_INFO!$K19=2, COUNTRY_INFO!$F19*0.5, COUNTRY_INFO!$F19))), 0)) -> 62180 | E20: =IF(INTRO!$E$43="Non-endemic", 0, IF(COUNTRY_INFO!$K19>0, IF(COUNTRY_INFO!$K19=4, 0, IF(COUNTRY_INFO!$K19=1, 0, IF(COUNTRY_INFO!$K19=2, COUNTRY_INFO!$G19*0.2, COUNTRY_INFO!$G19))), 0)) -> 48880.6 | F20: 111060.6 | G20: =IF(INTRO!$E$43="Non-endemic", "Not required", COUNTRY_INFO!S19) -> 1 | I20: =IF($D20=0,0,IF(AND($G20>0,$H20<>"Yes"),D20,IF(AND($G20>0,$H20="Yes"),COUNTRY_INFO!$F19,0))) -> 62180 | J20: 33579 | K20: 65993 | L20: 99572 | M20: 83947.5 | N20: 197979 | O20: 83947.5 | Q20: 83947.5 | R20: 84
A21: =IF(INTRO!$E$43="Non-endemic"," ", IF(COUNTRY_INFO!A20=0," ",COUNTRY_INFO!A20)) -> RWANDA | B21: =IF(INTRO!$E$43="Non-endemic"," ", IF(COUNTRY_INFO!B20=0," ",COUNTRY_INFO!B20)) -> Eastern | C21: =IF(INTRO!$E$43="Non-endemic"," ", IF(COUNTRY_INFO!C20=0," ",COUNTRY_INFO!C20)) -> Kirehe | D21: =IF(INTRO!$E$43="Non-endemic", 0, IF(COUNTRY_INFO!$K20>0, IF(COUNTRY_INFO!$K20=4, 0, IF(COUNTRY_INFO!$K20=1, COUNTRY_INFO!$F20*0.33, IF(COUNTRY_INFO!$K20=2, COUNTRY_INFO!$F20*0.5, COUNTRY_INFO!$F20))), 0)) -> 130617 | E21: =IF(INTRO!$E$43="Non-endemic", 0, IF(COUNTRY_INFO!$K20>0, IF(COUNTRY_INFO!$K20=4, 0, IF(COUNTRY_INFO!$K20=1, 0, IF(COUNTRY_INFO!$K20=2, COUNTRY_INFO!$G20*0.2, COUNTRY_INFO!$G20))), 0)) -> 256699 | F21: 387316 | G21: =IF(INTRO!$E$43="Non-endemic", "Not required", COUNTRY_INFO!S20) -> 1 | I21: =IF($D21=0,0,IF(AND($G21>0,$H21<>"Yes"),D21,IF(AND($G21>0,$H21="Yes"),COUNTRY_INFO!$F20,0))) -> 130617 | J21: 52211 | K21: 102610 | L21: 154821 | M21: 130527.5 | N21: 307830 | O21: 130527.5 | Q21: 130527.5 | R21: 131
A22: =IF(INTRO!$E$43="Non-endemic"," ", IF(COUNTRY_INFO!A21=0," ",COUNTRY_INFO!A21)) -> RWANDA | B22: =IF(INTRO!$E$43="Non-endemic"," ", IF(COUNTRY_INFO!B21=0," ",COUNTRY_INFO!B21)) -> Southern | C22: =IF(INTRO!$E$43="Non-endemic"," ", IF(COUNTRY_INFO!C21=0," ",COUNTRY_INFO!C21)) -> Muhanga | D22: =IF(INTRO!$E$43="Non-endemic", 0, IF(COUNTRY_INFO!$K21>0, IF(COUNTRY_INFO!$K21=4, 0, IF(COUNTRY_INFO!$K21=1, COUNTRY_INFO!$F21*0.33, IF(COUNTRY_INFO!$K21=2, COUNTRY_INFO!$F21*0.5, COUNTRY_INFO!$F21))), 0)) -> 109018 | E22: =IF(INTRO!$E$43="Non-endemic", 0, IF(COUNTRY_INFO!$K21>0, IF(COUNTRY_INFO!$K21=4, 0, IF(COUNTRY_INFO!$K21=1, 0, IF(COUNTRY_INFO!$K21=2, COUNTRY_INFO!$G21*0.2, COUNTRY_INFO!$G21))), 0)) -> 214250 | F22: 323268 | G22: =IF(INTRO!$E$43="Non-endemic", "Not required", COUNTRY_INFO!S21) -> 1 | I22: =IF($D22=0,0,IF(AND($G22>0,$H22<>"Yes"),D22,IF(AND($G22>0,$H22="Yes"),COUNTRY_INFO!$F21,0))) -> 109018 | J22: 50422 | K22: 99094 | L22: 149516 | M22: 126055 | N22: 297282 | O22: 126055 | Q22: 126055 | R22: 127
A23: =IF(INTRO!$E$43="Non-endemic"," ", IF(COUNTRY_INFO!A22=0," ",COUNTRY_INFO!A22)) -> RWANDA | B23: =IF(INTRO!$E$43="Non-endemic"," ", IF(COUNTRY_INFO!B22=0," ",COUNTRY_INFO!B22)) -> Northern | C23: =IF(INTRO!$E$43="Non-endemic"," ", IF(COUNTRY_INFO!C22=0," ",COUNTRY_INFO!C22)) -> Musanze | D23: =IF(INTRO!$E$43="Non-endemic", 0, IF(COUNTRY_INFO!$K22>0, IF(COUNTRY_INFO!$K22=4, 0, IF(COUNTRY_INFO!$K22=1, COUNTRY_INFO!$F22*0.33, IF(COUNTRY_INFO!$K22=2, COUNTRY_INFO!$F22*0.5, COUNTRY_INFO!$F22))), 0)) -> 64857.5 | E23: =IF(INTRO!$E$43="Non-endemic", 0, IF(COUNTRY_INFO!$K22>0, IF(COUNTRY_INFO!$K22=4, 0, IF(COUNTRY_INFO!$K22=1, 0, IF(COUNTRY_INFO!$K22=2, COUNTRY_INFO!$G22*0.2, COUNTRY_INFO!$G22))), 0)) -> 50985 | F23: 115842.5 | G23: =IF(INTRO!$E$43="Non-endemic", "Not required", COUNTRY_INFO!S22) -> 1 | I23: =IF($D23=0,0,IF(AND($G23>0,$H23<>"Yes"),D23,IF(AND($G23>0,$H23="Yes"),COUNTRY_INFO!$F22,0))) -> 64857.5 | J23: 25176 | K23: 49477 | L23: 74653 | M23: 62940 | N23: 148431 | O23: 62940 | Q23: 62940 | R23: 63
A24: =IF(INTRO!$E$43="Non-endemic"," ", IF(COUNTRY_INFO!A23=0," ",COUNTRY_INFO!A23)) -> RWANDA | B24: =IF(INTRO!$E$43="Non-endemic"," ", IF(COUNTRY_INFO!B23=0," ",COUNTRY_INFO!B23)) -> Eastern | C24: =IF(INTRO!$E$43="Non-endemic"," ", IF(COUNTRY_INFO!C23=0," ",COUNTRY_INFO!C23)) -> Ngoma | D24: =IF(INTRO!$E$43="Non-endemic", 0, IF(COUNTRY_INFO!$K23>0, IF(COUNTRY_INFO!$K23=4, 0, IF(COUNTRY_INFO!$K23=1, COUNTRY_INFO!$F23*0.33, IF(COUNTRY_INFO!$K23=2, COUNTRY_INFO!$F23*0.5, COUNTRY_INFO!$F23))), 0)) -> 64036.5 | E24: =IF(INTRO!$E$43="Non-endemic", 0, IF(COUNTRY_INFO!$K23>0, IF(COUNTRY_INFO!$K23=4, 0, IF(COUNTRY_INFO!$K23=1, 0, IF(COUNTRY_INFO!$K23=2, COUNTRY_INFO!$G23*0.2, COUNTRY_INFO!$G23))), 0)) -> 50340 | F24: 114376.5 | G24: =IF(INTRO!$E$43="Non-endemic", "Not required", COUNTRY_INFO!S23) -> 1 | I24: =IF($D24=0,0,IF(AND($G24>0,$H24<>"Yes"),D24,IF(AND($G24>0,$H24="Yes"),COUNTRY_INFO!$F23,0))) -> 64036.5 | J24: 63311 | K24: 124424 | L24: 187735 | M24: 158277.5 | N24: 373272 | O24: 158277.5 | Q24: 158277.5 | R24: 159
A25: =IF(INTRO!$E$43="Non-endemic"," ", IF(COUNTRY_INFO!A24=0," ",COUNTRY_INFO!A24)) -> RWANDA | B25: =IF(INTRO!$E$43="Non-endemic"," ", IF(COUNTRY_INFO!B24=0," ",COUNTRY_INFO!B24)) -> Western | C25: =IF(INTRO!$E$43="Non-endemic"," ", IF(COUNTRY_INFO!C24=0," ",COUNTRY_INFO!C24)) -> Ngororero | D25: =IF(INTRO!$E$43="Non-endemic", 0, IF(COUNTRY_INFO!$K24>0, IF(COUNTRY_INFO!$K24=4, 0, IF(COUNTRY_INFO!$K24=1, COUNTRY_INFO!$F24*0.33, IF(COUNTRY_INFO!$K24=2, COUNTRY_INFO!$F24*0.5, COUNTRY_INFO!$F24))), 0)) -> 116958 | E25: =IF(INTRO!$E$43="Non-endemic", 0, IF(COUNTRY_INFO!$K24>0, IF(COUNTRY_INFO!$K24=4, 0, IF(COUNTRY_INFO!$K24=1, 0, IF(COUNTRY_INFO!$K24=2, COUNTRY_INFO!$G24*0.2, COUNTRY_INFO!$G24))), 0)) -> 229854 | F25: 346812 | G25: =IF(INTRO!$E$43="Non-endemic", "Not required", COUNTRY_INFO!S24) -> 1 | I25: =IF($D25=0,0,IF(AND($G25>0,$H25<>"Yes"),D25,IF(AND($G25>0,$H25="Yes"),COUNTRY_INFO!$F24,0))) -> 116958 | J25: 29224 | K25: 57434 | L25: 86658 | M25: 73060 | N25: 172302 | O25: 73060 | Q25: 73060 | R25: 74
A26: =IF(INTRO!$E$43="Non-endemic"," ", IF(COUNTRY_INFO!A25=0," ",COUNTRY_INFO!A25)) -> RWANDA | B26: =IF(INTRO!$E$43="Non-endemic"," ", IF(COUNTRY_INFO!B25=0," ",COUNTRY_INFO!B25)) -> Western | C26: =IF(INTRO!$E$43="Non-endemic"," ", IF(COUNTRY_INFO!C25=0," ",COUNTRY_INFO!C25)) -> Nyabihu | D26: =IF(INTRO!$E$43="Non-endemic", 0, IF(COUNTRY_INFO!$K25>0, IF(COUNTRY_INFO!$K25=4, 0, IF(COUNTRY_INFO!$K25=1, COUNTRY_INFO!$F25*0.33, IF(COUNTRY_INFO!$K25=2, COUNTRY_INFO!$F25*0.5, COUNTRY_INFO!$F25))), 0)) -> 50285 | E26: =IF(INTRO!$E$43="Non-endemic", 0, IF(COUNTRY_INFO!$K25>0, IF(COUNTRY_INFO!$K25=4, 0, IF(COUNTRY_INFO!$K25=1, 0, IF(COUNTRY_INFO!$K25=2, COUNTRY_INFO!$G25*0.2, COUNTRY_INFO!$G25))), 0)) -> 39529.8 | F26: 89814.8 | G26: =IF(INTRO!$E$43="Non-endemic", "Not required", COUNTRY_INFO!S25) -> 1 | I26: =IF($D26=0,0,IF(AND($G26>0,$H26<>"Yes"),D26,IF(AND($G26>0,$H26="Yes"),COUNTRY_INFO!$F25,0))) -> 50285 | J26: 25224 | K26: 49573 | L26: 74797 | M26: 63060 | N26: 148719 | O26: 63060 | Q26: 63060 | R26: 64
A27: =IF(INTRO!$E$43="Non-endemic"," ", IF(COUNTRY_INFO!A26=0," ",COUNTRY_INFO!A26)) -> RWANDA | B27: =IF(INTRO!$E$43="Non-endemic"," ", IF(COUNTRY_INFO!B26=0," ",COUNTRY_INFO!B26)) -> Eastern | C27: =IF(INTRO!$E$43="Non-endemic"," ", IF(COUNTRY_INFO!C26=0," ",COUNTRY_INFO!C26)) -> Nyagatare | D27: =IF(INTRO!$E$43="Non-endemic", 0, IF(COUNTRY_INFO!$K26>0, IF(COUNTRY_INFO!$K26=4, 0, IF(COUNTRY_INFO!$K26=1, COUNTRY_INFO!$F26*0.33, IF(COUNTRY_INFO!$K26=2, COUNTRY_INFO!$F26*0.5, COUNTRY_INFO!$F26))), 0)) -> 98562 | E27: =IF(INTRO!$E$43="Non-endemic", 0, IF(COUNTRY_INFO!$K26>0, IF(COUNTRY_INFO!$K26=4, 0, IF(COUNTRY_INFO!$K26=1, 0, IF(COUNTRY_INFO!$K26=2, COUNTRY_INFO!$G26*0.2, COUNTRY_INFO!$G26))), 0)) -> 77480.8 | F27: 176042.8 | G27: =IF(INTRO!$E$43="Non-endemic", "Not required", COUNTRY_INFO!S26) -> 1 | I27: =IF($D27=0,0,IF(AND($G27>0,$H27<>"Yes"),D27,IF(AND($G27>0,$H27="Yes"),COUNTRY_INFO!$F26,0))) -> 98562 | J27: 60935 | K27: 119754 | L27: 180689 | M27: 152337.5 | N27: 359262 | O27: 152337.5 | Q27: 152337.5 | R27: 153
A28: =IF(INTRO!$E$43="Non-endemic"," ", IF(COUNTRY_INFO!A27=0," ",COUNTRY_INFO!A27)) -> RWANDA | B28: =IF(INTRO!$E$43="Non-endemic"," ", IF(COUNTRY_INFO!B27=0," ",COUNTRY_INFO!B27)) -> Southern | C28: =IF(INTRO!$E$43="Non-endemic"," ", IF(COUNTRY_INFO!C27=0," ",COUNTRY_INFO!C27)) -> Nyamagabe | D28: =IF(INTRO!$E$43="Non-endemic", 0, IF(COUNTRY_INFO!$K27>0, IF(COUNTRY_INFO!$K27=4, 0, IF(COUNTRY_INFO!$K27=1, COUNTRY_INFO!$F27*0.33, IF(COUNTRY_INFO!$K27=2, COUNTRY_INFO!$F27*0.5, COUNTRY_INFO!$F27))), 0)) -> 60663 | E28: =IF(INTRO!$E$43="Non-endemic", 0, IF(COUNTRY_INFO!$K27>0, IF(COUNTRY_INFO!$K27=4, 0, IF(COUNTRY_INFO!$K27=1, 0, IF(COUNTRY_INFO!$K27=2, COUNTRY_INFO!$G27*0.2, COUNTRY_INFO!$G27))), 0)) -> 47687.8 | F28: 108350.8 | G28: =IF(INTRO!$E$43="Non-endemic", "Not required", COUNTRY_INFO!S27) -> 1 | I28: =IF($D28=0,0,IF(AND($G28>0,$H28<>"Yes"),D28,IF(AND($G28>0,$H28="Yes"),COUNTRY_INFO!$F27,0))) -> 60663 | J28: 46589 | K28: 91560 | L28: 138149 | M28: 116472.5 | N28: 274680 | O28: 116472.5 | Q28: 116472.5 | R28: 117
A29: =IF(INTRO!$E$43="Non-endemic"," ", IF(COUNTRY_INFO!A28=0," ",COUNTRY_INFO!A28)) -> RWANDA | B29: =IF(INTRO!$E$43="Non-endemic"," ", IF(COUNTRY_INFO!B28=0," ",COUNTRY_INFO!B28)) -> Western | C29: =IF(INTRO!$E$43="Non-endemic"," ", IF(COUNTRY_INFO!C28=0," ",COUNTRY_INFO!C28)) -> Nyamasheke | D29: =IF(INTRO!$E$43="Non-endemic", 0, IF(COUNTRY_INFO!$K28>0, IF(COUNTRY_INFO!$K28=4, 0, IF(COUNTRY_INFO!$K28=1, COUNTRY_INFO!$F28*0.33, IF(COUNTRY_INFO!$K28=2, COUNTRY_INFO!$F28*0.5, COUNTRY_INFO!$F28))), 0)) -> 66945 | E29: =IF(INTRO!$E$43="Non-endemic", 0, IF(COUNTRY_INFO!$K28>0, IF(COUNTRY_INFO!$K28=4, 0, IF(COUNTRY_INFO!$K28=1, 0, IF(COUNTRY_INFO!$K28=2, COUNTRY_INFO!$G28*0.2, COUNTRY_INFO!$G28))), 0)) -> 52626.4 | F29: 119571.4 | G29: =IF(INTRO!$E$43="Non-endemic", "Not required", COUNTRY_INFO!S28) -> 1 | I29: =IF($D29=0,0,IF(AND($G29>0,$H29<>"Yes"),D29,IF(AND($G29>0,$H29="Yes"),COUNTRY_INFO!$F28,0))) -> 66945 | J29: 99785 | K29: 196106 | L29: 295891 | M29: 249462.5 | N29: 588318 | O29: 249462.5 | Q29: 249462.5 | R29: 250
A30: =IF(INTRO!$E$43="Non-endemic"," ", IF(COUNTRY_INFO!A29=0," ",COUNTRY_INFO!A29)) -> RWANDA | B30: =IF(INTRO!$E$43="Non-endemic"," ", IF(COUNTRY_INFO!B29=0," ",COUNTRY_INFO!B29)) -> Southern | C30: =IF(INTRO!$E$43="Non-endemic"," ", IF(COUNTRY_INFO!C29=0," ",COUNTRY_INFO!C29)) -> Nyanza | D30: =IF(INTRO!$E$43="Non-endemic", 0, IF(COUNTRY_INFO!$K29>0, IF(COUNTRY_INFO!$K29=4, 0, IF(COUNTRY_INFO!$K29=1, COUNTRY_INFO!$F29*0.33, IF(COUNTRY_INFO!$K29=2, COUNTRY_INFO!$F29*0.5, COUNTRY_INFO!$F29))), 0)) -> 122388 | E30: =IF(INTRO!$E$43="Non-endemic", 0, IF(COUNTRY_INFO!$K29>0, IF(COUNTRY_INFO!$K29=4, 0, IF(COUNTRY_INFO!$K29=1, 0, IF(COUNTRY_INFO!$K29=2, COUNTRY_INFO!$G29*0.2, COUNTRY_INFO!$G29))), 0)) -> 240527 | F30: 362915 | G30: =IF(INTRO!$E$43="Non-endemic", "Not required", COUNTRY_INFO!S29) -> 1 | I30: =IF($D30=0,0,IF(AND($G30>0,$H30<>"Yes"),D30,IF(AND($G30>0,$H30="Yes"),COUNTRY_INFO!$F29,0))) -> 122388 | J30: 55049 | K30: 108187 | L30: 163236 | M30: 137622.5 | N30: 324561 | O30: 137622.5 | Q30: 137622.5 | R30: 138
A31: =IF(INTRO!$E$43="Non-endemic"," ", IF(COUNTRY_INFO!A30=0," ",COUNTRY_INFO!A30)) -> RWANDA | B31: =IF(INTRO!$E$43="Non-endemic"," ", IF(COUNTRY_INFO!B30=0," ",COUNTRY_INFO!B30)) -> Kigali | C31: =IF(INTRO!$E$43="Non-endemic"," ", IF(COUNTRY_INFO!C30=0," ",COUNTRY_INFO!C30)) -> Nyarugenge | D31: =IF(INTRO!$E$43="Non-endemic", 0, IF(COUNTRY_INFO!$K30>0, IF(COUNTRY_INFO!$K30=4, 0, IF(COUNTRY_INFO!$K30=1, COUNTRY_INFO!$F30*0.33, IF(COUNTRY_INFO!$K30=2, COUNTRY_INFO!$F30*0.5, COUNTRY_INFO!$F30))), 0)) -> 50897 | E31: =IF(INTRO!$E$43="Non-endemic", 0, IF(COUNTRY_INFO!$K30>0, IF(COUNTRY_INFO!$K30=4, 0, IF(COUNTRY_INFO!$K30=1, 0, IF(COUNTRY_INFO!$K30=2, COUNTRY_INFO!$G30*0.2, COUNTRY_INFO!$G30))), 0)) -> 40010.6 | F31: 90907.6 | G31: =IF(INTRO!$E$43="Non-endemic", "Not required", COUNTRY_INFO!S30) -> 1 | I31: =IF($D31=0,0,IF(AND($G31>0,$H31<>"Yes"),D31,IF(AND($G31>0,$H31="Yes"),COUNTRY_INFO!$F30,0))) -> 50897 | J31: 19436 | K31: 38197 | L31: 57633 | M31: 48590 | N31: 114591 | O31: 48590 | Q31: 48590 | R31: 49
A32: =IF(INTRO!$E$43="Non-endemic"," ", IF(COUNTRY_INFO!A31=0," ",COUNTRY_INFO!A31)) -> RWANDA | B32: =IF(INTRO!$E$43="Non-endemic"," ", IF(COUNTRY_INFO!B31=0," ",COUNTRY_INFO!B31)) -> Southern | C32: =IF(INTRO!$E$43="Non-endemic"," ", IF(COUNTRY_INFO!C31=0," ",COUNTRY_INFO!C31)) -> Nyaruguru | D32: =IF(INTRO!$E$43="Non-endemic", 0, IF(COUNTRY_INFO!$K31>0, IF(COUNTRY_INFO!$K31=4, 0, IF(COUNTRY_INFO!$K31=1, COUNTRY_INFO!$F31*0.33, IF(COUNTRY_INFO!$K31=2, COUNTRY_INFO!$F31*0.5, COUNTRY_INFO!$F31))), 0)) -> 52835.5 | E32: =IF(INTRO!$E$43="Non-endemic", 0, IF(COUNTRY_INFO!$K31>0, IF(COUNTRY_INFO!$K31=4, 0, IF(COUNTRY_INFO!$K31=1, 0, IF(COUNTRY_INFO!$K31=2, COUNTRY_INFO!$G31*0.2, COUNTRY_INFO!$G31))), 0)) -> 41534.6 | F32: 94370.1 | G32: =IF(INTRO!$E$43="Non-endemic", "Not required", COUNTRY_INFO!S31) -> 1 | I32: =IF($D32=0,0,IF(AND($G32>0,$H32<>"Yes"),D32,IF(AND($G32>0,$H32="Yes"),COUNTRY_INFO!$F31,0))) -> 52835.5 | J32: 46682 | K32: 91743 | L32: 138425 | M32: 116705 | N32: 275229 | O32: 116705 | Q32: 116705 | R32: 117
A33: =IF(INTRO!$E$43="Non-endemic"," ", IF(COUNTRY_INFO!A32=0," ",COUNTRY_INFO!A32)) -> RWANDA | B33: =IF(INTRO!$E$43="Non-endemic"," ", IF(COUNTRY_INFO!B32=0," ",COUNTRY_INFO!B32)) -> Western | C33: =IF(INTRO!$E$43="Non-endemic"," ", IF(COUNTRY_INFO!C32=0," ",COUNTRY_INFO!C32)) -> Rubavu | D33: =IF(INTRO!$E$43="Non-endemic", 0, IF(COUNTRY_INFO!$K32>0, IF(COUNTRY_INFO!$K32=4, 0, IF(COUNTRY_INFO!$K32=1, COUNTRY_INFO!$F32*0.33, IF(COUNTRY_INFO!$K32=2, COUNTRY_INFO!$F32*0.5, COUNTRY_INFO!$F32))), 0)) -> 76129 | E33: =IF(INTRO!$E$43="Non-endemic", 0, IF(COUNTRY_INFO!$K32>0, IF(COUNTRY_INFO!$K32=4, 0, IF(COUNTRY_INFO!$K32=1, 0, IF(COUNTRY_INFO!$K32=2, COUNTRY_INFO!$G32*0.2, COUNTRY_INFO!$G32))), 0)) -> 59845.8 | F33: 135974.8 | G33: =IF(INTRO!$E$43="Non-endemic", "Not required", COUNTRY_INFO!S32) -> 1 | I33: =IF($D33=0,0,IF(AND($G33>0,$H33<>"Yes"),D33,IF(AND($G33>0,$H33="Yes"),COUNTRY_INFO!$F32,0))) -> 76129 | J33: 30111 | K33: 59175 | L33: 89286 | M33: 75277.5 | N33: 177525 | O33: 75277.5 | Q33: 75277.5 | R33: 76
A34: =IF(INTRO!$E$43="Non-endemic"," ", IF(COUNTRY_INFO!A33=0," ",COUNTRY_INFO!A33)) -> RWANDA | B34: =IF(INTRO!$E$43="Non-endemic"," ", IF(COUNTRY_INFO!B33=0," ",COUNTRY_INFO!B33)) -> Southern | C34: =IF(INTRO!$E$43="Non-endemic"," ", IF(COUNTRY_INFO!C33=0," ",COUNTRY_INFO!C33)) -> Ruhango | D34: =IF(INTRO!$E$43="Non-endemic", 0, IF(COUNTRY_INFO!$K33>0, IF(COUNTRY_INFO!$K33=4, 0, IF(COUNTRY_INFO!$K33=1, COUNTRY_INFO!$F33*0.33, IF(COUNTRY_INFO!$K33=2, COUNTRY_INFO!$F33*0.5, COUNTRY_INFO!$F33))), 0)) -> 58062.5 | E34: =IF(INTRO!$E$43="Non-endemic", 0, IF(COUNTRY_INFO!$K33>0, IF(COUNTRY_INFO!$K33=4, 0, IF(COUNTRY_INFO!$K33=1, 0, IF(COUNTRY_INFO!$K33=2, COUNTRY_INFO!$G33*0.2, COUNTRY_INFO!$G33))), 0)) -> 45643.8 | F34: 103706.3 | G34: =IF(INTRO!$E$43="Non-endemic", "Not required", COUNTRY_INFO!S33) -> 1 | I34: =IF($D34=0,0,IF(AND($G34>0,$H34<>"Yes"),D34,IF(AND($G34>0,$H34="Yes"),COUNTRY_INFO!$F33,0))) -> 58062.5 | J34: 76632 | K34: 150603 | L34: 227235 | M34: 191580 | N34: 451809 | O34: 191580 | Q34: 191580 | R34: 192
A35: =IF(INTRO!$E$43="Non-endemic"," ", IF(COUNTRY_INFO!A34=0," ",COUNTRY_INFO!A34)) -> RWANDA | B35: =IF(INTRO!$E$43="Non-endemic"," ", IF(COUNTRY_INFO!B34=0," ",COUNTRY_INFO!B34)) -> Northern | C35: =IF(INTRO!$E$43="Non-endemic"," ", IF(COUNTRY_INFO!C34=0," ",COUNTRY_INFO!C34)) -> Rulindo | D35: =IF(INTRO!$E$43="Non-endemic", 0, IF(COUNTRY_INFO!$K34>0, IF(COUNTRY_INFO!$K34=4, 0, IF(COUNTRY_INFO!$K34=1, COUNTRY_INFO!$F34*0.33, IF(COUNTRY_INFO!$K34=2, COUNTRY_INFO!$F34*0.5, COUNTRY_INFO!$F34))), 0)) -> 99691 | E35: =IF(INTRO!$E$43="Non-endemic", 0, IF(COUNTRY_INFO!$K34>0, IF(COUNTRY_INFO!$K34=4, 0, IF(COUNTRY_INFO!$K34=1, 0, IF(COUNTRY_INFO!$K34=2, COUNTRY_INFO!$G34*0.2, COUNTRY_INFO!$G34))), 0)) -> 195921 | F35: 295612 | G35: =IF(INTRO!$E$43="Non-endemic", "Not required", COUNTRY_INFO!S34) -> 1 | I35: =IF($D35=0,0,IF(AND($G35>0,$H35<>"Yes"),D35,IF(AND($G35>0,$H35="Yes"),COUNTRY_INFO!$F34,0))) -> 99691 | J35: 77610 | K35: 152526 | L35: 230136 | M35: 194025 | N35: 457578 | O35: 194025 | Q35: 194025 | R35: 195
A36: =IF(INTRO!$E$43="Non-endemic"," ", IF(COUNTRY_INFO!A35=0," ",COUNTRY_INFO!A35)) -> RWANDA | B36: =IF(INTRO!$E$43="Non-endemic"," ", IF(COUNTRY_INFO!B35=0," ",COUNTRY_INFO!B35)) -> Western | C36: =IF(INTRO!$E$43="Non-endemic"," ", IF(COUNTRY_INFO!C35=0," ",COUNTRY_INFO!C35)) -> Rusizi | D36: =IF(INTRO!$E$43="Non-endemic", 0, IF(COUNTRY_INFO!$K35>0, IF(COUNTRY_INFO!$K35=4, 0, IF(COUNTRY_INFO!$K35=1, COUNTRY_INFO!$F35*0.33, IF(COUNTRY_INFO!$K35=2, COUNTRY_INFO!$F35*0.5, COUNTRY_INFO!$F35))), 0)) -> 71739 | E36: =IF(INTRO!$E$43="Non-endemic", 0, IF(COUNTRY_INFO!$K35>0, IF(COUNTRY_INFO!$K35=4, 0, IF(COUNTRY_INFO!$K35=1, 0, IF(COUNTRY_INFO!$K35=2, COUNTRY_INFO!$G35*0.2, COUNTRY_INFO!$G35))), 0)) -> 56394.6 | F36: 128133.6 | G36: =IF(INTRO!$E$43="Non-endemic", "Not required", COUNTRY_INFO!S35) -> 1 | I36: =IF($D36=0,0,IF(AND($G36>0,$H36<>"Yes"),D36,IF(AND($G36>0,$H36="Yes"),COUNTRY_INFO!$F35,0))) -> 71739 | J36: 73243 | K36: 143943 | L36: 217186 | M36: 183107.5 | N36: 431829 | O36: 183107.5 | Q36: 183107.5 | R36: 184
A37: =IF(INTRO!$E$43="Non-endemic"," ", IF(COUNTRY_INFO!A36=0," ",COUNTRY_INFO!A36)) -> RWANDA | B37: =IF(INTRO!$E$43="Non-endemic"," ", IF(COUNTRY_INFO!B36=0," ",COUNTRY_INFO!B36)) -> Western | C37: =IF(INTRO!$E$43="Non-endemic"," ", IF(COUNTRY_INFO!C36=0," ",COUNTRY_INFO!C36)) -> Rutsiro | D37: =IF(INTRO!$E$43="Non-endemic", 0, IF(COUNTRY_INFO!$K36>0, IF(COUNTRY_INFO!$K36=4, 0, IF(COUNTRY_INFO!$K36=1, COUNTRY_INFO!$F36*0.33, IF(COUNTRY_INFO!$K36=2, COUNTRY_INFO!$F36*0.5, COUNTRY_INFO!$F36))), 0)) -> 57236.5 | E37: =IF(INTRO!$E$43="Non-endemic", 0, IF(COUNTRY_INFO!$K36>0, IF(COUNTRY_INFO!$K36=4, 0, IF(COUNTRY_INFO!$K36=1, 0, IF(COUNTRY_INFO!$K36=2, COUNTRY_INFO!$G36*0.2, COUNTRY_INFO!$G36))), 0)) -> 44994 | F37: 102230.5 | G37: =IF(INTRO!$E$43="Non-endemic", "Not required", COUNTRY_INFO!S36) -> 1 | I37: =IF($D37=0,0,IF(AND($G37>0,$H37<>"Yes"),D37,IF(AND($G37>0,$H37="Yes"),COUNTRY_INFO!$F36,0))) -> 57236.5 | J37: 45377 | K37: 89179 | L37: 134556 | M37: 113442.5 | N37: 267537 | O37: 113442.5 | Q37: 113442.5 | R37: 114
A38: =IF(INTRO!$E$43="Non-endemic"," ", IF(COUNTRY_INFO!A37=0," ",COUNTRY_INFO!A37)) -> RWANDA | B38: =IF(INTRO!$E$43="Non-endemic"," ", IF(COUNTRY_INFO!B37=0," ",COUNTRY_INFO!B37)) -> Eastern | C38: =IF(INTRO!$E$43="Non-endemic"," ", IF(COUNTRY_INFO!C37=0," ",COUNTRY_INFO!C37)) -> Rwamagana | D38: =IF(INTRO!$E$43="Non-endemic", 0, IF(COUNTRY_INFO!$K37>0, IF(COUNTRY_INFO!$K37=4, 0, IF(COUNTRY_INFO!$K37=1, COUNTRY_INFO!$F37*0.33, IF(COUNTRY_INFO!$K37=2, COUNTRY_INFO!$F37*0.5, COUNTRY_INFO!$F37))), 0)) -> 58288.5 | E38: =IF(INTRO!$E$43="Non-endemic", 0, IF(COUNTRY_INFO!$K37>0, IF(COUNTRY_INFO!$K37=4, 0, IF(COUNTRY_INFO!$K37=1, 0, IF(COUNTRY_INFO!$K37=2, COUNTRY_INFO!$G37*0.2, COUNTRY_INFO!$G37))), 0)) -> 45821.2 | F38: 104109.7 | G38: =IF(INTRO!$E$43="Non-endemic", "Not required", COUNTRY_INFO!S37) -> 1 | I38: =IF($D38=0,0,IF(AND($G38>0,$H38<>"Yes"),D38,IF(AND($G38>0,$H38="Yes"),COUNTRY_INFO!$F37,0))) -> 58288.5 | J38: 36282 | K38: 71304 | L38: 107586 | M38: 90705 | N38: 213912 | O38: 90705 | Q38: 90705 | R38: 91

Sheet IVM (hidden)
A1: Ivermectin (IVM)
A2: Administrative structure, eligible population by age group, treatment plan and information about tablets
A4: TOTAL | D4: =SUM(D$9:D$1000) -> 0 | G4: =SUM(G$9:G$1000) -> 0 | H4: 0 | I4: 0 | J4: 0 | K4: 0 | L4: 0 | M4: 0 | N4: 0 | O4: 0 | P4: 0 | Q4: 0
A6: Country administrative structure | D6: Population requiring treatment with IVM | E6: Treatment plan | G6: Target population | K6: Ivermectin (IVM)
A7: Country | B7: Province/State | C7: District | E7: LF | F7: Oncho | G7: LF | H7: Oncho | K7: LF only | L7: Oncho only | M7: LF+Oncho | N7: Total required | O7: Remaining in stock | P7: Tablets to be procured | Q7: Bottles (3mg) 500 tablets
H8: in the district | I8: in villages | J8: total
A9: =IF(INTRO!$E$39="Non-endemic"," ",IF(COUNTRY_INFO!A8=0," ",COUNTRY_INFO!A8)) ->  | B9: =IF(INTRO!$E$39="Non-endemic"," ",IF(COUNTRY_INFO!B8=0," ",COUNTRY_INFO!B8)) ->  | C9: =IF(INTRO!$E$39="Non-endemic"," ",IF(COUNTRY_INFO!C8=0," ",COUNTRY_INFO!C8)) ->  | D9: =IF(INTRO!$E$39="Non-endemic",0,IF(INTRO!$E$39="Endemic but PC is not required",IF(COUNTRY_INFO!$H8=1,COUNTRY_INFO!F8+COUNTRY_INFO!G8,0),IF(COUNTRY_INFO!$H8=1,COUNTRY_INFO!F8+COUNTRY_INFO!G8,IF(COUNTRY_INFO!$I8=1,IF(COUNTRY_INFO!M8>=(COUNTRY_INFO!F8+COUNTRY_INFO!G8),COUNTRY_INFO!F8+COUNTRY_INFO!G8,COUNTRY_INFO!$M8),0)))) -> 0 | E9: =IF(AND(INTRO!$E$39="Non-endemic",INTRO!$E$37="Non-endemic"),"Not required",IF(INTRO!$E$39="Non-endemic","Treat with DEC",COUNTRY_INFO!P8)) -> Not required | F9: =IF(INTRO!$E$39<>"Non-endemic",COUNTRY_INFO!Q8,"Not required") -> Not required | G9: =IF(COUNTRY_INFO!H8=1, IF($E9=1,$D9, 0),0) -> 0 | H9: =IF(INTRO!$E$39<>"Endemic",0, IF(AND(COUNTRY_INFO!$I8=1,$F9<>0),IF(COUNTRY_INFO!M8>=(COUNTRY_INFO!F8+COUNTRY_INFO!G8),COUNTRY_INFO!F8+COUNTRY_INFO!G8,COUNTRY_INFO!$M8), 0)) -> 0 | J9: =IF(I9=0,H9,IF(I9>H9,H9,I9)) -> 0 | K9: =IF(G9<J9,0,IF($E9=1, (G9-J9)*2.8, 0)) -> 0 | L9: =IF($E9<$F9, J9*(F9-E9)*2.8, 0) -> 0 | M9: =IF(AND($E9=1, $F9<>0), J9*2.8, 0) -> 0 | N9: =SUM(K9:M9) -> 0 | P9: =IF($N9>$O9,$N9-$O9,0) -> 0 | Q9: =ROUNDUP($N9/500,0) -> 0
A10: =IF(INTRO!$E$39="Non-endemic"," ",IF(COUNTRY_INFO!A9=0," ",COUNTRY_INFO!A9)) ->  | B10: =IF(INTRO!$E$39="Non-endemic"," ",IF(COUNTRY_INFO!B9=0," ",COUNTRY_INFO!B9)) ->  | C10: =IF(INTRO!$E$39="Non-endemic"," ",IF(COUNTRY_INFO!C9=0," ",COUNTRY_INFO!C9)) ->  | D10: =IF(INTRO!$E$39="Non-endemic",0,IF(INTRO!$E$39="Endemic but PC is not required",IF(COUNTRY_INFO!$H9=1,COUNTRY_INFO!F9+COUNTRY_INFO!G9,0),IF(COUNTRY_INFO!$H9=1,COUNTRY_INFO!F9+COUNTRY_INFO!G9,IF(COUNTRY_INFO!$I9=1,IF(COUNTRY_INFO!M9>=(COUNTRY_INFO!F9+COUNTRY_INFO!G9),COUNTRY_INFO!F9+COUNTRY_INFO!G9,COUNTRY_INFO!$M9),0)))) -> 0 | E10: =IF(AND(INTRO!$E$39="Non-endemic",INTRO!$E$37="Non-endemic"),"Not required",IF(INTRO!$E$39="Non-endemic","Treat with DEC",COUNTRY_INFO!P9)) -> Not required | F10: =IF(INTRO!$E$39<>"Non-endemic",COUNTRY_INFO!Q9,"Not required") -> Not required | G10: =IF(COUNTRY_INFO!H9=1, IF($E10=1,$D10, 0),0) -> 0 | H10: =IF(INTRO!$E$39<>"Endemic",0, IF(AND(COUNTRY_INFO!$I9=1,$F10<>0),IF(COUNTRY_INFO!M9>=(COUNTRY_INFO!F9+COUNTRY_INFO!G9),COUNTRY_INFO!F9+COUNTRY_INFO!G9,COUNTRY_INFO!$M9), 0)) -> 0 | J10: 0 | K10: 0 | L10: 0 | M10: 0 | N10: 0 | P10: 0 | Q10: 0
A11: =IF(INTRO!$E$39="Non-endemic"," ",IF(COUNTRY_INFO!A10=0," ",COUNTRY_INFO!A10)) ->  | B11: =IF(INTRO!$E$39="Non-endemic"," ",IF(COUNTRY_INFO!B10=0," ",COUNTRY_INFO!B10)) ->  | C11: =IF(INTRO!$E$39="Non-endemic"," ",IF(COUNTRY_INFO!C10=0," ",COUNTRY_INFO!C10)) ->  | D11: =IF(INTRO!$E$39="Non-endemic",0,IF(INTRO!$E$39="Endemic but PC is not required",IF(COUNTRY_INFO!$H10=1,COUNTRY_INFO!F10+COUNTRY_INFO!G10,0),IF(COUNTRY_INFO!$H10=1,COUNTRY_INFO!F10+COUNTRY_INFO!G10,IF(COUNTRY_INFO!$I10=1,IF(COUNTRY_INFO!M10>=(COUNTRY_INFO!F10+COUNTRY_INFO!G10),COUNTRY_INFO!F10+COUNTRY_INFO!G10,COUNTRY_INFO!$M10),0)))) -> 0 | E11: =IF(AND(INTRO!$E$39="Non-endemic",INTRO!$E$37="Non-endemic"),"Not required",IF(INTRO!$E$39="Non-endemic","Treat with DEC",COUNTRY_INFO!P10)) -> Not required | F11: =IF(INTRO!$E$39<>"Non-endemic",COUNTRY_INFO!Q10,"Not required") -> Not required | G11: =IF(COUNTRY_INFO!H10=1, IF($E11=1,$D11, 0),0) -> 0 | H11: =IF(INTRO!$E$39<>"Endemic",0, IF(AND(COUNTRY_INFO!$I10=1,$F11<>0),IF(COUNTRY_INFO!M10>=(COUNTRY_INFO!F10+COUNTRY_INFO!G10),COUNTRY_INFO!F10+COUNTRY_INFO!G10,COUNTRY_INFO!$M10), 0)) -> 0 | J11: 0 | K11: 0 | L11: 0 | M11: 0 | N11: 0 | P11: 0 | Q11: 0
A12: =IF(INTRO!$E$39="Non-endemic"," ",IF(COUNTRY_INFO!A11=0," ",COUNTRY_INFO!A11)) ->  | B12: =IF(INTRO!$E$39="Non-endemic"," ",IF(COUNTRY_INFO!B11=0," ",COUNTRY_INFO!B11)) ->  | C12: =IF(INTRO!$E$39="Non-endemic"," ",IF(COUNTRY_INFO!C11=0," ",COUNTRY_INFO!C11)) ->  | D12: =IF(INTRO!$E$39="Non-endemic",0,IF(INTRO!$E$39="Endemic but PC is not required",IF(COUNTRY_INFO!$H11=1,COUNTRY_INFO!F11+COUNTRY_INFO!G11,0),IF(COUNTRY_INFO!$H11=1,COUNTRY_INFO!F11+COUNTRY_INFO!G11,IF(COUNTRY_INFO!$I11=1,IF(COUNTRY_INFO!M11>=(COUNTRY_INFO!F11+COUNTRY_INFO!G11),COUNTRY_INFO!F11+COUNTRY_INFO!G11,COUNTRY_INFO!$M11),0)))) -> 0 | E12: =IF(AND(INTRO!$E$39="Non-endemic",INTRO!$E$37="Non-endemic"),"Not required",IF(INTRO!$E$39="Non-endemic","Treat with DEC",COUNTRY_INFO!P11)) -> Not required | F12: =IF(INTRO!$E$39<>"Non-endemic",COUNTRY_INFO!Q11,"Not required") -> Not required | G12: =IF(COUNTRY_INFO!H11=1, IF($E12=1,$D12, 0),0) -> 0 | H12: =IF(INTRO!$E$39<>"Endemic",0, IF(AND(COUNTRY_INFO!$I11=1,$F12<>0),IF(COUNTRY_INFO!M11>=(COUNTRY_INFO!F11+COUNTRY_INFO!G11),COUNTRY_INFO!F11+COUNTRY_INFO!G11,COUNTRY_INFO!$M11), 0)) -> 0 | J12: 0 | K12: 0 | L12: 0 | M12: 0 | N12: 0 | P12: 0 | Q12: 0
A13: =IF(INTRO!$E$39="Non-endemic"," ",IF(COUNTRY_INFO!A12=0," ",COUNTRY_INFO!A12)) ->  | B13: =IF(INTRO!$E$39="Non-endemic"," ",IF(COUNTRY_INFO!B12=0," ",COUNTRY_INFO!B12)) ->  | C13: =IF(INTRO!$E$39="Non-endemic"," ",IF(COUNTRY_INFO!C12=0," ",COUNTRY_INFO!C12)) ->  | D13: =IF(INTRO!$E$39="Non-endemic",0,IF(INTRO!$E$39="Endemic but PC is not required",IF(COUNTRY_INFO!$H12=1,COUNTRY_INFO!F12+COUNTRY_INFO!G12,0),IF(COUNTRY_INFO!$H12=1,COUNTRY_INFO!F12+COUNTRY_INFO!G12,IF(COUNTRY_INFO!$I12=1,IF(COUNTRY_INFO!M12>=(COUNTRY_INFO!F12+COUNTRY_INFO!G12),COUNTRY_INFO!F12+COUNTRY_INFO!G12,COUNTRY_INFO!$M12),0)))) -> 0 | E13: =IF(AND(INTRO!$E$39="Non-endemic",INTRO!$E$37="Non-endemic"),"Not required",IF(INTRO!$E$39="Non-endemic","Treat with DEC",COUNTRY_INFO!P12)) -> Not required | F13: =IF(INTRO!$E$39<>"Non-endemic",COUNTRY_INFO!Q12,"Not required") -> Not required | G13: =IF(COUNTRY_INFO!H12=1, IF($E13=1,$D13, 0),0) -> 0 | H13: =IF(INTRO!$E$39<>"Endemic",0, IF(AND(COUNTRY_INFO!$I12=1,$F13<>0),IF(COUNTRY_INFO!M12>=(COUNTRY_INFO!F12+COUNTRY_INFO!G12),COUNTRY_INFO!F12+COUNTRY_INFO!G12,COUNTRY_INFO!$M12), 0)) -> 0 | J13: 0 | K13: 0 | L13: 0 | M13: 0 | N13: 0 | P13: 0 | Q13: 0
A14: =IF(INTRO!$E$39="Non-endemic"," ",IF(COUNTRY_INFO!A13=0," ",COUNTRY_INFO!A13)) ->  | B14: =IF(INTRO!$E$39="Non-endemic"," ",IF(COUNTRY_INFO!B13=0," ",COUNTRY_INFO!B13)) ->  | C14: =IF(INTRO!$E$39="Non-endemic"," ",IF(COUNTRY_INFO!C13=0," ",COUNTRY_INFO!C13)) ->  | D14: =IF(INTRO!$E$39="Non-endemic",0,IF(INTRO!$E$39="Endemic but PC is not required",IF(COUNTRY_INFO!$H13=1,COUNTRY_INFO!F13+COUNTRY_INFO!G13,0),IF(COUNTRY_INFO!$H13=1,COUNTRY_INFO!F13+COUNTRY_INFO!G13,IF(COUNTRY_INFO!$I13=1,IF(COUNTRY_INFO!M13>=(COUNTRY_INFO!F13+COUNTRY_INFO!G13),COUNTRY_INFO!F13+COUNTRY_INFO!G13,COUNTRY_INFO!$M13),0)))) -> 0 | E14: =IF(AND(INTRO!$E$39="Non-endemic",INTRO!$E$37="Non-endemic"),"Not required",IF(INTRO!$E$39="Non-endemic","Treat with DEC",COUNTRY_INFO!P13)) -> Not required | F14: =IF(INTRO!$E$39<>"Non-endemic",COUNTRY_INFO!Q13,"Not required") -> Not required | G14: =IF(COUNTRY_INFO!H13=1, IF($E14=1,$D14, 0),0) -> 0 | H14: =IF(INTRO!$E$39<>"Endemic",0, IF(AND(COUNTRY_INFO!$I13=1,$F14<>0),IF(COUNTRY_INFO!M13>=(COUNTRY_INFO!F13+COUNTRY_INFO!G13),COUNTRY_INFO!F13+COUNTRY_INFO!G13,COUNTRY_INFO!$M13), 0)) -> 0 | J14: 0 | K14: 0 | L14: 0 | M14: 0 | N14: 0 | P14: 0 | Q14: 0
A15: =IF(INTRO!$E$39="Non-endemic"," ",IF(COUNTRY_INFO!A14=0," ",COUNTRY_INFO!A14)) ->  | B15: =IF(INTRO!$E$39="Non-endemic"," ",IF(COUNTRY_INFO!B14=0," ",COUNTRY_INFO!B14)) ->  | C15: =IF(INTRO!$E$39="Non-endemic"," ",IF(COUNTRY_INFO!C14=0," ",COUNTRY_INFO!C14)) ->  | D15: =IF(INTRO!$E$39="Non-endemic",0,IF(INTRO!$E$39="Endemic but PC is not required",IF(COUNTRY_INFO!$H14=1,COUNTRY_INFO!F14+COUNTRY_INFO!G14,0),IF(COUNTRY_INFO!$H14=1,COUNTRY_INFO!F14+COUNTRY_INFO!G14,IF(COUNTRY_INFO!$I14=1,IF(COUNTRY_INFO!M14>=(COUNTRY_INFO!F14+COUNTRY_INFO!G14),COUNTRY_INFO!F14+COUNTRY_INFO!G14,COUNTRY_INFO!$M14),0)))) -> 0 | E15: =IF(AND(INTRO!$E$39="Non-endemic",INTRO!$E$37="Non-endemic"),"Not required",IF(INTRO!$E$39="Non-endemic","Treat with DEC",COUNTRY_INFO!P14)) -> Not required | F15: =IF(INTRO!$E$39<>"Non-endemic",COUNTRY_INFO!Q14,"Not required") -> Not required | G15: =IF(COUNTRY_INFO!H14=1, IF($E15=1,$D15, 0),0) -> 0 | H15: =IF(INTRO!$E$39<>"Endemic",0, IF(AND(COUNTRY_INFO!$I14=1,$F15<>0),IF(COUNTRY_INFO!M14>=(COUNTRY_INFO!F14+COUNTRY_INFO!G14),COUNTRY_INFO!F14+COUNTRY_INFO!G14,COUNTRY_INFO!$M14), 0)) -> 0 | J15: 0 | K15: 0 | L15: 0 | M15: 0 | N15: 0 | P15: 0 | Q15: 0
A16: =IF(INTRO!$E$39="Non-endemic"," ",IF(COUNTRY_INFO!A15=0," ",COUNTRY_INFO!A15)) ->  | B16: =IF(INTRO!$E$39="Non-endemic"," ",IF(COUNTRY_INFO!B15=0," ",COUNTRY_INFO!B15)) ->  | C16: =IF(INTRO!$E$39="Non-endemic"," ",IF(COUNTRY_INFO!C15=0," ",COUNTRY_INFO!C15)) ->  | D16: =IF(INTRO!$E$39="Non-endemic",0,IF(INTRO!$E$39="Endemic but PC is not required",IF(COUNTRY_INFO!$H15=1,COUNTRY_INFO!F15+COUNTRY_INFO!G15,0),IF(COUNTRY_INFO!$H15=1,COUNTRY_INFO!F15+COUNTRY_INFO!G15,IF(COUNTRY_INFO!$I15=1,IF(COUNTRY_INFO!M15>=(COUNTRY_INFO!F15+COUNTRY_INFO!G15),COUNTRY_INFO!F15+COUNTRY_INFO!G15,COUNTRY_INFO!$M15),0)))) -> 0 | E16: =IF(AND(INTRO!$E$39="Non-endemic",INTRO!$E$37="Non-endemic"),"Not required",IF(INTRO!$E$39="Non-endemic","Treat with DEC",COUNTRY_INFO!P15)) -> Not required | F16: =IF(INTRO!$E$39<>"Non-endemic",COUNTRY_INFO!Q15,"Not required") -> Not required | G16: =IF(COUNTRY_INFO!H15=1, IF($E16=1,$D16, 0),0) -> 0 | H16: =IF(INTRO!$E$39<>"Endemic",0, IF(AND(COUNTRY_INFO!$I15=1,$F16<>0),IF(COUNTRY_INFO!M15>=(COUNTRY_INFO!F15+COUNTRY_INFO!G15),COUNTRY_INFO!F15+COUNTRY_INFO!G15,COUNTRY_INFO!$M15), 0)) -> 0 | J16: 0 | K16: 0 | L16: 0 | M16: 0 | N16: 0 | P16: 0 | Q16: 0
A17: =IF(INTRO!$E$39="Non-endemic"," ",IF(COUNTRY_INFO!A16=0," ",COUNTRY_INFO!A16)) ->  | B17: =IF(INTRO!$E$39="Non-endemic"," ",IF(COUNTRY_INFO!B16=0," ",COUNTRY_INFO!B16)) ->  | C17: =IF(INTRO!$E$39="Non-endemic"," ",IF(COUNTRY_INFO!C16=0," ",COUNTRY_INFO!C16)) ->  | D17: =IF(INTRO!$E$39="Non-endemic",0,IF(INTRO!$E$39="Endemic but PC is not required",IF(COUNTRY_INFO!$H16=1,COUNTRY_INFO!F16+COUNTRY_INFO!G16,0),IF(COUNTRY_INFO!$H16=1,COUNTRY_INFO!F16+COUNTRY_INFO!G16,IF(COUNTRY_INFO!$I16=1,IF(COUNTRY_INFO!M16>=(COUNTRY_INFO!F16+COUNTRY_INFO!G16),COUNTRY_INFO!F16+COUNTRY_INFO!G16,COUNTRY_INFO!$M16),0)))) -> 0 | E17: =IF(AND(INTRO!$E$39="Non-endemic",INTRO!$E$37="Non-endemic"),"Not required",IF(INTRO!$E$39="Non-endemic","Treat with DEC",COUNTRY_INFO!P16)) -> Not required | F17: =IF(INTRO!$E$39<>"Non-endemic",COUNTRY_INFO!Q16,"Not required") -> Not required | G17: =IF(COUNTRY_INFO!H16=1, IF($E17=1,$D17, 0),0) -> 0 | H17: =IF(INTRO!$E$39<>"Endemic",0, IF(AND(COUNTRY_INFO!$I16=1,$F17<>0),IF(COUNTRY_INFO!M16>=(COUNTRY_INFO!F16+COUNTRY_INFO!G16),COUNTRY_INFO!F16+COUNTRY_INFO!G16,COUNTRY_INFO!$M16), 0)) -> 0 | J17: 0 | K17: 0 | L17: 0 | M17: 0 | N17: 0 | P17: 0 | Q17: 0
A18: =IF(INTRO!$E$39="Non-endemic"," ",IF(COUNTRY_INFO!A17=0," ",COUNTRY_INFO!A17)) ->  | B18: =IF(INTRO!$E$39="Non-endemic"," ",IF(COUNTRY_INFO!B17=0," ",COUNTRY_INFO!B17)) ->  | C18: =IF(INTRO!$E$39="Non-endemic"," ",IF(COUNTRY_INFO!C17=0," ",COUNTRY_INFO!C17)) ->  | D18: =IF(INTRO!$E$39="Non-endemic",0,IF(INTRO!$E$39="Endemic but PC is not required",IF(COUNTRY_INFO!$H17=1,COUNTRY_INFO!F17+COUNTRY_INFO!G17,0),IF(COUNTRY_INFO!$H17=1,COUNTRY_INFO!F17+COUNTRY_INFO!G17,IF(COUNTRY_INFO!$I17=1,IF(COUNTRY_INFO!M17>=(COUNTRY_INFO!F17+COUNTRY_INFO!G17),COUNTRY_INFO!F17+COUNTRY_INFO!G17,COUNTRY_INFO!$M17),0)))) -> 0 | E18: =IF(AND(INTRO!$E$39="Non-endemic",INTRO!$E$37="Non-endemic"),"Not required",IF(INTRO!$E$39="Non-endemic","Treat with DEC",COUNTRY_INFO!P17)) -> Not required | F18: =IF(INTRO!$E$39<>"Non-endemic",COUNTRY_INFO!Q17,"Not required") -> Not required | G18: =IF(COUNTRY_INFO!H17=1, IF($E18=1,$D18, 0),0) -> 0 | H18: =IF(INTRO!$E$39<>"Endemic",0, IF(AND(COUNTRY_INFO!$I17=1,$F18<>0),IF(COUNTRY_INFO!M17>=(COUNTRY_INFO!F17+COUNTRY_INFO!G17),COUNTRY_INFO!F17+COUNTRY_INFO!G17,COUNTRY_INFO!$M17), 0)) -> 0 | J18: 0 | K18: 0 | L18: 0 | M18: 0 | N18: 0 | P18: 0 | Q18: 0
A19: =IF(INTRO!$E$39="Non-endemic"," ",IF(COUNTRY_INFO!A18=0," ",COUNTRY_INFO!A18)) ->  | B19: =IF(INTRO!$E$39="Non-endemic"," ",IF(COUNTRY_INFO!B18=0," ",COUNTRY_INFO!B18)) ->  | C19: =IF(INTRO!$E$39="Non-endemic"," ",IF(COUNTRY_INFO!C18=0," ",COUNTRY_INFO!C18)) ->  | D19: =IF(INTRO!$E$39="Non-endemic",0,IF(INTRO!$E$39="Endemic but PC is not required",IF(COUNTRY_INFO!$H18=1,COUNTRY_INFO!F18+COUNTRY_INFO!G18,0),IF(COUNTRY_INFO!$H18=1,COUNTRY_INFO!F18+COUNTRY_INFO!G18,IF(COUNTRY_INFO!$I18=1,IF(COUNTRY_INFO!M18>=(COUNTRY_INFO!F18+COUNTRY_INFO!G18),COUNTRY_INFO!F18+COUNTRY_INFO!G18,COUNTRY_INFO!$M18),0)))) -> 0 | E19: =IF(AND(INTRO!$E$39="Non-endemic",INTRO!$E$37="Non-endemic"),"Not required",IF(INTRO!$E$39="Non-endemic","Treat with DEC",COUNTRY_INFO!P18)) -> Not required | F19: =IF(INTRO!$E$39<>"Non-endemic",COUNTRY_INFO!Q18,"Not required") -> Not required | G19: =IF(COUNTRY_INFO!H18=1, IF($E19=1,$D19, 0),0) -> 0 | H19: =IF(INTRO!$E$39<>"Endemic",0, IF(AND(COUNTRY_INFO!$I18=1,$F19<>0),IF(COUNTRY_INFO!M18>=(COUNTRY_INFO!F18+COUNTRY_INFO!G18),COUNTRY_INFO!F18+COUNTRY_INFO!G18,COUNTRY_INFO!$M18), 0)) -> 0 | J19: 0 | K19: 0 | L19: 0 | M19: 0 | N19: 0 | P19: 0 | Q19: 0
A20: =IF(INTRO!$E$39="Non-endemic"," ",IF(COUNTRY_INFO!A19=0," ",COUNTRY_INFO!A19)) ->  | B20: =IF(INTRO!$E$39="Non-endemic"," ",IF(COUNTRY_INFO!B19=0," ",COUNTRY_INFO!B19)) ->  | C20: =IF(INTRO!$E$39="Non-endemic"," ",IF(COUNTRY_INFO!C19=0," ",COUNTRY_INFO!C19)) ->  | D20: =IF(INTRO!$E$39="Non-endemic",0,IF(INTRO!$E$39="Endemic but PC is not required",IF(COUNTRY_INFO!$H19=1,COUNTRY_INFO!F19+COUNTRY_INFO!G19,0),IF(COUNTRY_INFO!$H19=1,COUNTRY_INFO!F19+COUNTRY_INFO!G19,IF(COUNTRY_INFO!$I19=1,IF(COUNTRY_INFO!M19>=(COUNTRY_INFO!F19+COUNTRY_INFO!G19),COUNTRY_INFO!F19+COUNTRY_INFO!G19,COUNTRY_INFO!$M19),0)))) -> 0 | E20: =IF(AND(INTRO!$E$39="Non-endemic",INTRO!$E$37="Non-endemic"),"Not required",IF(INTRO!$E$39="Non-endemic","Treat with DEC",COUNTRY_INFO!P19)) -> Not required | F20: =IF(INTRO!$E$39<>"Non-endemic",COUNTRY_INFO!Q19,"Not required") -> Not required | G20: =IF(COUNTRY_INFO!H19=1, IF($E20=1,$D20, 0),0) -> 0 | H20: =IF(INTRO!$E$39<>"Endemic",0, IF(AND(COUNTRY_INFO!$I19=1,$F20<>0),IF(COUNTRY_INFO!M19>=(COUNTRY_INFO!F19+COUNTRY_INFO!G19),COUNTRY_INFO!F19+COUNTRY_INFO!G19,COUNTRY_INFO!$M19), 0)) -> 0 | J20: 0 | K20: 0 | L20: 0 | M20: 0 | N20: 0 | P20: 0 | Q20: 0
A21: =IF(INTRO!$E$39="Non-endemic"," ",IF(COUNTRY_INFO!A20=0," ",COUNTRY_INFO!A20)) ->  | B21: =IF(INTRO!$E$39="Non-endemic"," ",IF(COUNTRY_INFO!B20=0," ",COUNTRY_INFO!B20)) ->  | C21: =IF(INTRO!$E$39="Non-endemic"," ",IF(COUNTRY_INFO!C20=0," ",COUNTRY_INFO!C20)) ->  | D21: =IF(INTRO!$E$39="Non-endemic",0,IF(INTRO!$E$39="Endemic but PC is not required",IF(COUNTRY_INFO!$H20=1,COUNTRY_INFO!F20+COUNTRY_INFO!G20,0),IF(COUNTRY_INFO!$H20=1,COUNTRY_INFO!F20+COUNTRY_INFO!G20,IF(COUNTRY_INFO!$I20=1,IF(COUNTRY_INFO!M20>=(COUNTRY_INFO!F20+COUNTRY_INFO!G20),COUNTRY_INFO!F20+COUNTRY_INFO!G20,COUNTRY_INFO!$M20),0)))) -> 0 | E21: =IF(AND(INTRO!$E$39="Non-endemic",INTRO!$E$37="Non-endemic"),"Not required",IF(INTRO!$E$39="Non-endemic","Treat with DEC",COUNTRY_INFO!P20)) -> Not required | F21: =IF(INTRO!$E$39<>"Non-endemic",COUNTRY_INFO!Q20,"Not required") -> Not required | G21: =IF(COUNTRY_INFO!H20=1, IF($E21=1,$D21, 0),0) -> 0 | H21: =IF(INTRO!$E$39<>"Endemic",0, IF(AND(COUNTRY_INFO!$I20=1,$F21<>0),IF(COUNTRY_INFO!M20>=(COUNTRY_INFO!F20+COUNTRY_INFO!G20),COUNTRY_INFO!F20+COUNTRY_INFO!G20,COUNTRY_INFO!$M20), 0)) -> 0 | J21: 0 | K21: 0 | L21: 0 | M21: 0 | N21: 0 | P21: 0 | Q21: 0
A22: =IF(INTRO!$E$39="Non-endemic"," ",IF(COUNTRY_INFO!A21=0," ",COUNTRY_INFO!A21)) ->  | B22: =IF(INTRO!$E$39="Non-endemic"," ",IF(COUNTRY_INFO!B21=0," ",COUNTRY_INFO!B21)) ->  | C22: =IF(INTRO!$E$39="Non-endemic"," ",IF(COUNTRY_INFO!C21=0," ",COUNTRY_INFO!C21)) ->  | D22: =IF(INTRO!$E$39="Non-endemic",0,IF(INTRO!$E$39="Endemic but PC is not required",IF(COUNTRY_INFO!$H21=1,COUNTRY_INFO!F21+COUNTRY_INFO!G21,0),IF(COUNTRY_INFO!$H21=1,COUNTRY_INFO!F21+COUNTRY_INFO!G21,IF(COUNTRY_INFO!$I21=1,IF(COUNTRY_INFO!M21>=(COUNTRY_INFO!F21+COUNTRY_INFO!G21),COUNTRY_INFO!F21+COUNTRY_INFO!G21,COUNTRY_INFO!$M21),0)))) -> 0 | E22: =IF(AND(INTRO!$E$39="Non-endemic",INTRO!$E$37="Non-endemic"),"Not required",IF(INTRO!$E$39="Non-endemic","Treat with DEC",COUNTRY_INFO!P21)) -> Not required | F22: =IF(INTRO!$E$39<>"Non-endemic",COUNTRY_INFO!Q21,"Not required") -> Not required | G22: =IF(COUNTRY_INFO!H21=1, IF($E22=1,$D22, 0),0) -> 0 | H22: =IF(INTRO!$E$39<>"Endemic",0, IF(AND(COUNTRY_INFO!$I21=1,$F22<>0),IF(COUNTRY_INFO!M21>=(COUNTRY_INFO!F21+COUNTRY_INFO!G21),COUNTRY_INFO!F21+COUNTRY_INFO!G21,COUNTRY_INFO!$M21), 0)) -> 0 | J22: 0 | K22: 0 | L22: 0 | M22: 0 | N22: 0 | P22: 0 | Q22: 0
A23: =IF(INTRO!$E$39="Non-endemic"," ",IF(COUNTRY_INFO!A22=0," ",COUNTRY_INFO!A22)) ->  | B23: =IF(INTRO!$E$39="Non-endemic"," ",IF(COUNTRY_INFO!B22=0," ",COUNTRY_INFO!B22)) ->  | C23: =IF(INTRO!$E$39="Non-endemic"," ",IF(COUNTRY_INFO!C22=0," ",COUNTRY_INFO!C22)) ->  | D23: =IF(INTRO!$E$39="Non-endemic",0,IF(INTRO!$E$39="Endemic but PC is not required",IF(COUNTRY_INFO!$H22=1,COUNTRY_INFO!F22+COUNTRY_INFO!G22,0),IF(COUNTRY_INFO!$H22=1,COUNTRY_INFO!F22+COUNTRY_INFO!G22,IF(COUNTRY_INFO!$I22=1,IF(COUNTRY_INFO!M22>=(COUNTRY_INFO!F22+COUNTRY_INFO!G22),COUNTRY_INFO!F22+COUNTRY_INFO!G22,COUNTRY_INFO!$M22),0)))) -> 0 | E23: =IF(AND(INTRO!$E$39="Non-endemic",INTRO!$E$37="Non-endemic"),"Not required",IF(INTRO!$E$39="Non-endemic","Treat with DEC",COUNTRY_INFO!P22)) -> Not required | F23: =IF(INTRO!$E$39<>"Non-endemic",COUNTRY_INFO!Q22,"Not required") -> Not required | G23: =IF(COUNTRY_INFO!H22=1, IF($E23=1,$D23, 0),0) -> 0 | H23: =IF(INTRO!$E$39<>"Endemic",0, IF(AND(COUNTRY_INFO!$I22=1,$F23<>0),IF(COUNTRY_INFO!M22>=(COUNTRY_INFO!F22+COUNTRY_INFO!G22),COUNTRY_INFO!F22+COUNTRY_INFO!G22,COUNTRY_INFO!$M22), 0)) -> 0 | J23: 0 | K23: 0 | L23: 0 | M23: 0 | N23: 0 | P23: 0 | Q23: 0
A24: =IF(INTRO!$E$39="Non-endemic"," ",IF(COUNTRY_INFO!A23=0," ",COUNTRY_INFO!A23)) ->  | B24: =IF(INTRO!$E$39="Non-endemic"," ",IF(COUNTRY_INFO!B23=0," ",COUNTRY_INFO!B23)) ->  | C24: =IF(INTRO!$E$39="Non-endemic"," ",IF(COUNTRY_INFO!C23=0," ",COUNTRY_INFO!C23)) ->  | D24: =IF(INTRO!$E$39="Non-endemic",0,IF(INTRO!$E$39="Endemic but PC is not required",IF(COUNTRY_INFO!$H23=1,COUNTRY_INFO!F23+COUNTRY_INFO!G23,0),IF(COUNTRY_INFO!$H23=1,COUNTRY_INFO!F23+COUNTRY_INFO!G23,IF(COUNTRY_INFO!$I23=1,IF(COUNTRY_INFO!M23>=(COUNTRY_INFO!F23+COUNTRY_INFO!G23),COUNTRY_INFO!F23+COUNTRY_INFO!G23,COUNTRY_INFO!$M23),0)))) -> 0 | E24: =IF(AND(INTRO!$E$39="Non-endemic",INTRO!$E$37="Non-endemic"),"Not required",IF(INTRO!$E$39="Non-endemic","Treat with DEC",COUNTRY_INFO!P23)) -> Not required | F24: =IF(INTRO!$E$39<>"Non-endemic",COUNTRY_INFO!Q23,"Not required") -> Not required | G24: =IF(COUNTRY_INFO!H23=1, IF($E24=1,$D24, 0),0) -> 0 | H24: =IF(INTRO!$E$39<>"Endemic",0, IF(AND(COUNTRY_INFO!$I23=1,$F24<>0),IF(COUNTRY_INFO!M23>=(COUNTRY_INFO!F23+COUNTRY_INFO!G23),COUNTRY_INFO!F23+COUNTRY_INFO!G23,COUNTRY_INFO!$M23), 0)) -> 0 | J24: 0 | K24: 0 | L24: 0 | M24: 0 | N24: 0 | P24: 0 | Q24: 0
A25: =IF(INTRO!$E$39="Non-endemic"," ",IF(COUNTRY_INFO!A24=0," ",COUNTRY_INFO!A24)) ->  | B25: =IF(INTRO!$E$39="Non-endemic"," ",IF(COUNTRY_INFO!B24=0," ",COUNTRY_INFO!B24)) ->  | C25: =IF(INTRO!$E$39="Non-endemic"," ",IF(COUNTRY_INFO!C24=0," ",COUNTRY_INFO!C24)) ->  | D25: =IF(INTRO!$E$39="Non-endemic",0,IF(INTRO!$E$39="Endemic but PC is not required",IF(COUNTRY_INFO!$H24=1,COUNTRY_INFO!F24+COUNTRY_INFO!G24,0),IF(COUNTRY_INFO!$H24=1,COUNTRY_INFO!F24+COUNTRY_INFO!G24,IF(COUNTRY_INFO!$I24=1,IF(COUNTRY_INFO!M24>=(COUNTRY_INFO!F24+COUNTRY_INFO!G24),COUNTRY_INFO!F24+COUNTRY_INFO!G24,COUNTRY_INFO!$M24),0)))) -> 0 | E25: =IF(AND(INTRO!$E$39="Non-endemic",INTRO!$E$37="Non-endemic"),"Not required",IF(INTRO!$E$39="Non-endemic","Treat with DEC",COUNTRY_INFO!P24)) -> Not required | F25: =IF(INTRO!$E$39<>"Non-endemic",COUNTRY_INFO!Q24,"Not required") -> Not required | G25: =IF(COUNTRY_INFO!H24=1, IF($E25=1,$D25, 0),0) -> 0 | H25: =IF(INTRO!$E$39<>"Endemic",0, IF(AND(COUNTRY_INFO!$I24=1,$F25<>0),IF(COUNTRY_INFO!M24>=(COUNTRY_INFO!F24+COUNTRY_INFO!G24),COUNTRY_INFO!F24+COUNTRY_INFO!G24,COUNTRY_INFO!$M24), 0)) -> 0 | J25: 0 | K25: 0 | L25: 0 | M25: 0 | N25: 0 | P25: 0 | Q25: 0
A26: =IF(INTRO!$E$39="Non-endemic"," ",IF(COUNTRY_INFO!A25=0," ",COUNTRY_INFO!A25)) ->  | B26: =IF(INTRO!$E$39="Non-endemic"," ",IF(COUNTRY_INFO!B25=0," ",COUNTRY_INFO!B25)) ->  | C26: =IF(INTRO!$E$39="Non-endemic"," ",IF(COUNTRY_INFO!C25=0," ",COUNTRY_INFO!C25)) ->  | D26: =IF(INTRO!$E$39="Non-endemic",0,IF(INTRO!$E$39="Endemic but PC is not required",IF(COUNTRY_INFO!$H25=1,COUNTRY_INFO!F25+COUNTRY_INFO!G25,0),IF(COUNTRY_INFO!$H25=1,COUNTRY_INFO!F25+COUNTRY_INFO!G25,IF(COUNTRY_INFO!$I25=1,IF(COUNTRY_INFO!M25>=(COUNTRY_INFO!F25+COUNTRY_INFO!G25),COUNTRY_INFO!F25+COUNTRY_INFO!G25,COUNTRY_INFO!$M25),0)))) -> 0 | E26: =IF(AND(INTRO!$E$39="Non-endemic",INTRO!$E$37="Non-endemic"),"Not required",IF(INTRO!$E$39="Non-endemic","Treat with DEC",COUNTRY_INFO!P25)) -> Not required | F26: =IF(INTRO!$E$39<>"Non-endemic",COUNTRY_INFO!Q25,"Not required") -> Not required | G26: =IF(COUNTRY_INFO!H25=1, IF($E26=1,$D26, 0),0) -> 0 | H26: =IF(INTRO!$E$39<>"Endemic",0, IF(AND(COUNTRY_INFO!$I25=1,$F26<>0),IF(COUNTRY_INFO!M25>=(COUNTRY_INFO!F25+COUNTRY_INFO!G25),COUNTRY_INFO!F25+COUNTRY_INFO!G25,COUNTRY_INFO!$M25), 0)) -> 0 | J26: 0 | K26: 0 | L26: 0 | M26: 0 | N26: 0 | P26: 0 | Q26: 0
A27: =IF(INTRO!$E$39="Non-endemic"," ",IF(COUNTRY_INFO!A26=0," ",COUNTRY_INFO!A26)) ->  | B27: =IF(INTRO!$E$39="Non-endemic"," ",IF(COUNTRY_INFO!B26=0," ",COUNTRY_INFO!B26)) ->  | C27: =IF(INTRO!$E$39="Non-endemic"," ",IF(COUNTRY_INFO!C26=0," ",COUNTRY_INFO!C26)) ->  | D27: =IF(INTRO!$E$39="Non-endemic",0,IF(INTRO!$E$39="Endemic but PC is not required",IF(COUNTRY_INFO!$H26=1,COUNTRY_INFO!F26+COUNTRY_INFO!G26,0),IF(COUNTRY_INFO!$H26=1,COUNTRY_INFO!F26+COUNTRY_INFO!G26,IF(COUNTRY_INFO!$I26=1,IF(COUNTRY_INFO!M26>=(COUNTRY_INFO!F26+COUNTRY_INFO!G26),COUNTRY_INFO!F26+COUNTRY_INFO!G26,COUNTRY_INFO!$M26),0)))) -> 0 | E27: =IF(AND(INTRO!$E$39="Non-endemic",INTRO!$E$37="Non-endemic"),"Not required",IF(INTRO!$E$39="Non-endemic","Treat with DEC",COUNTRY_INFO!P26)) -> Not required | F27: =IF(INTRO!$E$39<>"Non-endemic",COUNTRY_INFO!Q26,"Not required") -> Not required | G27: =IF(COUNTRY_INFO!H26=1, IF($E27=1,$D27, 0),0) -> 0 | H27: =IF(INTRO!$E$39<>"Endemic",0, IF(AND(COUNTRY_INFO!$I26=1,$F27<>0),IF(COUNTRY_INFO!M26>=(COUNTRY_INFO!F26+COUNTRY_INFO!G26),COUNTRY_INFO!F26+COUNTRY_INFO!G26,COUNTRY_INFO!$M26), 0)) -> 0 | J27: 0 | K27: 0 | L27: 0 | M27: 0 | N27: 0 | P27: 0 | Q27: 0
A28: =IF(INTRO!$E$39="Non-endemic"," ",IF(COUNTRY_INFO!A27=0," ",COUNTRY_INFO!A27)) ->  | B28: =IF(INTRO!$E$39="Non-endemic"," ",IF(COUNTRY_INFO!B27=0," ",COUNTRY_INFO!B27)) ->  | C28: =IF(INTRO!$E$39="Non-endemic"," ",IF(COUNTRY_INFO!C27=0," ",COUNTRY_INFO!C27)) ->  | D28: =IF(INTRO!$E$39="Non-endemic",0,IF(INTRO!$E$39="Endemic but PC is not required",IF(COUNTRY_INFO!$H27=1,COUNTRY_INFO!F27+COUNTRY_INFO!G27,0),IF(COUNTRY_INFO!$H27=1,COUNTRY_INFO!F27+COUNTRY_INFO!G27,IF(COUNTRY_INFO!$I27=1,IF(COUNTRY_INFO!M27>=(COUNTRY_INFO!F27+COUNTRY_INFO!G27),COUNTRY_INFO!F27+COUNTRY_INFO!G27,COUNTRY_INFO!$M27),0)))) -> 0 | E28: =IF(AND(INTRO!$E$39="Non-endemic",INTRO!$E$37="Non-endemic"),"Not required",IF(INTRO!$E$39="Non-endemic","Treat with DEC",COUNTRY_INFO!P27)) -> Not required | F28: =IF(INTRO!$E$39<>"Non-endemic",COUNTRY_INFO!Q27,"Not required") -> Not required | G28: =IF(COUNTRY_INFO!H27=1, IF($E28=1,$D28, 0),0) -> 0 | H28: =IF(INTRO!$E$39<>"Endemic",0, IF(AND(COUNTRY_INFO!$I27=1,$F28<>0),IF(COUNTRY_INFO!M27>=(COUNTRY_INFO!F27+COUNTRY_INFO!G27),COUNTRY_INFO!F27+COUNTRY_INFO!G27,COUNTRY_INFO!$M27), 0)) -> 0 | J28: 0 | K28: 0 | L28: 0 | M28: 0 | N28: 0 | P28: 0 | Q28: 0
A29: =IF(INTRO!$E$39="Non-endemic"," ",IF(COUNTRY_INFO!A28=0," ",COUNTRY_INFO!A28)) ->  | B29: =IF(INTRO!$E$39="Non-endemic"," ",IF(COUNTRY_INFO!B28=0," ",COUNTRY_INFO!B28)) ->  | C29: =IF(INTRO!$E$39="Non-endemic"," ",IF(COUNTRY_INFO!C28=0," ",COUNTRY_INFO!C28)) ->  | D29: =IF(INTRO!$E$39="Non-endemic",0,IF(INTRO!$E$39="Endemic but PC is not required",IF(COUNTRY_INFO!$H28=1,COUNTRY_INFO!F28+COUNTRY_INFO!G28,0),IF(COUNTRY_INFO!$H28=1,COUNTRY_INFO!F28+COUNTRY_INFO!G28,IF(COUNTRY_INFO!$I28=1,IF(COUNTRY_INFO!M28>=(COUNTRY_INFO!F28+COUNTRY_INFO!G28),COUNTRY_INFO!F28+COUNTRY_INFO!G28,COUNTRY_INFO!$M28),0)))) -> 0 | E29: =IF(AND(INTRO!$E$39="Non-endemic",INTRO!$E$37="Non-endemic"),"Not required",IF(INTRO!$E$39="Non-endemic","Treat with DEC",COUNTRY_INFO!P28)) -> Not required | F29: =IF(INTRO!$E$39<>"Non-endemic",COUNTRY_INFO!Q28,"Not required") -> Not required | G29: =IF(COUNTRY_INFO!H28=1, IF($E29=1,$D29, 0),0) -> 0 | H29: =IF(INTRO!$E$39<>"Endemic",0, IF(AND(COUNTRY_INFO!$I28=1,$F29<>0),IF(COUNTRY_INFO!M28>=(COUNTRY_INFO!F28+COUNTRY_INFO!G28),COUNTRY_INFO!F28+COUNTRY_INFO!G28,COUNTRY_INFO!$M28), 0)) -> 0 | J29: 0 | K29: 0 | L29: 0 | M29: 0 | N29: 0 | P29: 0 | Q29: 0
A30: =IF(INTRO!$E$39="Non-endemic"," ",IF(COUNTRY_INFO!A29=0," ",COUNTRY_INFO!A29)) ->  | B30: =IF(INTRO!$E$39="Non-endemic"," ",IF(COUNTRY_INFO!B29=0," ",COUNTRY_INFO!B29)) ->  | C30: =IF(INTRO!$E$39="Non-endemic"," ",IF(COUNTRY_INFO!C29=0," ",COUNTRY_INFO!C29)) ->  | D30: =IF(INTRO!$E$39="Non-endemic",0,IF(INTRO!$E$39="Endemic but PC is not required",IF(COUNTRY_INFO!$H29=1,COUNTRY_INFO!F29+COUNTRY_INFO!G29,0),IF(COUNTRY_INFO!$H29=1,COUNTRY_INFO!F29+COUNTRY_INFO!G29,IF(COUNTRY_INFO!$I29=1,IF(COUNTRY_INFO!M29>=(COUNTRY_INFO!F29+COUNTRY_INFO!G29),COUNTRY_INFO!F29+COUNTRY_INFO!G29,COUNTRY_INFO!$M29),0)))) -> 0 | E30: =IF(AND(INTRO!$E$39="Non-endemic",INTRO!$E$37="Non-endemic"),"Not required",IF(INTRO!$E$39="Non-endemic","Treat with DEC",COUNTRY_INFO!P29)) -> Not required | F30: =IF(INTRO!$E$39<>"Non-endemic",COUNTRY_INFO!Q29,"Not required") -> Not required | G30: =IF(COUNTRY_INFO!H29=1, IF($E30=1,$D30, 0),0) -> 0 | H30: =IF(INTRO!$E$39<>"Endemic",0, IF(AND(COUNTRY_INFO!$I29=1,$F30<>0),IF(COUNTRY_INFO!M29>=(COUNTRY_INFO!F29+COUNTRY_INFO!G29),COUNTRY_INFO!F29+COUNTRY_INFO!G29,COUNTRY_INFO!$M29), 0)) -> 0 | J30: 0 | K30: 0 | L30: 0 | M30: 0 | N30: 0 | P30: 0 | Q30: 0
A31: =IF(INTRO!$E$39="Non-endemic"," ",IF(COUNTRY_INFO!A30=0," ",COUNTRY_INFO!A30)) ->  | B31: =IF(INTRO!$E$39="Non-endemic"," ",IF(COUNTRY_INFO!B30=0," ",COUNTRY_INFO!B30)) ->  | C31: =IF(INTRO!$E$39="Non-endemic"," ",IF(COUNTRY_INFO!C30=0," ",COUNTRY_INFO!C30)) ->  | D31: =IF(INTRO!$E$39="Non-endemic",0,IF(INTRO!$E$39="Endemic but PC is not required",IF(COUNTRY_INFO!$H30=1,COUNTRY_INFO!F30+COUNTRY_INFO!G30,0),IF(COUNTRY_INFO!$H30=1,COUNTRY_INFO!F30+COUNTRY_INFO!G30,IF(COUNTRY_INFO!$I30=1,IF(COUNTRY_INFO!M30>=(COUNTRY_INFO!F30+COUNTRY_INFO!G30),COUNTRY_INFO!F30+COUNTRY_INFO!G30,COUNTRY_INFO!$M30),0)))) -> 0 | E31: =IF(AND(INTRO!$E$39="Non-endemic",INTRO!$E$37="Non-endemic"),"Not required",IF(INTRO!$E$39="Non-endemic","Treat with DEC",COUNTRY_INFO!P30)) -> Not required | F31: =IF(INTRO!$E$39<>"Non-endemic",COUNTRY_INFO!Q30,"Not required") -> Not required | G31: =IF(COUNTRY_INFO!H30=1, IF($E31=1,$D31, 0),0) -> 0 | H31: =IF(INTRO!$E$39<>"Endemic",0, IF(AND(COUNTRY_INFO!$I30=1,$F31<>0),IF(COUNTRY_INFO!M30>=(COUNTRY_INFO!F30+COUNTRY_INFO!G30),COUNTRY_INFO!F30+COUNTRY_INFO!G30,COUNTRY_INFO!$M30), 0)) -> 0 | J31: 0 | K31: 0 | L31: 0 | M31: 0 | N31: 0 | P31: 0 | Q31: 0
A32: =IF(INTRO!$E$39="Non-endemic"," ",IF(COUNTRY_INFO!A31=0," ",COUNTRY_INFO!A31)) ->  | B32: =IF(INTRO!$E$39="Non-endemic"," ",IF(COUNTRY_INFO!B31=0," ",COUNTRY_INFO!B31)) ->  | C32: =IF(INTRO!$E$39="Non-endemic"," ",IF(COUNTRY_INFO!C31=0," ",COUNTRY_INFO!C31)) ->  | D32: =IF(INTRO!$E$39="Non-endemic",0,IF(INTRO!$E$39="Endemic but PC is not required",IF(COUNTRY_INFO!$H31=1,COUNTRY_INFO!F31+COUNTRY_INFO!G31,0),IF(COUNTRY_INFO!$H31=1,COUNTRY_INFO!F31+COUNTRY_INFO!G31,IF(COUNTRY_INFO!$I31=1,IF(COUNTRY_INFO!M31>=(COUNTRY_INFO!F31+COUNTRY_INFO!G31),COUNTRY_INFO!F31+COUNTRY_INFO!G31,COUNTRY_INFO!$M31),0)))) -> 0 | E32: =IF(AND(INTRO!$E$39="Non-endemic",INTRO!$E$37="Non-endemic"),"Not required",IF(INTRO!$E$39="Non-endemic","Treat with DEC",COUNTRY_INFO!P31)) -> Not required | F32: =IF(INTRO!$E$39<>"Non-endemic",COUNTRY_INFO!Q31,"Not required") -> Not required | G32: =IF(COUNTRY_INFO!H31=1, IF($E32=1,$D32, 0),0) -> 0 | H32: =IF(INTRO!$E$39<>"Endemic",0, IF(AND(COUNTRY_INFO!$I31=1,$F32<>0),IF(COUNTRY_INFO!M31>=(COUNTRY_INFO!F31+COUNTRY_INFO!G31),COUNTRY_INFO!F31+COUNTRY_INFO!G31,COUNTRY_INFO!$M31), 0)) -> 0 | J32: 0 | K32: 0 | L32: 0 | M32: 0 | N32: 0 | P32: 0 | Q32: 0
A33: =IF(INTRO!$E$39="Non-endemic"," ",IF(COUNTRY_INFO!A32=0," ",COUNTRY_INFO!A32)) ->  | B33: =IF(INTRO!$E$39="Non-endemic"," ",IF(COUNTRY_INFO!B32=0," ",COUNTRY_INFO!B32)) ->  | C33: =IF(INTRO!$E$39="Non-endemic"," ",IF(COUNTRY_INFO!C32=0," ",COUNTRY_INFO!C32)) ->  | D33: =IF(INTRO!$E$39="Non-endemic",0,IF(INTRO!$E$39="Endemic but PC is not required",IF(COUNTRY_INFO!$H32=1,COUNTRY_INFO!F32+COUNTRY_INFO!G32,0),IF(COUNTRY_INFO!$H32=1,COUNTRY_INFO!F32+COUNTRY_INFO!G32,IF(COUNTRY_INFO!$I32=1,IF(COUNTRY_INFO!M32>=(COUNTRY_INFO!F32+COUNTRY_INFO!G32),COUNTRY_INFO!F32+COUNTRY_INFO!G32,COUNTRY_INFO!$M32),0)))) -> 0 | E33: =IF(AND(INTRO!$E$39="Non-endemic",INTRO!$E$37="Non-endemic"),"Not required",IF(INTRO!$E$39="Non-endemic","Treat with DEC",COUNTRY_INFO!P32)) -> Not required | F33: =IF(INTRO!$E$39<>"Non-endemic",COUNTRY_INFO!Q32,"Not required") -> Not required | G33: =IF(COUNTRY_INFO!H32=1, IF($E33=1,$D33, 0),0) -> 0 | H33: =IF(INTRO!$E$39<>"Endemic",0, IF(AND(COUNTRY_INFO!$I32=1,$F33<>0),IF(COUNTRY_INFO!M32>=(COUNTRY_INFO!F32+COUNTRY_INFO!G32),COUNTRY_INFO!F32+COUNTRY_INFO!G32,COUNTRY_INFO!$M32), 0)) -> 0 | J33: 0 | K33: 0 | L33: 0 | M33: 0 | N33: 0 | P33: 0 | Q33: 0
A34: =IF(INTRO!$E$39="Non-endemic"," ",IF(COUNTRY_INFO!A33=0," ",COUNTRY_INFO!A33)) ->  | B34: =IF(INTRO!$E$39="Non-endemic"," ",IF(COUNTRY_INFO!B33=0," ",COUNTRY_INFO!B33)) ->  | C34: =IF(INTRO!$E$39="Non-endemic"," ",IF(COUNTRY_INFO!C33=0," ",COUNTRY_INFO!C33)) ->  | D34: =IF(INTRO!$E$39="Non-endemic",0,IF(INTRO!$E$39="Endemic but PC is not required",IF(COUNTRY_INFO!$H33=1,COUNTRY_INFO!F33+COUNTRY_INFO!G33,0),IF(COUNTRY_INFO!$H33=1,COUNTRY_INFO!F33+COUNTRY_INFO!G33,IF(COUNTRY_INFO!$I33=1,IF(COUNTRY_INFO!M33>=(COUNTRY_INFO!F33+COUNTRY_INFO!G33),COUNTRY_INFO!F33+COUNTRY_INFO!G33,COUNTRY_INFO!$M33),0)))) -> 0 | E34: =IF(AND(INTRO!$E$39="Non-endemic",INTRO!$E$37="Non-endemic"),"Not required",IF(INTRO!$E$39="Non-endemic","Treat with DEC",COUNTRY_INFO!P33)) -> Not required | F34: =IF(INTRO!$E$39<>"Non-endemic",COUNTRY_INFO!Q33,"Not required") -> Not required | G34: =IF(COUNTRY_INFO!H33=1, IF($E34=1,$D34, 0),0) -> 0 | H34: =IF(INTRO!$E$39<>"Endemic",0, IF(AND(COUNTRY_INFO!$I33=1,$F34<>0),IF(COUNTRY_INFO!M33>=(COUNTRY_INFO!F33+COUNTRY_INFO!G33),COUNTRY_INFO!F33+COUNTRY_INFO!G33,COUNTRY_INFO!$M33), 0)) -> 0 | J34: 0 | K34: 0 | L34: 0 | M34: 0 | N34: 0 | P34: 0 | Q34: 0
A35: =IF(INTRO!$E$39="Non-endemic"," ",IF(COUNTRY_INFO!A34=0," ",COUNTRY_INFO!A34)) ->  | B35: =IF(INTRO!$E$39="Non-endemic"," ",IF(COUNTRY_INFO!B34=0," ",COUNTRY_INFO!B34)) ->  | C35: =IF(INTRO!$E$39="Non-endemic"," ",IF(COUNTRY_INFO!C34=0," ",COUNTRY_INFO!C34)) ->  | D35: =IF(INTRO!$E$39="Non-endemic",0,IF(INTRO!$E$39="Endemic but PC is not required",IF(COUNTRY_INFO!$H34=1,COUNTRY_INFO!F34+COUNTRY_INFO!G34,0),IF(COUNTRY_INFO!$H34=1,COUNTRY_INFO!F34+COUNTRY_INFO!G34,IF(COUNTRY_INFO!$I34=1,IF(COUNTRY_INFO!M34>=(COUNTRY_INFO!F34+COUNTRY_INFO!G34),COUNTRY_INFO!F34+COUNTRY_INFO!G34,COUNTRY_INFO!$M34),0)))) -> 0 | E35: =IF(AND(INTRO!$E$39="Non-endemic",INTRO!$E$37="Non-endemic"),"Not required",IF(INTRO!$E$39="Non-endemic","Treat with DEC",COUNTRY_INFO!P34)) -> Not required | F35: =IF(INTRO!$E$39<>"Non-endemic",COUNTRY_INFO!Q34,"Not required") -> Not required | G35: =IF(COUNTRY_INFO!H34=1, IF($E35=1,$D35, 0),0) -> 0 | H35: =IF(INTRO!$E$39<>"Endemic",0, IF(AND(COUNTRY_INFO!$I34=1,$F35<>0),IF(COUNTRY_INFO!M34>=(COUNTRY_INFO!F34+COUNTRY_INFO!G34),COUNTRY_INFO!F34+COUNTRY_INFO!G34,COUNTRY_INFO!$M34), 0)) -> 0 | J35: 0 | K35: 0 | L35: 0 | M35: 0 | N35: 0 | P35: 0 | Q35: 0
A36: =IF(INTRO!$E$39="Non-endemic"," ",IF(COUNTRY_INFO!A35=0," ",COUNTRY_INFO!A35)) ->  | B36: =IF(INTRO!$E$39="Non-endemic"," ",IF(COUNTRY_INFO!B35=0," ",COUNTRY_INFO!B35)) ->  | C36: =IF(INTRO!$E$39="Non-endemic"," ",IF(COUNTRY_INFO!C35=0," ",COUNTRY_INFO!C35)) ->  | D36: =IF(INTRO!$E$39="Non-endemic",0,IF(INTRO!$E$39="Endemic but PC is not required",IF(COUNTRY_INFO!$H35=1,COUNTRY_INFO!F35+COUNTRY_INFO!G35,0),IF(COUNTRY_INFO!$H35=1,COUNTRY_INFO!F35+COUNTRY_INFO!G35,IF(COUNTRY_INFO!$I35=1,IF(COUNTRY_INFO!M35>=(COUNTRY_INFO!F35+COUNTRY_INFO!G35),COUNTRY_INFO!F35+COUNTRY_INFO!G35,COUNTRY_INFO!$M35),0)))) -> 0 | E36: =IF(AND(INTRO!$E$39="Non-endemic",INTRO!$E$37="Non-endemic"),"Not required",IF(INTRO!$E$39="Non-endemic","Treat with DEC",COUNTRY_INFO!P35)) -> Not required | F36: =IF(INTRO!$E$39<>"Non-endemic",COUNTRY_INFO!Q35,"Not required") -> Not required | G36: =IF(COUNTRY_INFO!H35=1, IF($E36=1,$D36, 0),0) -> 0 | H36: =IF(INTRO!$E$39<>"Endemic",0, IF(AND(COUNTRY_INFO!$I35=1,$F36<>0),IF(COUNTRY_INFO!M35>=(COUNTRY_INFO!F35+COUNTRY_INFO!G35),COUNTRY_INFO!F35+COUNTRY_INFO!G35,COUNTRY_INFO!$M35), 0)) -> 0 | J36: 0 | K36: 0 | L36: 0 | M36: 0 | N36: 0 | P36: 0 | Q36: 0
A37: =IF(INTRO!$E$39="Non-endemic"," ",IF(COUNTRY_INFO!A36=0," ",COUNTRY_INFO!A36)) ->  | B37: =IF(INTRO!$E$39="Non-endemic"," ",IF(COUNTRY_INFO!B36=0," ",COUNTRY_INFO!B36)) ->  | C37: =IF(INTRO!$E$39="Non-endemic"," ",IF(COUNTRY_INFO!C36=0," ",COUNTRY_INFO!C36)) ->  | D37: =IF(INTRO!$E$39="Non-endemic",0,IF(INTRO!$E$39="Endemic but PC is not required",IF(COUNTRY_INFO!$H36=1,COUNTRY_INFO!F36+COUNTRY_INFO!G36,0),IF(COUNTRY_INFO!$H36=1,COUNTRY_INFO!F36+COUNTRY_INFO!G36,IF(COUNTRY_INFO!$I36=1,IF(COUNTRY_INFO!M36>=(COUNTRY_INFO!F36+COUNTRY_INFO!G36),COUNTRY_INFO!F36+COUNTRY_INFO!G36,COUNTRY_INFO!$M36),0)))) -> 0 | E37: =IF(AND(INTRO!$E$39="Non-endemic",INTRO!$E$37="Non-endemic"),"Not required",IF(INTRO!$E$39="Non-endemic","Treat with DEC",COUNTRY_INFO!P36)) -> Not required | F37: =IF(INTRO!$E$39<>"Non-endemic",COUNTRY_INFO!Q36,"Not required") -> Not required | G37: =IF(COUNTRY_INFO!H36=1, IF($E37=1,$D37, 0),0) -> 0 | H37: =IF(INTRO!$E$39<>"Endemic",0, IF(AND(COUNTRY_INFO!$I36=1,$F37<>0),IF(COUNTRY_INFO!M36>=(COUNTRY_INFO!F36+COUNTRY_INFO!G36),COUNTRY_INFO!F36+COUNTRY_INFO!G36,COUNTRY_INFO!$M36), 0)) -> 0 | J37: 0 | K37: 0 | L37: 0 | M37: 0 | N37: 0 | P37: 0 | Q37: 0
A38: =IF(INTRO!$E$39="Non-endemic"," ",IF(COUNTRY_INFO!A37=0," ",COUNTRY_INFO!A37)) ->  | B38: =IF(INTRO!$E$39="Non-endemic"," ",IF(COUNTRY_INFO!B37=0," ",COUNTRY_INFO!B37)) ->  | C38: =IF(INTRO!$E$39="Non-endemic"," ",IF(COUNTRY_INFO!C37=0," ",COUNTRY_INFO!C37)) ->  | D38: =IF(INTRO!$E$39="Non-endemic",0,IF(INTRO!$E$39="Endemic but PC is not required",IF(COUNTRY_INFO!$H37=1,COUNTRY_INFO!F37+COUNTRY_INFO!G37,0),IF(COUNTRY_INFO!$H37=1,COUNTRY_INFO!F37+COUNTRY_INFO!G37,IF(COUNTRY_INFO!$I37=1,IF(COUNTRY_INFO!M37>=(COUNTRY_INFO!F37+COUNTRY_INFO!G37),COUNTRY_INFO!F37+COUNTRY_INFO!G37,COUNTRY_INFO!$M37),0)))) -> 0 | E38: =IF(AND(INTRO!$E$39="Non-endemic",INTRO!$E$37="Non-endemic"),"Not required",IF(INTRO!$E$39="Non-endemic","Treat with DEC",COUNTRY_INFO!P37)) -> Not required | F38: =IF(INTRO!$E$39<>"Non-endemic",COUNTRY_INFO!Q37,"Not required") -> Not required | G38: =IF(COUNTRY_INFO!H37=1, IF($E38=1,$D38, 0),0) -> 0 | H38: =IF(INTRO!$E$39<>"Endemic",0, IF(AND(COUNTRY_INFO!$I37=1,$F38<>0),IF(COUNTRY_INFO!M37>=(COUNTRY_INFO!F37+COUNTRY_INFO!G37),COUNTRY_INFO!F37+COUNTRY_INFO!G37,COUNTRY_INFO!$M37), 0)) -> 0 | J38: 0 | K38: 0 | L38: 0 | M38: 0 | N38: 0 | P38: 0 | Q38: 0

Sheet IVM+ (hidden)
A1: Ivermectin (IVM) for IDA therapy
A2: Administrative structure, eligible population by age group, treatment plan and information about tablets
A4: TOTAL | E4: =SUM(E$9:E$1000) -> 0 | F4: =SUM(F$9:F$1000) -> 0 | G4: =SUM(G$9:G$1000) -> 0 | H4: =SUM(H$9:H$1000) -> 0 | I4: =SUM(I$9:I$1000) -> 0
A6: Country administrative structure | D6: Treatment plan | E6: Population targeted for treatment with IVM (IDA therapy) | F6: Ivermectin (IVM)
A7: Country | B7: Province/State | C7: District | D7: LF | F7: Total required | G7: Remaining in stock | H7: Tablets to be procured | I7: Bottles (3mg) 500 tablets
A9: =IF(AND(INTRO!$E$37="Endemic",INTRO!$E$39="Non-endemic"),IF(COUNTRY_INFO!A8=0," ",COUNTRY_INFO!A8)," ") ->  | B9: =IF(AND(INTRO!$E$37="Endemic",INTRO!$E$39="Non-endemic"),IF(COUNTRY_INFO!B8=0," ",COUNTRY_INFO!B8)," ") ->  | C9: =IF(AND(INTRO!$E$37="Endemic",INTRO!$E$39="Non-endemic"),IF(COUNTRY_INFO!C8=0," ",COUNTRY_INFO!C8)," ") ->  | D9: =IF(COUNTRY_INFO!T8<>"",COUNTRY_INFO!P8,0) -> 0 | E9: =IF(AND(COUNTRY_INFO!T8<>"",COUNTRY_INFO!$H8=1),COUNTRY_INFO!F8+COUNTRY_INFO!G8,0) -> 0 | F9: =E9*2.8 -> 0 | H9: =IF($F9>$G9,$F9-$G9,0) -> 0 | I9: =ROUNDUP($F9/500,0) -> 0
A10: =IF(AND(INTRO!$E$37="Endemic",INTRO!$E$39="Non-endemic"),IF(COUNTRY_INFO!A9=0," ",COUNTRY_INFO!A9)," ") ->  | B10: =IF(AND(INTRO!$E$37="Endemic",INTRO!$E$39="Non-endemic"),IF(COUNTRY_INFO!B9=0," ",COUNTRY_INFO!B9)," ") ->  | C10: =IF(AND(INTRO!$E$37="Endemic",INTRO!$E$39="Non-endemic"),IF(COUNTRY_INFO!C9=0," ",COUNTRY_INFO!C9)," ") ->  | D10: =IF(COUNTRY_INFO!T9<>"",COUNTRY_INFO!P9,0) -> 0 | E10: =IF(AND(COUNTRY_INFO!T9<>"",COUNTRY_INFO!$H9=1),COUNTRY_INFO!F9+COUNTRY_INFO!G9,0) -> 0 | F10: 0 | H10: 0 | I10: 0
A11: =IF(AND(INTRO!$E$37="Endemic",INTRO!$E$39="Non-endemic"),IF(COUNTRY_INFO!A10=0," ",COUNTRY_INFO!A10)," ") ->  | B11: =IF(AND(INTRO!$E$37="Endemic",INTRO!$E$39="Non-endemic"),IF(COUNTRY_INFO!B10=0," ",COUNTRY_INFO!B10)," ") ->  | C11: =IF(AND(INTRO!$E$37="Endemic",INTRO!$E$39="Non-endemic"),IF(COUNTRY_INFO!C10=0," ",COUNTRY_INFO!C10)," ") ->  | D11: =IF(COUNTRY_INFO!T10<>"",COUNTRY_INFO!P10,0) -> 0 | E11: =IF(AND(COUNTRY_INFO!T10<>"",COUNTRY_INFO!$H10=1),COUNTRY_INFO!F10+COUNTRY_INFO!G10,0) -> 0 | F11: 0 | H11: 0 | I11: 0
A12: =IF(AND(INTRO!$E$37="Endemic",INTRO!$E$39="Non-endemic"),IF(COUNTRY_INFO!A11=0," ",COUNTRY_INFO!A11)," ") ->  | B12: =IF(AND(INTRO!$E$37="Endemic",INTRO!$E$39="Non-endemic"),IF(COUNTRY_INFO!B11=0," ",COUNTRY_INFO!B11)," ") ->  | C12: =IF(AND(INTRO!$E$37="Endemic",INTRO!$E$39="Non-endemic"),IF(COUNTRY_INFO!C11=0," ",COUNTRY_INFO!C11)," ") ->  | D12: =IF(COUNTRY_INFO!T11<>"",COUNTRY_INFO!P11,0) -> 0 | E12: =IF(AND(COUNTRY_INFO!T11<>"",COUNTRY_INFO!$H11=1),COUNTRY_INFO!F11+COUNTRY_INFO!G11,0) -> 0 | F12: 0 | H12: 0 | I12: 0
A13: =IF(AND(INTRO!$E$37="Endemic",INTRO!$E$39="Non-endemic"),IF(COUNTRY_INFO!A12=0," ",COUNTRY_INFO!A12)," ") ->  | B13: =IF(AND(INTRO!$E$37="Endemic",INTRO!$E$39="Non-endemic"),IF(COUNTRY_INFO!B12=0," ",COUNTRY_INFO!B12)," ") ->  | C13: =IF(AND(INTRO!$E$37="Endemic",INTRO!$E$39="Non-endemic"),IF(COUNTRY_INFO!C12=0," ",COUNTRY_INFO!C12)," ") ->  | D13: =IF(COUNTRY_INFO!T12<>"",COUNTRY_INFO!P12,0) -> 0 | E13: =IF(AND(COUNTRY_INFO!T12<>"",COUNTRY_INFO!$H12=1),COUNTRY_INFO!F12+COUNTRY_INFO!G12,0) -> 0 | F13: 0 | H13: 0 | I13: 0
A14: =IF(AND(INTRO!$E$37="Endemic",INTRO!$E$39="Non-endemic"),IF(COUNTRY_INFO!A13=0," ",COUNTRY_INFO!A13)," ") ->  | B14: =IF(AND(INTRO!$E$37="Endemic",INTRO!$E$39="Non-endemic"),IF(COUNTRY_INFO!B13=0," ",COUNTRY_INFO!B13)," ") ->  | C14: =IF(AND(INTRO!$E$37="Endemic",INTRO!$E$39="Non-endemic"),IF(COUNTRY_INFO!C13=0," ",COUNTRY_INFO!C13)," ") ->  | D14: =IF(COUNTRY_INFO!T13<>"",COUNTRY_INFO!P13,0) -> 0 | E14: =IF(AND(COUNTRY_INFO!T13<>"",COUNTRY_INFO!$H13=1),COUNTRY_INFO!F13+COUNTRY_INFO!G13,0) -> 0 | F14: 0 | H14: 0 | I14: 0
A15: =IF(AND(INTRO!$E$37="Endemic",INTRO!$E$39="Non-endemic"),IF(COUNTRY_INFO!A14=0," ",COUNTRY_INFO!A14)," ") ->  | B15: =IF(AND(INTRO!$E$37="Endemic",INTRO!$E$39="Non-endemic"),IF(COUNTRY_INFO!B14=0," ",COUNTRY_INFO!B14)," ") ->  | C15: =IF(AND(INTRO!$E$37="Endemic",INTRO!$E$39="Non-endemic"),IF(COUNTRY_INFO!C14=0," ",COUNTRY_INFO!C14)," ") ->  | D15: =IF(COUNTRY_INFO!T14<>"",COUNTRY_INFO!P14,0) -> 0 | E15: =IF(AND(COUNTRY_INFO!T14<>"",COUNTRY_INFO!$H14=1),COUNTRY_INFO!F14+COUNTRY_INFO!G14,0) -> 0 | F15: 0 | H15: 0 | I15: 0
A16: =IF(AND(INTRO!$E$37="Endemic",INTRO!$E$39="Non-endemic"),IF(COUNTRY_INFO!A15=0," ",COUNTRY_INFO!A15)," ") ->  | B16: =IF(AND(INTRO!$E$37="Endemic",INTRO!$E$39="Non-endemic"),IF(COUNTRY_INFO!B15=0," ",COUNTRY_INFO!B15)," ") ->  | C16: =IF(AND(INTRO!$E$37="Endemic",INTRO!$E$39="Non-endemic"),IF(COUNTRY_INFO!C15=0," ",COUNTRY_INFO!C15)," ") ->  | D16: =IF(COUNTRY_INFO!T15<>"",COUNTRY_INFO!P15,0) -> 0 | E16: =IF(AND(COUNTRY_INFO!T15<>"",COUNTRY_INFO!$H15=1),COUNTRY_INFO!F15+COUNTRY_INFO!G15,0) -> 0 | F16: 0 | H16: 0 | I16: 0
A17: =IF(AND(INTRO!$E$37="Endemic",INTRO!$E$39="Non-endemic"),IF(COUNTRY_INFO!A16=0," ",COUNTRY_INFO!A16)," ") ->  | B17: =IF(AND(INTRO!$E$37="Endemic",INTRO!$E$39="Non-endemic"),IF(COUNTRY_INFO!B16=0," ",COUNTRY_INFO!B16)," ") ->  | C17: =IF(AND(INTRO!$E$37="Endemic",INTRO!$E$39="Non-endemic"),IF(COUNTRY_INFO!C16=0," ",COUNTRY_INFO!C16)," ") ->  | D17: =IF(COUNTRY_INFO!T16<>"",COUNTRY_INFO!P16,0) -> 0 | E17: =IF(AND(COUNTRY_INFO!T16<>"",COUNTRY_INFO!$H16=1),COUNTRY_INFO!F16+COUNTRY_INFO!G16,0) -> 0 | F17: 0 | H17: 0 | I17: 0
A18: =IF(AND(INTRO!$E$37="Endemic",INTRO!$E$39="Non-endemic"),IF(COUNTRY_INFO!A17=0," ",COUNTRY_INFO!A17)," ") ->  | B18: =IF(AND(INTRO!$E$37="Endemic",INTRO!$E$39="Non-endemic"),IF(COUNTRY_INFO!B17=0," ",COUNTRY_INFO!B17)," ") ->  | C18: =IF(AND(INTRO!$E$37="Endemic",INTRO!$E$39="Non-endemic"),IF(COUNTRY_INFO!C17=0," ",COUNTRY_INFO!C17)," ") ->  | D18: =IF(COUNTRY_INFO!T17<>"",COUNTRY_INFO!P17,0) -> 0 | E18: =IF(AND(COUNTRY_INFO!T17<>"",COUNTRY_INFO!$H17=1),COUNTRY_INFO!F17+COUNTRY_INFO!G17,0) -> 0 | F18: 0 | H18: 0 | I18: 0
A19: =IF(AND(INTRO!$E$37="Endemic",INTRO!$E$39="Non-endemic"),IF(COUNTRY_INFO!A18=0," ",COUNTRY_INFO!A18)," ") ->  | B19: =IF(AND(INTRO!$E$37="Endemic",INTRO!$E$39="Non-endemic"),IF(COUNTRY_INFO!B18=0," ",COUNTRY_INFO!B18)," ") ->  | C19: =IF(AND(INTRO!$E$37="Endemic",INTRO!$E$39="Non-endemic"),IF(COUNTRY_INFO!C18=0," ",COUNTRY_INFO!C18)," ") ->  | D19: =IF(COUNTRY_INFO!T18<>"",COUNTRY_INFO!P18,0) -> 0 | E19: =IF(AND(COUNTRY_INFO!T18<>"",COUNTRY_INFO!$H18=1),COUNTRY_INFO!F18+COUNTRY_INFO!G18,0) -> 0 | F19: 0 | H19: 0 | I19: 0
A20: =IF(AND(INTRO!$E$37="Endemic",INTRO!$E$39="Non-endemic"),IF(COUNTRY_INFO!A19=0," ",COUNTRY_INFO!A19)," ") ->  | B20: =IF(AND(INTRO!$E$37="Endemic",INTRO!$E$39="Non-endemic"),IF(COUNTRY_INFO!B19=0," ",COUNTRY_INFO!B19)," ") ->  | C20: =IF(AND(INTRO!$E$37="Endemic",INTRO!$E$39="Non-endemic"),IF(COUNTRY_INFO!C19=0," ",COUNTRY_INFO!C19)," ") ->  | D20: =IF(COUNTRY_INFO!T19<>"",COUNTRY_INFO!P19,0) -> 0 | E20: =IF(AND(COUNTRY_INFO!T19<>"",COUNTRY_INFO!$H19=1),COUNTRY_INFO!F19+COUNTRY_INFO!G19,0) -> 0 | F20: 0 | H20: 0 | I20: 0
A21: =IF(AND(INTRO!$E$37="Endemic",INTRO!$E$39="Non-endemic"),IF(COUNTRY_INFO!A20=0," ",COUNTRY_INFO!A20)," ") ->  | B21: =IF(AND(INTRO!$E$37="Endemic",INTRO!$E$39="Non-endemic"),IF(COUNTRY_INFO!B20=0," ",COUNTRY_INFO!B20)," ") ->  | C21: =IF(AND(INTRO!$E$37="Endemic",INTRO!$E$39="Non-endemic"),IF(COUNTRY_INFO!C20=0," ",COUNTRY_INFO!C20)," ") ->  | D21: =IF(COUNTRY_INFO!T20<>"",COUNTRY_INFO!P20,0) -> 0 | E21: =IF(AND(COUNTRY_INFO!T20<>"",COUNTRY_INFO!$H20=1),COUNTRY_INFO!F20+COUNTRY_INFO!G20,0) -> 0 | F21: 0 | H21: 0 | I21: 0
A22: =IF(AND(INTRO!$E$37="Endemic",INTRO!$E$39="Non-endemic"),IF(COUNTRY_INFO!A21=0," ",COUNTRY_INFO!A21)," ") ->  | B22: =IF(AND(INTRO!$E$37="Endemic",INTRO!$E$39="Non-endemic"),IF(COUNTRY_INFO!B21=0," ",COUNTRY_INFO!B21)," ") ->  | C22: =IF(AND(INTRO!$E$37="Endemic",INTRO!$E$39="Non-endemic"),IF(COUNTRY_INFO!C21=0," ",COUNTRY_INFO!C21)," ") ->  | D22: =IF(COUNTRY_INFO!T21<>"",COUNTRY_INFO!P21,0) -> 0 | E22: =IF(AND(COUNTRY_INFO!T21<>"",COUNTRY_INFO!$H21=1),COUNTRY_INFO!F21+COUNTRY_INFO!G21,0) -> 0 | F22: 0 | H22: 0 | I22: 0
A23: =IF(AND(INTRO!$E$37="Endemic",INTRO!$E$39="Non-endemic"),IF(COUNTRY_INFO!A22=0," ",COUNTRY_INFO!A22)," ") ->  | B23: =IF(AND(INTRO!$E$37="Endemic",INTRO!$E$39="Non-endemic"),IF(COUNTRY_INFO!B22=0," ",COUNTRY_INFO!B22)," ") ->  | C23: =IF(AND(INTRO!$E$37="Endemic",INTRO!$E$39="Non-endemic"),IF(COUNTRY_INFO!C22=0," ",COUNTRY_INFO!C22)," ") ->  | D23: =IF(COUNTRY_INFO!T22<>"",COUNTRY_INFO!P22,0) -> 0 | E23: =IF(AND(COUNTRY_INFO!T22<>"",COUNTRY_INFO!$H22=1),COUNTRY_INFO!F22+COUNTRY_INFO!G22,0) -> 0 | F23: 0 | H23: 0 | I23: 0
A24: =IF(AND(INTRO!$E$37="Endemic",INTRO!$E$39="Non-endemic"),IF(COUNTRY_INFO!A23=0," ",COUNTRY_INFO!A23)," ") ->  | B24: =IF(AND(INTRO!$E$37="Endemic",INTRO!$E$39="Non-endemic"),IF(COUNTRY_INFO!B23=0," ",COUNTRY_INFO!B23)," ") ->  | C24: =IF(AND(INTRO!$E$37="Endemic",INTRO!$E$39="Non-endemic"),IF(COUNTRY_INFO!C23=0," ",COUNTRY_INFO!C23)," ") ->  | D24: =IF(COUNTRY_INFO!T23<>"",COUNTRY_INFO!P23,0) -> 0 | E24: =IF(AND(COUNTRY_INFO!T23<>"",COUNTRY_INFO!$H23=1),COUNTRY_INFO!F23+COUNTRY_INFO!G23,0) -> 0 | F24: 0 | H24: 0 | I24: 0
A25: =IF(AND(INTRO!$E$37="Endemic",INTRO!$E$39="Non-endemic"),IF(COUNTRY_INFO!A24=0," ",COUNTRY_INFO!A24)," ") ->  | B25: =IF(AND(INTRO!$E$37="Endemic",INTRO!$E$39="Non-endemic"),IF(COUNTRY_INFO!B24=0," ",COUNTRY_INFO!B24)," ") ->  | C25: =IF(AND(INTRO!$E$37="Endemic",INTRO!$E$39="Non-endemic"),IF(COUNTRY_INFO!C24=0," ",COUNTRY_INFO!C24)," ") ->  | D25: =IF(COUNTRY_INFO!T24<>"",COUNTRY_INFO!P24,0) -> 0 | E25: =IF(AND(COUNTRY_INFO!T24<>"",COUNTRY_INFO!$H24=1),COUNTRY_INFO!F24+COUNTRY_INFO!G24,0) -> 0 | F25: 0 | H25: 0 | I25: 0
A26: =IF(AND(INTRO!$E$37="Endemic",INTRO!$E$39="Non-endemic"),IF(COUNTRY_INFO!A25=0," ",COUNTRY_INFO!A25)," ") ->  | B26: =IF(AND(INTRO!$E$37="Endemic",INTRO!$E$39="Non-endemic"),IF(COUNTRY_INFO!B25=0," ",COUNTRY_INFO!B25)," ") ->  | C26: =IF(AND(INTRO!$E$37="Endemic",INTRO!$E$39="Non-endemic"),IF(COUNTRY_INFO!C25=0," ",COUNTRY_INFO!C25)," ") ->  | D26: =IF(COUNTRY_INFO!T25<>"",COUNTRY_INFO!P25,0) -> 0 | E26: =IF(AND(COUNTRY_INFO!T25<>"",COUNTRY_INFO!$H25=1),COUNTRY_INFO!F25+COUNTRY_INFO!G25,0) -> 0 | F26: 0 | H26: 0 | I26: 0
A27: =IF(AND(INTRO!$E$37="Endemic",INTRO!$E$39="Non-endemic"),IF(COUNTRY_INFO!A26=0," ",COUNTRY_INFO!A26)," ") ->  | B27: =IF(AND(INTRO!$E$37="Endemic",INTRO!$E$39="Non-endemic"),IF(COUNTRY_INFO!B26=0," ",COUNTRY_INFO!B26)," ") ->  | C27: =IF(AND(INTRO!$E$37="Endemic",INTRO!$E$39="Non-endemic"),IF(COUNTRY_INFO!C26=0," ",COUNTRY_INFO!C26)," ") ->  | D27: =IF(COUNTRY_INFO!T26<>"",COUNTRY_INFO!P26,0) -> 0 | E27: =IF(AND(COUNTRY_INFO!T26<>"",COUNTRY_INFO!$H26=1),COUNTRY_INFO!F26+COUNTRY_INFO!G26,0) -> 0 | F27: 0 | H27: 0 | I27: 0
A28: =IF(AND(INTRO!$E$37="Endemic",INTRO!$E$39="Non-endemic"),IF(COUNTRY_INFO!A27=0," ",COUNTRY_INFO!A27)," ") ->  | B28: =IF(AND(INTRO!$E$37="Endemic",INTRO!$E$39="Non-endemic"),IF(COUNTRY_INFO!B27=0," ",COUNTRY_INFO!B27)," ") ->  | C28: =IF(AND(INTRO!$E$37="Endemic",INTRO!$E$39="Non-endemic"),IF(COUNTRY_INFO!C27=0," ",COUNTRY_INFO!C27)," ") ->  | D28: =IF(COUNTRY_INFO!T27<>"",COUNTRY_INFO!P27,0) -> 0 | E28: =IF(AND(COUNTRY_INFO!T27<>"",COUNTRY_INFO!$H27=1),COUNTRY_INFO!F27+COUNTRY_INFO!G27,0) -> 0 | F28: 0 | H28: 0 | I28: 0
A29: =IF(AND(INTRO!$E$37="Endemic",INTRO!$E$39="Non-endemic"),IF(COUNTRY_INFO!A28=0," ",COUNTRY_INFO!A28)," ") ->  | B29: =IF(AND(INTRO!$E$37="Endemic",INTRO!$E$39="Non-endemic"),IF(COUNTRY_INFO!B28=0," ",COUNTRY_INFO!B28)," ") ->  | C29: =IF(AND(INTRO!$E$37="Endemic",INTRO!$E$39="Non-endemic"),IF(COUNTRY_INFO!C28=0," ",COUNTRY_INFO!C28)," ") ->  | D29: =IF(COUNTRY_INFO!T28<>"",COUNTRY_INFO!P28,0) -> 0 | E29: =IF(AND(COUNTRY_INFO!T28<>"",COUNTRY_INFO!$H28=1),COUNTRY_INFO!F28+COUNTRY_INFO!G28,0) -> 0 | F29: 0 | H29: 0 | I29: 0
A30: =IF(AND(INTRO!$E$37="Endemic",INTRO!$E$39="Non-endemic"),IF(COUNTRY_INFO!A29=0," ",COUNTRY_INFO!A29)," ") ->  | B30: =IF(AND(INTRO!$E$37="Endemic",INTRO!$E$39="Non-endemic"),IF(COUNTRY_INFO!B29=0," ",COUNTRY_INFO!B29)," ") ->  | C30: =IF(AND(INTRO!$E$37="Endemic",INTRO!$E$39="Non-endemic"),IF(COUNTRY_INFO!C29=0," ",COUNTRY_INFO!C29)," ") ->  | D30: =IF(COUNTRY_INFO!T29<>"",COUNTRY_INFO!P29,0) -> 0 | E30: =IF(AND(COUNTRY_INFO!T29<>"",COUNTRY_INFO!$H29=1),COUNTRY_INFO!F29+COUNTRY_INFO!G29,0) -> 0 | F30: 0 | H30: 0 | I30: 0
A31: =IF(AND(INTRO!$E$37="Endemic",INTRO!$E$39="Non-endemic"),IF(COUNTRY_INFO!A30=0," ",COUNTRY_INFO!A30)," ") ->  | B31: =IF(AND(INTRO!$E$37="Endemic",INTRO!$E$39="Non-endemic"),IF(COUNTRY_INFO!B30=0," ",COUNTRY_INFO!B30)," ") ->  | C31: =IF(AND(INTRO!$E$37="Endemic",INTRO!$E$39="Non-endemic"),IF(COUNTRY_INFO!C30=0," ",COUNTRY_INFO!C30)," ") ->  | D31: =IF(COUNTRY_INFO!T30<>"",COUNTRY_INFO!P30,0) -> 0 | E31: =IF(AND(COUNTRY_INFO!T30<>"",COUNTRY_INFO!$H30=1),COUNTRY_INFO!F30+COUNTRY_INFO!G30,0) -> 0 | F31: 0 | H31: 0 | I31: 0
A32: =IF(AND(INTRO!$E$37="Endemic",INTRO!$E$39="Non-endemic"),IF(COUNTRY_INFO!A31=0," ",COUNTRY_INFO!A31)," ") ->  | B32: =IF(AND(INTRO!$E$37="Endemic",INTRO!$E$39="Non-endemic"),IF(COUNTRY_INFO!B31=0," ",COUNTRY_INFO!B31)," ") ->  | C32: =IF(AND(INTRO!$E$37="Endemic",INTRO!$E$39="Non-endemic"),IF(COUNTRY_INFO!C31=0," ",COUNTRY_INFO!C31)," ") ->  | D32: =IF(COUNTRY_INFO!T31<>"",COUNTRY_INFO!P31,0) -> 0 | E32: =IF(AND(COUNTRY_INFO!T31<>"",COUNTRY_INFO!$H31=1),COUNTRY_INFO!F31+COUNTRY_INFO!G31,0) -> 0 | F32: 0 | H32: 0 | I32: 0
A33: =IF(AND(INTRO!$E$37="Endemic",INTRO!$E$39="Non-endemic"),IF(COUNTRY_INFO!A32=0," ",COUNTRY_INFO!A32)," ") ->  | B33: =IF(AND(INTRO!$E$37="Endemic",INTRO!$E$39="Non-endemic"),IF(COUNTRY_INFO!B32=0," ",COUNTRY_INFO!B32)," ") ->  | C33: =IF(AND(INTRO!$E$37="Endemic",INTRO!$E$39="Non-endemic"),IF(COUNTRY_INFO!C32=0," ",COUNTRY_INFO!C32)," ") ->  | D33: =IF(COUNTRY_INFO!T32<>"",COUNTRY_INFO!P32,0) -> 0 | E33: =IF(AND(COUNTRY_INFO!T32<>"",COUNTRY_INFO!$H32=1),COUNTRY_INFO!F32+COUNTRY_INFO!G32,0) -> 0 | F33: 0 | H33: 0 | I33: 0
A34: =IF(AND(INTRO!$E$37="Endemic",INTRO!$E$39="Non-endemic"),IF(COUNTRY_INFO!A33=0," ",COUNTRY_INFO!A33)," ") ->  | B34: =IF(AND(INTRO!$E$37="Endemic",INTRO!$E$39="Non-endemic"),IF(COUNTRY_INFO!B33=0," ",COUNTRY_INFO!B33)," ") ->  | C34: =IF(AND(INTRO!$E$37="Endemic",INTRO!$E$39="Non-endemic"),IF(COUNTRY_INFO!C33=0," ",COUNTRY_INFO!C33)," ") ->  | D34: =IF(COUNTRY_INFO!T33<>"",COUNTRY_INFO!P33,0) -> 0 | E34: =IF(AND(COUNTRY_INFO!T33<>"",COUNTRY_INFO!$H33=1),COUNTRY_INFO!F33+COUNTRY_INFO!G33,0) -> 0 | F34: 0 | H34: 0 | I34: 0
A35: =IF(AND(INTRO!$E$37="Endemic",INTRO!$E$39="Non-endemic"),IF(COUNTRY_INFO!A34=0," ",COUNTRY_INFO!A34)," ") ->  | B35: =IF(AND(INTRO!$E$37="Endemic",INTRO!$E$39="Non-endemic"),IF(COUNTRY_INFO!B34=0," ",COUNTRY_INFO!B34)," ") ->  | C35: =IF(AND(INTRO!$E$37="Endemic",INTRO!$E$39="Non-endemic"),IF(COUNTRY_INFO!C34=0," ",COUNTRY_INFO!C34)," ") ->  | D35: =IF(COUNTRY_INFO!T34<>"",COUNTRY_INFO!P34,0) -> 0 | E35: =IF(AND(COUNTRY_INFO!T34<>"",COUNTRY_INFO!$H34=1),COUNTRY_INFO!F34+COUNTRY_INFO!G34,0) -> 0 | F35: 0 | H35: 0 | I35: 0
A36: =IF(AND(INTRO!$E$37="Endemic",INTRO!$E$39="Non-endemic"),IF(COUNTRY_INFO!A35=0," ",COUNTRY_INFO!A35)," ") ->  | B36: =IF(AND(INTRO!$E$37="Endemic",INTRO!$E$39="Non-endemic"),IF(COUNTRY_INFO!B35=0," ",COUNTRY_INFO!B35)," ") ->  | C36: =IF(AND(INTRO!$E$37="Endemic",INTRO!$E$39="Non-endemic"),IF(COUNTRY_INFO!C35=0," ",COUNTRY_INFO!C35)," ") ->  | D36: =IF(COUNTRY_INFO!T35<>"",COUNTRY_INFO!P35,0) -> 0 | E36: =IF(AND(COUNTRY_INFO!T35<>"",COUNTRY_INFO!$H35=1),COUNTRY_INFO!F35+COUNTRY_INFO!G35,0) -> 0 | F36: 0 | H36: 0 | I36: 0
A37: =IF(AND(INTRO!$E$37="Endemic",INTRO!$E$39="Non-endemic"),IF(COUNTRY_INFO!A36=0," ",COUNTRY_INFO!A36)," ") ->  | B37: =IF(AND(INTRO!$E$37="Endemic",INTRO!$E$39="Non-endemic"),IF(COUNTRY_INFO!B36=0," ",COUNTRY_INFO!B36)," ") ->  | C37: =IF(AND(INTRO!$E$37="Endemic",INTRO!$E$39="Non-endemic"),IF(COUNTRY_INFO!C36=0," ",COUNTRY_INFO!C36)," ") ->  | D37: =IF(COUNTRY_INFO!T36<>"",COUNTRY_INFO!P36,0) -> 0 | E37: =IF(AND(COUNTRY_INFO!T36<>"",COUNTRY_INFO!$H36=1),COUNTRY_INFO!F36+COUNTRY_INFO!G36,0) -> 0 | F37: 0 | H37: 0 | I37: 0
A38: =IF(AND(INTRO!$E$37="Endemic",INTRO!$E$39="Non-endemic"),IF(COUNTRY_INFO!A37=0," ",COUNTRY_INFO!A37)," ") ->  | B38: =IF(AND(INTRO!$E$37="Endemic",INTRO!$E$39="Non-endemic"),IF(COUNTRY_INFO!B37=0," ",COUNTRY_INFO!B37)," ") ->  | C38: =IF(AND(INTRO!$E$37="Endemic",INTRO!$E$39="Non-endemic"),IF(COUNTRY_INFO!C37=0," ",COUNTRY_INFO!C37)," ") ->  | D38: =IF(COUNTRY_INFO!T37<>"",COUNTRY_INFO!P37,0) -> 0 | E38: =IF(AND(COUNTRY_INFO!T37<>"",COUNTRY_INFO!$H37=1),COUNTRY_INFO!F37+COUNTRY_INFO!G37,0) -> 0 | F38: 0 | H38: 0 | I38: 0

Sheet SUMMARY
B2: Joint request for selected PC medicines v.3.1
B4: This form constitutes an official government request to WHO for the supply of the PC medicines. It can be submitted any time before 15 August of the current year for distribution of medicines during the following year, but at least 6-8 months before the planned PC intervention(s) to allow time for reviewing and approval of the request, placing order, manufacturing PC medicines and shipment to the country.
B6: Country | C6: =IF(INTRO!$E$33<>0,INTRO!$E$33," ") -> RWANDA | G6: Year | H6: =IF(INTRO!$E$35<>0,INTRO!$E$35," ") -> 2022
B8: Information on PC medicines requested to WHO
B10: PC medicine | C10: Number of tablets | G10: Total number of bottles
C11: Required | D11: In stock | E11: In pipeline | F11: Requested | G11: Required | H11: Requested
B12: Albendazole for STH (SAC) | C12: 7716636 | D12: 0 | F12: =IF(C12>(D12+E12),C12-D12-E12, 0) -> 7716636 | G12: =IF($C12=0,0, IF($B12="Albendazole for LF", IF($C12=ALB_MBD!$I$4,ALB_MBD!$U$4,ROUNDUP($C12/200,0)), IF($B12="Albendazole for STH (SAC)", IF($C12=ALB_MBD!$L$4,ALB_MBD!$X$4,ROUNDUP($C12/200,0)), IF($B12="Mebendazole (SAC)", IF($C12=ALB_MBD!$P$4,ALB_MBD!$AA$4,ROUNDUP($C12/150,0)), IF($B12="Diethylcarbamazine citrate", IF($C12=DEC!$J$4,DEC!$M$4,ROUNDUP($C12/1000,0)), IF($B12="Praziquantel (SAC)", IF($C12=PZQ!$O$4,PZQ!$R$4,ROUNDUP($C12/1000,0)), IF($B12="Ivermectin", IF($C12=IVM!$N$4,IVM!$Q$4,$C12/500+0.49),0))))))) -> 38584 | H12: =IF($F12=0,0,IF(OR($B12="Albendazole for LF",$B12="Albendazole for STH (SAC)"),$G12-ROUNDUP(($E12+$D12)/200,0),IF($B12="Ivermectin",$G12-ROUNDUP(($E12+$D12)/500,0),IF($B12="Mebendazole (SAC)",$G12-ROUNDUP(($E12+$D12)/150,0),$G12-ROUNDUP(($E12+$D12)/1000,0))))) -> 38584
B13: Praziquantel (SAC) | C13: 3993192.5 | F13: 3993192.5 | G13: =IF($C13=0,0, IF($B13="Albendazole for LF", IF($C13=ALB_MBD!$I$4,ALB_MBD!$U$4,ROUNDUP($C13/200,0)), IF($B13="Albendazole for STH (SAC)", IF($C13=ALB_MBD!$L$4,ALB_MBD!$X$4,ROUNDUP($C13/200,0)), IF($B13="Mebendazole (SAC)", IF($C13=ALB_MBD!$P$4,ALB_MBD!$AA$4,ROUNDUP($C13/150,0)), IF($B13="Diethylcarbamazine citrate", IF($C13=DEC!$J$4,DEC!$M$4,ROUNDUP($C13/1000,0)), IF($B13="Praziquantel (SAC)", IF($C13=PZQ!$O$4,PZQ!$R$4,ROUNDUP($C13/1000,0)), IF($B13="Ivermectin", IF($C13=IVM!$N$4,IVM!$Q$4,$C13/500+0.49),0))))))) -> 4009 | H13: 4009
C14: 0 | D14: 0 | F14: 0 | G14: =IF($C14=0,0, IF($B14="Albendazole for LF", IF($C14=ALB_MBD!$I$4,ALB_MBD!$U$4,ROUNDUP($C14/200,0)), IF($B14="Albendazole for STH (SAC)", IF($C14=ALB_MBD!$L$4,ALB_MBD!$X$4,ROUNDUP($C14/200,0)), IF($B14="Mebendazole (SAC)", IF($C14=ALB_MBD!$P$4,ALB_MBD!$AA$4,ROUNDUP($C14/150,0)), IF($B14="Diethylcarbamazine citrate", IF($C14=DEC!$J$4,DEC!$M$4,ROUNDUP($C14/1000,0)), IF($B14="Praziquantel (SAC)", IF($C14=PZQ!$O$4,PZQ!$R$4,ROUNDUP($C14/1000,0)), IF($B14="Ivermectin", IF($C14=IVM!$N$4,IVM!$Q$4,$C14/500+0.49),0))))))) -> 0 | H14: 0
C15: 0 | D15: 0 | F15: 0 | G15: =IF($C15=0,0, IF($B15="Albendazole for LF", IF($C15=ALB_MBD!$I$4,ALB_MBD!$U$4,ROUNDUP($C15/200,0)), IF($B15="Albendazole for STH (SAC)", IF($C15=ALB_MBD!$L$4,ALB_MBD!$X$4,ROUNDUP($C15/200,0)), IF($B15="Mebendazole (SAC)", IF($C15=ALB_MBD!$P$4,ALB_MBD!$AA$4,ROUNDUP($C15/150,0)), IF($B15="Diethylcarbamazine citrate", IF($C15=DEC!$J$4,DEC!$M$4,ROUNDUP($C15/1000,0)), IF($B15="Praziquantel (SAC)", IF($C15=PZQ!$O$4,PZQ!$R$4,ROUNDUP($C15/1000,0)), IF($B15="Ivermectin", IF($C15=IVM!$N$4,IVM!$Q$4,$C15/500+0.49),0))))))) -> 0 | H15: 0
C16: 0 | D16: 0 | F16: 0 | G16: =IF($C16=0,0, IF($B16="Albendazole for LF", IF($C16=ALB_MBD!$I$4,ALB_MBD!$U$4,ROUNDUP($C16/200,0)), IF($B16="Albendazole for STH (SAC)", IF($C16=ALB_MBD!$L$4,ALB_MBD!$X$4,ROUNDUP($C16/200,0)), IF($B16="Mebendazole (SAC)", IF($C16=ALB_MBD!$P$4,ALB_MBD!$AA$4,ROUNDUP($C16/150,0)), IF($B16="Diethylcarbamazine citrate", IF($C16=DEC!$J$4,DEC!$M$4,ROUNDUP($C16/1000,0)), IF($B16="Praziquantel (SAC)", IF($C16=PZQ!$O$4,PZQ!$R$4,ROUNDUP($C16/1000,0)), IF($B16="Ivermectin", IF($C16=IVM!$N$4,IVM!$Q$4,$C16/500+0.49),0))))))) -> 0 | H16: 0
C17: 0 | D17: 0 | F17: 0 | G17: =IF($C17=0,0, IF($B17="Albendazole for LF", IF($C17=ALB_MBD!$I$4,ALB_MBD!$U$4,ROUNDUP($C17/200,0)), IF($B17="Albendazole for STH (SAC)", IF($C17=ALB_MBD!$L$4,ALB_MBD!$X$4,ROUNDUP($C17/200,0)), IF($B17="Mebendazole (SAC)", IF($C17=ALB_MBD!$P$4,ALB_MBD!$AA$4,ROUNDUP($C17/150,0)), IF($B17="Diethylcarbamazine citrate", IF($C17=DEC!$J$4,DEC!$M$4,ROUNDUP($C17/1000,0)), IF($B17="Praziquantel (SAC)", IF($C17=PZQ!$O$4,PZQ!$R$4,ROUNDUP($C17/1000,0)), IF($B17="Ivermectin", IF($C17=IVM!$N$4,IVM!$Q$4,$C17/500+0.49),0))))))) -> 0 | H17: 0
B19: Number of people to be treated with donated medicine ( see User Guide for details )
B21: Disease | G21: Round 1 | H21: Round 2
B22: Soil-transmitted helminthiases | C22: These figures are estimated only for targeted age groups to be treated with donated medicines in areas where treatment for specific disease is required | G22: 3886260 | H22: 3886260
B23: Schistosomiasis | G23: 1597277
B29: Information on planned PC interventions
B31: PC medicine | C31: Planned date of the 1st round of PC | E31: Planned date of the 2nd round of PC | G31: Date by which the medicine should arrive to the national warehouse
B32: Albendazole for STH | C32: February | D32: 2022 | E32: October | F32: 2022 | G32: September | H32: 2021
B33: Praziquantel | C33: February | D33: 2022 | E33: October | F33: 2022 | G33: September | H33: 2021
B34: Mebendazole | C34: February | D34: 2022 | E34: October | F34: 2022 | G34: September | H34: 2021
B39: Information on PC medicines for treatment of population not targeted with current donation through WHO
B41: PC medicine | C41: Age group | D41: # of people | E41: # of tablets | F41: Specify source | H41: Status
B42: Mebendazole | C42: Adults | D42: 4123555 | E42: =D42*3 -> 12370665 | F42: Johnson&Johnson | H42: Requested
B43: Mebendazole | C43: PreSAC | D43: 1578795 | E43: =D43*2 -> 3157590 | F43: WHO | H43: Required
B44: Praziquantel | C44: Adults | D44: 3139099 | E44: =D44*3 -> 9417297 | F44: Merck | H44: Requested
B45: Mebendazole | C45: SAC | D45: 2098206 | E45: =D45*1 -> 2098206 | F45: END Fund | H45: Requested
B46: Mebendazole | C46: PreSAC | D46: 852398 | E46: =D46*1 -> 852398 | F46: Vitamin Angels | H46: Requested
B53: Checklist
B54: Submission
B55: What should be submitted?
B56: The supply of the requested medicines should be based on up-to-date epidemiological data, specific usage plans, and capacity for implementation. The following checklist ensures that all necessary forms and information are provided to WHO (in electronic format).
B57: Joint request for selected PC medicines
B58: Joint reporting form
B59: PC epidemiological data reporting form
B61: Availability of funding for implementation in the year for which the medicines are requested
B63: Diseases targeted for implementation | C63: Total treatments | D63: Funding secured for | E63: Source | H63: Amount
B64: =B22 -> Soil-transmitted helminthiases | C64: =SUM(G22:H22) -> 7772520 | D64: all | E64: Government
B65: =B23 -> Schistosomiasis | C65: =SUM(G23:H23) -> 1597277 | D65: all | E65: Government
B66: =B24 -> 0 | C66: =SUM(G24:H24) -> 0
B67: =B25 -> 0 | C67: =SUM(G25:H25) -> 0
B69: Who should fill in the form?
B70: National NTD coordinator should compile all required information needed to complete the request form. In the absence of such a coordinator, specific programme managers should coordinate their respective part. The final single request must be approved by the Ministry of Health.
B72: Information on person(s) who has filled in the form
B74: Title | C74: Name | E74: Phone | G74: Email | H74: Date
B75: NTD/PC Coordinator | C75: Jean Bosco Mbonigaba | E75: 250 788609068/738609068 | G75: mjb29100@gmail.com | H75: 14/04/2021
B80: The WHO recommends that all serious adverse events suspected to be associated with use of PC medicines should be reported in accordance with national Pharmacovigilance guidelines. In the absence of a national Pharmacovigilance system, contact the WHO Neglected Tropical Disease department for guidance.
B81: The WHO is committed to facilitate PC medicines donation with a free-of-charge supply of a) albendazole, mebendazole and praziquantel to the MoH’s national warehouse; and b) diethylcarbamazine citrate to the entry port/airport of recipient countries.
B82: The institution submitting the present request is responsible for a) arranging the offloading of the medicines from the truck and storing it in the national warehouse and subsequent shipment to the final distribution centres; b) for registering the donated medicine, if required, by the relevant national regulatory authorities; and c) for informing about any changes of their PC campaigns (e.g. postpone of the planned MDA date, replacement of NTD coordinator, etc.).
C83: I have read and accept WHO Data Sharing Policy
B84: Name and signature of NTD coordinator or Ministry of Health representative | D84: Dr Sabin NSANZIMANA, Director General of Rwanda Biomedical Centre
B85: Date:
B87: Please complete information on shipment and consignee in the worksheet SHIPMENT. Any additional details related to this Request should be provided in the "Additional information" box in the worksheet SHIPMENT.
B88: Please send the national request (signed and in electronic format) to the concerned WR with copy to:
B89: WHO headquarters | C89: PC_JointForms@who.int
B90: WHO Regional Office | C90: Regional Advisor for NTD
B91: Mectizan donation program | C91: Dr Yao Sodahlon, email: ysodahlon@taskforce.org
B93: Please note that your request will be reviewed by an independent panel before approval. The information in this form, joint reporting form and PC epidemiological data reporting form are essential for WHO to ensure efficient usage of medicines. As part of its ongoing monitoring and evaluation activities, and to meet its contractual obligations to donors and other partners, WHO and its appointed agents reserve the right to periodically inspect stocks of the medicines at country level.

Sheet SHIPMENT
B2: Joint request for selected PC medicines v.3.1
B4: Country | C4: =IF(INTRO!$E$33<>0,INTRO!$E$33," ") -> RWANDA | G4: Year | H4: =IF(INTRO!$E$35<>0,INTRO!$E$35," ") -> 2022
B6: Information on shipment and consignee
C8: Consignee | F8: Delivery point / Final recipient if different from the consignee
B9: Name | C9: Dr JULES MUGABO SEMAHORE | F9: Dr AIMABLE MBITUYUMUREMYI
B10: Department/Unit | C10: MALARIA AND NTDs | F10: Malaria and Others Parasitic Diseases Division
B11: Organization | C11: World Health Organization/Rwanda | F11: Rwanda Biomedical Center
B12: Phone | C12: 00250280300507/00250788307870 | F12: 00250788486256/00250738486256
B13: Fax | C13: 250280300508
B14: E-mail | C14: whorw@rw,afro.who.int | F14: aimable.mbituyumuremyi@gmail.com
B15: Mailing address | C15: P.OBox1324Kigali,Rwanda | F15: P.Obox 7162 Kigali,Rwanda
C17: Consignee | F17: Delivery point / Final recipient if different from the consignee
B18: Name
B19: Department/Unit
B20: Organization
B21: Phone
B22: Fax
B23: E-mail
B24: Mailing address
C26: Consignee | F26: Delivery point / Final recipient if different from the consignee
B27: Name
B28: Department/Unit
B29: Organization
B30: Phone
B31: Fax
B32: E-mail
B33: Mailing address
B36: Information on import requirements
B38: Is the Import Permit required? | H38: Yes
B39: How long does it take to obtain the Import Permit? | G39: 7 | H39: Days
B40: Do you require any documents to be submitted together with the Import Permit application? | H40: Yes
B41: Shipping documents
B42: Does the consignee have to get customs clearance before the shipment can proceed? | H42: No
B43: Is there any additional information may be helpful in ensuring timely clearance and delivery of medicines to your country? | H43: No
B44: If YES, please specify here
B46: Additional information
B48: Rwanda will implement the MDA based on the new community-based remapping (precision mapping) completed in December 2020. For elimination purpose, all age groups are targeted (including adults). In addition, the program has also decided to use upper limit of 95%CI while determing endemicity levels and new treatment strategy. Because the mapping used both Kato-Katz and CCA in all surveyed villages, the prevalence of schistosomasis used used in this application is based on Kato-Katz or CCA with traces considered as positive results. The implementation units for schisto are Cells which are admin units between sub districts and villages.

Sheet DATA_POLICY (hidden)
B2: Joint request for selected PC medicines v.3.1
B4: Country | D4: =IF(INTRO!$E$33<>0,INTRO!$E$33," ") -> RWANDA | G4: Year | H4: =IF(INTRO!$E$35<>0,INTRO!$E$35," ") -> 2022
B7: WHO Data Sharing Policy statement
B9: Data are the basis for all sound public health actions and the benefits of data sharing are widely recognized, including scientific and public health benefits. Whenever possible, WHO wishes to promote the sharing of health data, including but not restricted to surveillance and epidemiological data.
B14: ="In this connection, and without prejudice to information sharing and publication pursuant to legally binding instruments, by providing data to WHO, the Ministry of Health of " & D4 & ":" -> In this connection, and without prejudice to information sharing and publication pursuant to legally binding instruments, by providing data to WHO, the Ministry of Health of RWANDA:
B18: Confirms that all data to be supplied to WHO hereunder have been collected in accordance with applicable national laws, including data protection laws aimed at protecting the confidentiality of identifiable persons;
B23: ="Agrees that WHO shall be entitled, subject always to measures to ensure the ethical and secure use of the data, and subject always to an appropriate acknowledgement of "&D4&":" -> Agrees that WHO shall be entitled, subject always to measures to ensure the ethical and secure use of the data, and subject always to an appropriate acknowledgement of RWANDA:
C27: to publish the data, stripped of any personal identifiers and make the Data available to any interested party on request (to the extent they have not, or not yet, been published by WHO) on terms that allow non-commercial, not-for-profit use of the Data for public health purposes (provided always that publication of the Data shall remain under the control of WHO); to use, compile, aggregate, evaluate and analyse the Data and publish and disseminate the results thereof in conjunction with WHO’s work and in accordance with the Organization’s policies and practices.
B39: =CONCATENATE("Except where data sharing and publication is required under legally binding instruments (IHR, WHO Nomenclature Regulations 1967, etc.), the Ministry of Health of ", D4," may in respect of certain data opt out of (any part of) the above," & " by notifying WHO thereof in writing at the following address, provided that any such notification shall clearly identify the data in question and clearly indicate the scope of the opt-out (in reference to the above), " & "and provided that specific reasons shall be given for the opt out.") -> Except where data sharing and publication is required under legally binding instruments (IHR, WHO Nomenclature Regulations 1967, etc.), the Ministry of Health of RWANDA may in respect of certain data opt out of (any part of) the above, by notifying WHO thereof in writing at the following address, provided that any such notification shall clearly identify the data in question and clearly indicate the scope of the opt-out (in reference to the above), and provided that specific reasons shall be given for the opt out.
